BODY NAME,,SERVICE AREA,EXPENSES TYPE,EXPENSE CODE,DATE,TRANSACTION NO.,AMOUNT, SUPPLIER NAME,SUPPLIER ID
EFDC,RM100,RESPONSIVE & VOID REPAIRS,BUILDING MAINTENANCE,1010,02-Oct-19,158859,4260,OPENVIEW SECURITY SOLUTIONS LTD,CAR003
EFDC,26200,OTHER SUPPORT SERVICES,BUILDING MAINTENANCE,1010,02-Oct-19,159832,135,EDMUNDSON ELECTRICAL LTD,EDM001
EFDC,26200,OTHER SUPPORT SERVICES,BUILDING MAINTENANCE,1010,02-Oct-19,159832,780,EDMUNDSON ELECTRICAL LTD,EDM001
EFDC,26200,OTHER SUPPORT SERVICES,BUILDING MAINTENANCE,1010,02-Oct-19,159832,195,EDMUNDSON ELECTRICAL LTD,EDM001
EFDC,26200,OTHER SUPPORT SERVICES,BUILDING MAINTENANCE,1010,02-Oct-19,159832,580,EDMUNDSON ELECTRICAL LTD,EDM001
EFDC,26200,OTHER SUPPORT SERVICES,BUILDING MAINTENANCE,1010,02-Oct-19,159832,205,EDMUNDSON ELECTRICAL LTD,EDM001
EFDC,35300,CONTRACT & TECH SUPPORT SERVIC,VEHICLE HIRE,2620,02-Oct-19,159116,510.49,ERNEST DOE & SONS LTD,ERN001
EFDC,35300,CONTRACT & TECH SUPPORT SERVIC,VEHICLE HIRE,2620,02-Oct-19,159119,2880,ERNEST DOE & SONS LTD,ERN001
EFDC,26200,OTHER SUPPORT SERVICES,BUILDING MAINTENANCE,1010,02-Oct-19,159834,85.38,ESSEX LIFT SERVICES LTD,ESS032
EFDC,26200,OTHER SUPPORT SERVICES,BUILDING MAINTENANCE,1010,02-Oct-19,159834,85.38,ESSEX LIFT SERVICES LTD,ESS032
EFDC,26200,OTHER SUPPORT SERVICES,BUILDING MAINTENANCE,1010,02-Oct-19,159834,85.38,ESSEX LIFT SERVICES LTD,ESS032
EFDC,26200,OTHER SUPPORT SERVICES,FIXED PLANT MAINTENANCE,1020,02-Oct-19,159834,320.62,ESSEX LIFT SERVICES LTD,ESS032
EFDC,RM400,PLANNED & CYCLICAL MAINTENANCE,BUILDING MAINTENANCE,1010,02-Oct-19,159834,768.45,ESSEX LIFT SERVICES LTD,ESS032
EFDC,EH120,PRIVATE SECTOR HOUSING,CLEANING,1630,02-Oct-19,159835,865,EXTREME ENVIRONMENTAL SERVICES LTD,EXT002
EFDC,51150,OTHER SUPPORT SERVICES,TRAINING EXPENSES,0310,02-Oct-19,158113,518,HQN LTD,HQN001
EFDC,32220,OTHER SUPPORT SERVICES,AGENCY STAFF,0120,02-Oct-19,158765,1226.61,HAYS SPECIALIST RECRUITMENT LTD,HAY011
EFDC,33060,OTHER ACTIVITIES,AGENCY STAFF,0120,02-Oct-19,159484,2596,HAYS SPECIALIST RECRUITMENT LTD,HAY011
EFDC,78001,HRA SUPPORT SERVICES,REFUSE REMOVAL,1640,02-Oct-19,159080,2254,HEATHERLAND LTD T/A LUNNON PLANT & WASTE SERV,HEA001
EFDC,CH113,"MUSEUM, HERITAGE & CULTURE",EQUIPMENT - NEW,3010,02-Oct-19,159819,2399.6,ACE SECURITY & ELECTRICAL LTD,ACE001
EFDC,CH116,"MUSEUM, HERITAGE & CULTURE",PRINTING - EXTERNAL,3390,02-Oct-19,159857,358,DANNELLS LIMITED,MAR031
EFDC,CH116,"MUSEUM, HERITAGE & CULTURE",PRINTING - EXTERNAL,3390,02-Oct-19,159857,256,DANNELLS LIMITED,MAR031
EFDC,CH116,"MUSEUM, HERITAGE & CULTURE",PRINTING - EXTERNAL,3390,02-Oct-19,159857,98,DANNELLS LIMITED,MAR031
EFDC,26200,OTHER SUPPORT SERVICES,BUILDING MAINTENANCE,1010,02-Oct-19,158941,372.6,G A & D PERRY BUILDING CONTRACTORS,PER005
EFDC,26200,OTHER SUPPORT SERVICES,BUILDING MAINTENANCE,1010,02-Oct-19,158941,647.5,G A & D PERRY BUILDING CONTRACTORS,PER005
EFDC,78001,HRA SUPPORT SERVICES,MATERIALS,3080,02-Oct-19,158863,507.31,THE PREMIERE KITCHEN COMPANY,PRE014
EFDC,51140,OTHER SUPPORT SERVICES,AGENCY STAFF,0120,02-Oct-19,159873,574.56,REED SPECIALIST RECRUITMENT LTD,REE002
EFDC,35013,CONTRACT & TECH SUPPORT SERVIC,AGENCY STAFF,0120,02-Oct-19,159874,1043.1,REED SPECIALIST RECRUITMENT LTD,REE002
EFDC,35300,CONTRACT & TECH SUPPORT SERVIC,FUEL,2330,02-Oct-19,159134,3206.59,SHELL U.K. OIL PRODUCTS LIMITED,SHE007
EFDC,37100,PLANNING SUPPORT SERVICES,POSTAGE,3510,02-Oct-19,158737,360.69,ROYAL MAIL GROUP PLC,ROY015
EFDC,33055,OTHER ACTIVITIES,POSTAGE,3510,02-Oct-19,158737,330.99,ROYAL MAIL GROUP PLC,ROY015
EFDC,32030,OTHER SUPPORT SERVICES,POSTAGE,3510,02-Oct-19,158737,21.45,ROYAL MAIL GROUP PLC,ROY015
EFDC,33075,OTHER ACTIVITIES,POSTAGE,3510,02-Oct-19,158737,421.16,ROYAL MAIL GROUP PLC,ROY015
EFDC,RE100,ELECTIONS,POSTAGE,3510,02-Oct-19,158737,236.61,ROYAL MAIL GROUP PLC,ROY015
EFDC,34110,HOUSING PROP SUPPORT SERVICES,POSTAGE,3510,02-Oct-19,158737,6.6,ROYAL MAIL GROUP PLC,ROY015
EFDC,CH110,"MUSEUM, HERITAGE & CULTURE",POSTAGE,3510,02-Oct-19,158737,0.66,ROYAL MAIL GROUP PLC,ROY015
EFDC,35900,CONTRACT & TECH SUPPORT SERVIC,POSTAGE,3510,02-Oct-19,158737,37.62,ROYAL MAIL GROUP PLC,ROY015
EFDC,36200,HRA SUPPORT SERVICES,POSTAGE,3510,02-Oct-19,158737,282.81,ROYAL MAIL GROUP PLC,ROY015
EFDC,51150,OTHER SUPPORT SERVICES,TRAINING EXPENSES,0310,02-Oct-19,159876,695,TAVCOM TRAINING LIMITED,TAV002
EFDC,32121,OTHER SUPPORT SERVICES,CONSULTANTS FEES,3490,02-Oct-19,158960,900,TRAINING & COACHING SOLUTIONS LTD,TRA029
EFDC,32060,OTHER SUPPORT SERVICES,RECRUITMENT EXPENSES,0320,02-Oct-19,158044,608.91,VENN GROUP LTD,VEN004
EFDC,32060,OTHER SUPPORT SERVICES,AGENCY STAFF,0120,02-Oct-19,158161,1727.04,VENN GROUP LTD,VEN004
EFDC,RS400,"COMMUNITY, HEALTH & WELLBEING",ACTIVITIES,3372,02-Oct-19,159863,650,ZOE MOREY,MOR019
EFDC,RM200,RESPONSIVE & VOID REPAIRS,BUILDING MAINTENANCE,1010,02-Oct-19,158099,665.79,GRACELANDS COMPLETE MAINTENANCE SERVICES LTD,GRA007
EFDC,RM100,RESPONSIVE & VOID REPAIRS,BUILDING MAINTENANCE,1010,02-Oct-19,158184,1057,GRACELANDS COMPLETE MAINTENANCE SERVICES LTD,GRA007
EFDC,FD100,LAND DRAINAGE/SEWERAGE,HIGHWAYS CONTRACTORS,4310,02-Oct-19,158483,1862,HUGH PEARL (LAND DRAINAGE) LTD,HUG001
EFDC,YB150,SUPERVISION/MANAGEMENT SPECIAL,GROUNDS MAINTENANCE,1040,02-Oct-19,158164,550.8,HUGH PEARL (LAND DRAINAGE) LTD,HUG001
EFDC,YB150,SUPERVISION/MANAGEMENT SPECIAL,GROUNDS MAINTENANCE,1040,02-Oct-19,158165,2241,HUGH PEARL (LAND DRAINAGE) LTD,HUG001
EFDC,RM400,PLANNED & CYCLICAL MAINTENANCE,BUILDING MAINTENANCE,1010,02-Oct-19,159871,3733.33,PURDY CONTRACTS LTD,PUR002
EFDC,36650,HRA SUPPORT SERVICES,AGENCY STAFF,0120,02-Oct-19,159862,1229.04,MORGAN HUNT UK LTD,MOR001
EFDC,35005,CONTRACT & TECH SUPPORT SERVIC,AGENCY STAFF,0120,02-Oct-19,159860,865.32,MORGAN HUNT UK LTD,MOR001
EFDC,RS400,"COMMUNITY, HEALTH & WELLBEING",ACTIVITIES,3372,02-Oct-19,159872,300,THE RED BALLOON FAMILY FOUNDATION,RED014
EFDC,RS400,"COMMUNITY, HEALTH & WELLBEING",ACTIVITIES,3372,02-Oct-19,159872,2612,THE RED BALLOON FAMILY FOUNDATION,RED014
EFDC,RS400,"COMMUNITY, HEALTH & WELLBEING",ACTIVITIES,3372,02-Oct-19,159872,800,THE RED BALLOON FAMILY FOUNDATION,RED014
EFDC,LA100,LAA POOLED FUNDS,LAA EXPENDITURE,Y100,02-Oct-19,159859,609,MFP,MFP001
EFDC,LA100,LAA POOLED FUNDS,LAA EXPENDITURE,Y100,02-Oct-19,159859,315,MFP,MFP001
EFDC,LA100,LAA POOLED FUNDS,LAA EXPENDITURE,Y100,02-Oct-19,159859,1244,MFP,MFP001
EFDC,LA100,LAA POOLED FUNDS,LAA EXPENDITURE,Y100,02-Oct-19,159859,590,MFP,MFP001
EFDC,LA100,LAA POOLED FUNDS,LAA EXPENDITURE,Y100,02-Oct-19,159859,140,MFP,MFP001
EFDC,LA100,LAA POOLED FUNDS,LAA EXPENDITURE,Y100,02-Oct-19,159859,590,MFP,MFP001
EFDC,RS410,"COMMUNITY, HEALTH & WELLBEING",ACTIVITIES,3372,02-Oct-19,159846,100,JARVIS GOODYEAR,GOO002
EFDC,RS410,"COMMUNITY, HEALTH & WELLBEING",ACTIVITIES,3372,02-Oct-19,159846,100,JARVIS GOODYEAR,GOO002
EFDC,RS410,"COMMUNITY, HEALTH & WELLBEING",ACTIVITIES,3372,02-Oct-19,159846,100,JARVIS GOODYEAR,GOO002
EFDC,RS410,"COMMUNITY, HEALTH & WELLBEING",ACTIVITIES,3372,02-Oct-19,159846,187.5,JARVIS GOODYEAR,GOO002
EFDC,RS410,"COMMUNITY, HEALTH & WELLBEING",ACTIVITIES,3372,02-Oct-19,159846,100,JARVIS GOODYEAR,GOO002
EFDC,RS410,"COMMUNITY, HEALTH & WELLBEING",ACTIVITIES,3372,02-Oct-19,159846,100,JARVIS GOODYEAR,GOO002
EFDC,RS410,"COMMUNITY, HEALTH & WELLBEING",ACTIVITIES,3372,02-Oct-19,159846,100,JARVIS GOODYEAR,GOO002
EFDC,RS410,"COMMUNITY, HEALTH & WELLBEING",ACTIVITIES,3372,02-Oct-19,159846,100,JARVIS GOODYEAR,GOO002
EFDC,RS410,"COMMUNITY, HEALTH & WELLBEING",ACTIVITIES,3372,02-Oct-19,159846,125,JARVIS GOODYEAR,GOO002
EFDC,RS410,"COMMUNITY, HEALTH & WELLBEING",ACTIVITIES,3372,02-Oct-19,159846,100,JARVIS GOODYEAR,GOO002
EFDC,CAPHR,HRA CAPITAL,WORKS,A040,02-Oct-19,159236,624,WOODS BUILDING SERVICES LTD,WOO001
EFDC,CAPHR,HRA CAPITAL,WORKS,A040,02-Oct-19,159395,504,WOODS BUILDING SERVICES LTD,WOO001
EFDC,CAPHR,HRA CAPITAL,WORKS,A040,02-Oct-19,158755,624,WOODS BUILDING SERVICES LTD,WOO001
EFDC,CAPHR,HRA CAPITAL,WORKS,A040,02-Oct-19,159234,1116,WOODS BUILDING SERVICES LTD,WOO001
EFDC,CAPHR,HRA CAPITAL,VOIDS WORKS,A045,02-Oct-19,158432,686,WOODS BUILDING SERVICES LTD,WOO001
EFDC,CAPHR,HRA CAPITAL,WORKS,B040,02-Oct-19,159177,16316.63,FAIRCLOTH CONSTRUCTION LTD,FAI002
EFDC,CAPHR,HRA CAPITAL,MANAGEMENT CONSULTANT,E130,02-Oct-19,158747,1978.22,PELLINGS LLP,PEL002
EFDC,CAPHR,HRA CAPITAL,MANAGEMENT CONSULTANT,E130,02-Oct-19,159815,1978.22,PELLINGS LLP,PEL002
EFDC,CAPHR,HRA CAPITAL,MANAGEMENT CONSULTANT,E130,02-Oct-19,159817,5000,PELLINGS LLP,PEL002
EFDC,CAPHR,HRA CAPITAL,MANAGEMENT CONSULTANT,E130,02-Oct-19,159816,5000,PELLINGS LLP,PEL002
EFDC,CH110,"MUSEUM, HERITAGE & CULTURE",RENTS / HIRE OF HALL,1210,02-Oct-19,159847,1100,GRANGEWOOD INVESTMENTS LTD,GRA006
EFDC,PS100,CAR PARKING,ELECTRICITY,1120,02-Oct-19,159433,5.03,EDF ENERGY,EDF001
EFDC,YB200,SUPERVISION/MANAGEMENT SPECIAL,ELECTRICITY,1120,02-Oct-19,159433,22.59,EDF ENERGY,EDF001
EFDC,PS100,CAR PARKING,ELECTRICITY,1120,02-Oct-19,159433,21.11,EDF ENERGY,EDF001
EFDC,PS100,CAR PARKING,ELECTRICITY,1120,02-Oct-19,159433,21.65,EDF ENERGY,EDF001
EFDC,PS100,CAR PARKING,ELECTRICITY,1120,02-Oct-19,159433,148.3,EDF ENERGY,EDF001
EFDC,YB200,SUPERVISION/MANAGEMENT SPECIAL,ELECTRICITY,1120,02-Oct-19,159433,22.03,EDF ENERGY,EDF001
EFDC,PS100,CAR PARKING,ELECTRICITY,1120,02-Oct-19,159433,258.56,EDF ENERGY,EDF001
EFDC,YB200,SUPERVISION/MANAGEMENT SPECIAL,ELECTRICITY,1120,02-Oct-19,159433,40.77,EDF ENERGY,EDF001
EFDC,PS100,CAR PARKING,ELECTRICITY,1120,02-Oct-19,159433,3.63,EDF ENERGY,EDF001
EFDC,YB200,SUPERVISION/MANAGEMENT SPECIAL,ELECTRICITY,1120,02-Oct-19,159433,10.31,EDF ENERGY,EDF001
EFDC,PS100,CAR PARKING,ELECTRICITY,1120,02-Oct-19,159433,78.51,EDF ENERGY,EDF001
EFDC,YB200,SUPERVISION/MANAGEMENT SPECIAL,ELECTRICITY,1120,02-Oct-19,159433,10.49,EDF ENERGY,EDF001
EFDC,PS100,CAR PARKING,ELECTRICITY,1120,02-Oct-19,159433,5.37,EDF ENERGY,EDF001
EFDC,PS100,CAR PARKING,ELECTRICITY,1120,02-Oct-19,159433,124.06,EDF ENERGY,EDF001
EFDC,YB200,SUPERVISION/MANAGEMENT SPECIAL,ELECTRICITY,1120,02-Oct-19,159433,41.94,EDF ENERGY,EDF001
EFDC,PS100,CAR PARKING,ELECTRICITY,1120,02-Oct-19,159433,18.43,EDF ENERGY,EDF001
EFDC,PS100,CAR PARKING,ELECTRICITY,1120,02-Oct-19,159433,20.08,EDF ENERGY,EDF001
EFDC,PS100,CAR PARKING,ELECTRICITY,1120,02-Oct-19,159433,237.17,EDF ENERGY,EDF001
EFDC,PS100,CAR PARKING,ELECTRICITY,1120,02-Oct-19,159433,132.2,EDF ENERGY,EDF001
EFDC,PS100,CAR PARKING,ELECTRICITY,1120,02-Oct-19,159433,83.75,EDF ENERGY,EDF001
EFDC,PS100,CAR PARKING,ELECTRICITY,1120,02-Oct-19,159433,158.06,EDF ENERGY,EDF001
EFDC,YB500,SUPERVISION/MANAGEMENT SPECIAL,ELECTRICITY,1120,02-Oct-19,159433,27.33,EDF ENERGY,EDF001
EFDC,YB500,SUPERVISION/MANAGEMENT SPECIAL,ELECTRICITY,1120,02-Oct-19,159433,28.07,EDF ENERGY,EDF001
EFDC,YB110,SUPERVISION/MANAGEMENT SPECIAL,ELECTRICITY,1120,02-Oct-19,159433,6.67,EDF ENERGY,EDF001
EFDC,YB500,SUPERVISION/MANAGEMENT SPECIAL,ELECTRICITY,1120,02-Oct-19,159433,38.89,EDF ENERGY,EDF001
EFDC,YB500,SUPERVISION/MANAGEMENT SPECIAL,ELECTRICITY,1120,02-Oct-19,159433,40,EDF ENERGY,EDF001
EFDC,35009,CONTRACT & TECH SUPPORT SERVIC,ELECTRICITY,1120,02-Oct-19,159433,15.53,EDF ENERGY,EDF001
EFDC,YB110,SUPERVISION/MANAGEMENT SPECIAL,ELECTRICITY,1120,02-Oct-19,159433,16.43,EDF ENERGY,EDF001
EFDC,35009,CONTRACT & TECH SUPPORT SERVIC,ELECTRICITY,1120,02-Oct-19,159433,15.18,EDF ENERGY,EDF001
EFDC,35009,CONTRACT & TECH SUPPORT SERVIC,ELECTRICITY,1120,02-Oct-19,159433,16.37,EDF ENERGY,EDF001
EFDC,35009,CONTRACT & TECH SUPPORT SERVIC,ELECTRICITY,1120,02-Oct-19,159433,15.99,EDF ENERGY,EDF001
EFDC,YB110,SUPERVISION/MANAGEMENT SPECIAL,ELECTRICITY,1120,02-Oct-19,159433,6.79,EDF ENERGY,EDF001
EFDC,FD100,LAND DRAINAGE/SEWERAGE,ELECTRICITY,1120,02-Oct-19,159433,5.85,EDF ENERGY,EDF001
EFDC,FD100,LAND DRAINAGE/SEWERAGE,ELECTRICITY,1120,02-Oct-19,159433,47.89,EDF ENERGY,EDF001
EFDC,YB110,SUPERVISION/MANAGEMENT SPECIAL,ELECTRICITY,1120,02-Oct-19,159433,17.16,EDF ENERGY,EDF001
EFDC,FD100,LAND DRAINAGE/SEWERAGE,ELECTRICITY,1120,02-Oct-19,159433,38.71,EDF ENERGY,EDF001
EFDC,FD100,LAND DRAINAGE/SEWERAGE,ELECTRICITY,1120,02-Oct-19,159433,6.68,EDF ENERGY,EDF001
EFDC,37600,PLANNING SUPPORT SERVICES,AGENCY STAFF,0120,02-Oct-19,158078,1239.5,MATCHTECH GROUP LTD,MAT002
EFDC,51150,OTHER SUPPORT SERVICES,TRAINING EXPENSES,0310,02-Oct-19,159164,131,TOTAL COMMS TRAINING LTD,TOT004
EFDC,51150,OTHER SUPPORT SERVICES,TRAINING EXPENSES,0310,02-Oct-19,159164,429.67,TOTAL COMMS TRAINING LTD,TOT004
EFDC,37600,PLANNING SUPPORT SERVICES,AGENCY STAFF,0120,02-Oct-19,158129,1312.5,VIVID RESOURCING LTD,VIV002
EFDC,37600,PLANNING SUPPORT SERVICES,AGENCY STAFF,0120,02-Oct-19,158130,1277.5,VIVID RESOURCING LTD,VIV002
EFDC,PS100,CAR PARKING,BANKING AND CASH COLLECTION,3440,02-Oct-19,159249,1156.95,CHIPSIDE LIMITED,CHI030
EFDC,GT100,LOCAL PLAN IMPLEMENTATION,CONSULTANTS FEES,3490,02-Oct-19,155510,3607,CUSHMAN & WAKEFIELD DEBENHAM TIE LEUNG LTD,CUS022
EFDC,GT100,LOCAL PLAN IMPLEMENTATION,CONSULTANTS FEES,3490,02-Oct-19,155508,9475.9,CUSHMAN & WAKEFIELD DEBENHAM TIE LEUNG LTD,CUS022
EFDC,GT100,LOCAL PLAN IMPLEMENTATION,CONSULTANTS FEES,3490,02-Oct-19,155509,8442,CUSHMAN & WAKEFIELD DEBENHAM TIE LEUNG LTD,CUS022
EFDC,GT100,LOCAL PLAN IMPLEMENTATION,CONSULTANTS FEES,3490,02-Oct-19,158947,1700,PUTTOCK BROWN LIMITED,PUT001
EFDC,GT100,LOCAL PLAN IMPLEMENTATION,CONSULTANTS FEES,3490,02-Oct-19,158946,1690,PUTTOCK BROWN LIMITED,PUT001
EFDC,PP111,LOCAL PLAN IMPLEMENTATION,PROFESSIONAL FEES,3420,02-Oct-19,159453,4391.1,BLOOM PROCUREMENT SERVICES LTD,BLO001
EFDC,CAPGF,GENERAL FUND CAPITAL,CONSULTANCY FEES,E200,02-Oct-19,159843,5500,FRAME PROJECTS LIMITED,FRA001
EFDC,26200,OTHER SUPPORT SERVICES,BUILDING MAINTENANCE,1010,02-Oct-19,159828,1154.25,DDM FIRE SAFETY,DDM001
EFDC,26200,OTHER SUPPORT SERVICES,FIXED PLANT MAINTENANCE,1020,02-Oct-19,159829,943.33,DDM FIRE SAFETY,DDM001
EFDC,CAPHR,HRA CAPITAL,CLERK OF WORKS,E180,02-Oct-19,159813,820,KEITH PEATTIE ASSOCIATES,KEI001
EFDC,CAPHR,HRA CAPITAL,CLERK OF WORKS,E180,02-Oct-19,159813,820,KEITH PEATTIE ASSOCIATES,KEI001
EFDC,CAPHR,HRA CAPITAL,CLERK OF WORKS,E180,02-Oct-19,159814,820,KEITH PEATTIE ASSOCIATES,KEI001
EFDC,CAPHR,HRA CAPITAL,CLERK OF WORKS,E180,02-Oct-19,159814,820,KEITH PEATTIE ASSOCIATES,KEI001
EFDC,GT100,LOCAL PLAN IMPLEMENTATION,CONSULTANTS FEES,3490,02-Oct-19,158944,4500,PETER WRIGHT ASSOCIATES LTD,PET026
EFDC,PS100,CAR PARKING,LEGAL EXPENSES,3680,02-Oct-19,159668,1000,H M C T S,HMC005
EFDC,GD100,VOLUNTARY SECTOR SUPPORT,GRANTS TO VOLUNTARY ORGS,3710,08-Oct-19,34145,5000,ROYDON TENNIS CLUB,644P
EFDC,PH100,PRIVATE SECTOR HOUSING,GRANTS GENERAL,3720,08-Oct-19,34133,5899.94,HD PROPERTY SERVICES LIMITED,6878P
EFDC,GD100,VOLUNTARY SECTOR SUPPORT,GRANTS TO VOLUNTARY ORGS,3710,08-Oct-19,34140,1770,ONGAR AND VILLAGES VOLUNTARY CARE,7270P
EFDC,YB110,SUPERVISION/MANAGEMENT SPECIAL,ELECTRICITY,1120,09-Oct-19,160066,16.49,BRITISH GAS,BRI040
EFDC,YB110,SUPERVISION/MANAGEMENT SPECIAL,ELECTRICITY,1120,09-Oct-19,160066,-25.71,BRITISH GAS,BRI040
EFDC,YB110,SUPERVISION/MANAGEMENT SPECIAL,ELECTRICITY,1120,09-Oct-19,160066,25.71,BRITISH GAS,BRI040
EFDC,YB110,SUPERVISION/MANAGEMENT SPECIAL,ELECTRICITY,1120,09-Oct-19,160066,32.93,BRITISH GAS,BRI040
EFDC,YB110,SUPERVISION/MANAGEMENT SPECIAL,ELECTRICITY,1120,09-Oct-19,160066,22.98,BRITISH GAS,BRI040
EFDC,YB110,SUPERVISION/MANAGEMENT SPECIAL,ELECTRICITY,1120,09-Oct-19,160066,18.72,BRITISH GAS,BRI040
EFDC,YB110,SUPERVISION/MANAGEMENT SPECIAL,ELECTRICITY,1120,09-Oct-19,160066,14.3,BRITISH GAS,BRI040
EFDC,YB110,SUPERVISION/MANAGEMENT SPECIAL,ELECTRICITY,1120,09-Oct-19,160066,12.89,BRITISH GAS,BRI040
EFDC,YB110,SUPERVISION/MANAGEMENT SPECIAL,ELECTRICITY,1120,09-Oct-19,160066,14.69,BRITISH GAS,BRI040
EFDC,YB110,SUPERVISION/MANAGEMENT SPECIAL,ELECTRICITY,1120,09-Oct-19,160066,8.69,BRITISH GAS,BRI040
EFDC,YB110,SUPERVISION/MANAGEMENT SPECIAL,ELECTRICITY,1120,09-Oct-19,160066,8.56,BRITISH GAS,BRI040
EFDC,YB110,SUPERVISION/MANAGEMENT SPECIAL,ELECTRICITY,1120,09-Oct-19,160066,14.92,BRITISH GAS,BRI040
EFDC,YB110,SUPERVISION/MANAGEMENT SPECIAL,ELECTRICITY,1120,09-Oct-19,160066,12.29,BRITISH GAS,BRI040
EFDC,YB110,SUPERVISION/MANAGEMENT SPECIAL,ELECTRICITY,1120,09-Oct-19,160066,21.52,BRITISH GAS,BRI040
EFDC,YB110,SUPERVISION/MANAGEMENT SPECIAL,ELECTRICITY,1120,09-Oct-19,160066,71.15,BRITISH GAS,BRI040
EFDC,YB110,SUPERVISION/MANAGEMENT SPECIAL,ELECTRICITY,1120,09-Oct-19,160066,16.36,BRITISH GAS,BRI040
EFDC,YB110,SUPERVISION/MANAGEMENT SPECIAL,ELECTRICITY,1120,09-Oct-19,160066,75.02,BRITISH GAS,BRI040
EFDC,YB110,SUPERVISION/MANAGEMENT SPECIAL,ELECTRICITY,1120,09-Oct-19,160066,81.32,BRITISH GAS,BRI040
EFDC,YB110,SUPERVISION/MANAGEMENT SPECIAL,ELECTRICITY,1120,09-Oct-19,160066,17.56,BRITISH GAS,BRI040
EFDC,YB110,SUPERVISION/MANAGEMENT SPECIAL,ELECTRICITY,1120,09-Oct-19,160066,77.21,BRITISH GAS,BRI040
EFDC,YB110,SUPERVISION/MANAGEMENT SPECIAL,ELECTRICITY,1120,09-Oct-19,160066,13.92,BRITISH GAS,BRI040
EFDC,YB110,SUPERVISION/MANAGEMENT SPECIAL,ELECTRICITY,1120,09-Oct-19,160066,12.66,BRITISH GAS,BRI040
EFDC,YB110,SUPERVISION/MANAGEMENT SPECIAL,ELECTRICITY,1120,09-Oct-19,160066,14.35,BRITISH GAS,BRI040
EFDC,YB110,SUPERVISION/MANAGEMENT SPECIAL,ELECTRICITY,1120,09-Oct-19,160066,15.25,BRITISH GAS,BRI040
EFDC,YB110,SUPERVISION/MANAGEMENT SPECIAL,ELECTRICITY,1120,09-Oct-19,160066,51.71,BRITISH GAS,BRI040
EFDC,YB110,SUPERVISION/MANAGEMENT SPECIAL,ELECTRICITY,1120,09-Oct-19,160066,25.36,BRITISH GAS,BRI040
EFDC,YB110,SUPERVISION/MANAGEMENT SPECIAL,ELECTRICITY,1120,09-Oct-19,160066,11.34,BRITISH GAS,BRI040
EFDC,YB110,SUPERVISION/MANAGEMENT SPECIAL,ELECTRICITY,1120,09-Oct-19,160066,15.53,BRITISH GAS,BRI040
EFDC,YB110,SUPERVISION/MANAGEMENT SPECIAL,ELECTRICITY,1120,09-Oct-19,160066,14.73,BRITISH GAS,BRI040
EFDC,YB110,SUPERVISION/MANAGEMENT SPECIAL,ELECTRICITY,1120,09-Oct-19,160066,12.91,BRITISH GAS,BRI040
EFDC,YB110,SUPERVISION/MANAGEMENT SPECIAL,ELECTRICITY,1120,09-Oct-19,160066,13.15,BRITISH GAS,BRI040
EFDC,YB110,SUPERVISION/MANAGEMENT SPECIAL,ELECTRICITY,1120,09-Oct-19,160066,15.3,BRITISH GAS,BRI040
EFDC,YB110,SUPERVISION/MANAGEMENT SPECIAL,ELECTRICITY,1120,09-Oct-19,160066,6.82,BRITISH GAS,BRI040
EFDC,YB110,SUPERVISION/MANAGEMENT SPECIAL,ELECTRICITY,1120,09-Oct-19,160066,7.62,BRITISH GAS,BRI040
EFDC,YB110,SUPERVISION/MANAGEMENT SPECIAL,ELECTRICITY,1120,09-Oct-19,160066,15.14,BRITISH GAS,BRI040
EFDC,YB110,SUPERVISION/MANAGEMENT SPECIAL,ELECTRICITY,1120,09-Oct-19,160066,15.28,BRITISH GAS,BRI040
EFDC,YB110,SUPERVISION/MANAGEMENT SPECIAL,ELECTRICITY,1120,09-Oct-19,160066,14.29,BRITISH GAS,BRI040
EFDC,YB110,SUPERVISION/MANAGEMENT SPECIAL,ELECTRICITY,1120,09-Oct-19,160066,14.17,BRITISH GAS,BRI040
EFDC,YB110,SUPERVISION/MANAGEMENT SPECIAL,ELECTRICITY,1120,09-Oct-19,160066,14.92,BRITISH GAS,BRI040
EFDC,YB110,SUPERVISION/MANAGEMENT SPECIAL,ELECTRICITY,1120,09-Oct-19,160066,15.41,BRITISH GAS,BRI040
EFDC,YB110,SUPERVISION/MANAGEMENT SPECIAL,ELECTRICITY,1120,09-Oct-19,160066,14.31,BRITISH GAS,BRI040
EFDC,YB110,SUPERVISION/MANAGEMENT SPECIAL,ELECTRICITY,1120,09-Oct-19,160066,16.23,BRITISH GAS,BRI040
EFDC,YB110,SUPERVISION/MANAGEMENT SPECIAL,ELECTRICITY,1120,09-Oct-19,160066,16.05,BRITISH GAS,BRI040
EFDC,YB110,SUPERVISION/MANAGEMENT SPECIAL,ELECTRICITY,1120,09-Oct-19,160066,8.36,BRITISH GAS,BRI040
EFDC,YB110,SUPERVISION/MANAGEMENT SPECIAL,ELECTRICITY,1120,09-Oct-19,160066,15.48,BRITISH GAS,BRI040
EFDC,YB110,SUPERVISION/MANAGEMENT SPECIAL,ELECTRICITY,1120,09-Oct-19,160066,18.07,BRITISH GAS,BRI040
EFDC,YB110,SUPERVISION/MANAGEMENT SPECIAL,ELECTRICITY,1120,09-Oct-19,160066,14.52,BRITISH GAS,BRI040
EFDC,YB110,SUPERVISION/MANAGEMENT SPECIAL,ELECTRICITY,1120,09-Oct-19,160066,15.79,BRITISH GAS,BRI040
EFDC,YB110,SUPERVISION/MANAGEMENT SPECIAL,ELECTRICITY,1120,09-Oct-19,160066,14.38,BRITISH GAS,BRI040
EFDC,YB110,SUPERVISION/MANAGEMENT SPECIAL,ELECTRICITY,1120,09-Oct-19,160066,18.66,BRITISH GAS,BRI040
EFDC,YB110,SUPERVISION/MANAGEMENT SPECIAL,ELECTRICITY,1120,09-Oct-19,160066,9.61,BRITISH GAS,BRI040
EFDC,YB110,SUPERVISION/MANAGEMENT SPECIAL,ELECTRICITY,1120,09-Oct-19,160066,15.53,BRITISH GAS,BRI040
EFDC,YB110,SUPERVISION/MANAGEMENT SPECIAL,ELECTRICITY,1120,09-Oct-19,160066,14.56,BRITISH GAS,BRI040
EFDC,YB110,SUPERVISION/MANAGEMENT SPECIAL,ELECTRICITY,1120,09-Oct-19,160066,11.32,BRITISH GAS,BRI040
EFDC,YB110,SUPERVISION/MANAGEMENT SPECIAL,ELECTRICITY,1120,09-Oct-19,160066,11.48,BRITISH GAS,BRI040
EFDC,YB110,SUPERVISION/MANAGEMENT SPECIAL,ELECTRICITY,1120,09-Oct-19,160066,15.04,BRITISH GAS,BRI040
EFDC,YB110,SUPERVISION/MANAGEMENT SPECIAL,ELECTRICITY,1120,09-Oct-19,160066,63.84,BRITISH GAS,BRI040
EFDC,YB110,SUPERVISION/MANAGEMENT SPECIAL,ELECTRICITY,1120,09-Oct-19,160066,12.85,BRITISH GAS,BRI040
EFDC,YB110,SUPERVISION/MANAGEMENT SPECIAL,ELECTRICITY,1120,09-Oct-19,160066,20.03,BRITISH GAS,BRI040
EFDC,YB110,SUPERVISION/MANAGEMENT SPECIAL,ELECTRICITY,1120,09-Oct-19,160066,18.49,BRITISH GAS,BRI040
EFDC,YB110,SUPERVISION/MANAGEMENT SPECIAL,ELECTRICITY,1120,09-Oct-19,160066,25.23,BRITISH GAS,BRI040
EFDC,YB110,SUPERVISION/MANAGEMENT SPECIAL,ELECTRICITY,1120,09-Oct-19,160066,10.73,BRITISH GAS,BRI040
EFDC,YB110,SUPERVISION/MANAGEMENT SPECIAL,ELECTRICITY,1120,09-Oct-19,160066,12.12,BRITISH GAS,BRI040
EFDC,YB110,SUPERVISION/MANAGEMENT SPECIAL,ELECTRICITY,1120,09-Oct-19,160066,18.48,BRITISH GAS,BRI040
EFDC,YB110,SUPERVISION/MANAGEMENT SPECIAL,ELECTRICITY,1120,09-Oct-19,160066,14.05,BRITISH GAS,BRI040
EFDC,YB110,SUPERVISION/MANAGEMENT SPECIAL,ELECTRICITY,1120,09-Oct-19,160066,9.52,BRITISH GAS,BRI040
EFDC,YB110,SUPERVISION/MANAGEMENT SPECIAL,ELECTRICITY,1120,09-Oct-19,160066,12.29,BRITISH GAS,BRI040
EFDC,YB110,SUPERVISION/MANAGEMENT SPECIAL,ELECTRICITY,1120,09-Oct-19,160066,17,BRITISH GAS,BRI040
EFDC,YB110,SUPERVISION/MANAGEMENT SPECIAL,ELECTRICITY,1120,09-Oct-19,160066,6.64,BRITISH GAS,BRI040
EFDC,YB110,SUPERVISION/MANAGEMENT SPECIAL,ELECTRICITY,1120,09-Oct-19,160066,8.62,BRITISH GAS,BRI040
EFDC,YB110,SUPERVISION/MANAGEMENT SPECIAL,ELECTRICITY,1120,09-Oct-19,160066,10.96,BRITISH GAS,BRI040
EFDC,YB110,SUPERVISION/MANAGEMENT SPECIAL,ELECTRICITY,1120,09-Oct-19,160066,9.65,BRITISH GAS,BRI040
EFDC,YB110,SUPERVISION/MANAGEMENT SPECIAL,ELECTRICITY,1120,09-Oct-19,160066,8.49,BRITISH GAS,BRI040
EFDC,YB110,SUPERVISION/MANAGEMENT SPECIAL,ELECTRICITY,1120,09-Oct-19,160066,227.48,BRITISH GAS,BRI040
EFDC,YB110,SUPERVISION/MANAGEMENT SPECIAL,ELECTRICITY,1120,09-Oct-19,160066,17,BRITISH GAS,BRI040
EFDC,YB110,SUPERVISION/MANAGEMENT SPECIAL,ELECTRICITY,1120,09-Oct-19,160066,8.36,BRITISH GAS,BRI040
EFDC,YB110,SUPERVISION/MANAGEMENT SPECIAL,ELECTRICITY,1120,09-Oct-19,160066,9.92,BRITISH GAS,BRI040
EFDC,YB110,SUPERVISION/MANAGEMENT SPECIAL,ELECTRICITY,1120,09-Oct-19,160066,10.09,BRITISH GAS,BRI040
EFDC,YB110,SUPERVISION/MANAGEMENT SPECIAL,ELECTRICITY,1120,09-Oct-19,160066,20.22,BRITISH GAS,BRI040
EFDC,YB110,SUPERVISION/MANAGEMENT SPECIAL,ELECTRICITY,1120,09-Oct-19,160066,27.18,BRITISH GAS,BRI040
EFDC,YB110,SUPERVISION/MANAGEMENT SPECIAL,ELECTRICITY,1120,09-Oct-19,160066,11.48,BRITISH GAS,BRI040
EFDC,YB110,SUPERVISION/MANAGEMENT SPECIAL,ELECTRICITY,1120,09-Oct-19,160066,15.98,BRITISH GAS,BRI040
EFDC,YB110,SUPERVISION/MANAGEMENT SPECIAL,ELECTRICITY,1120,09-Oct-19,160066,14.18,BRITISH GAS,BRI040
EFDC,YB110,SUPERVISION/MANAGEMENT SPECIAL,ELECTRICITY,1120,09-Oct-19,160066,14.43,BRITISH GAS,BRI040
EFDC,YB110,SUPERVISION/MANAGEMENT SPECIAL,ELECTRICITY,1120,09-Oct-19,160066,9.01,BRITISH GAS,BRI040
EFDC,YB110,SUPERVISION/MANAGEMENT SPECIAL,ELECTRICITY,1120,09-Oct-19,160066,22.39,BRITISH GAS,BRI040
EFDC,YB110,SUPERVISION/MANAGEMENT SPECIAL,ELECTRICITY,1120,09-Oct-19,160066,14.98,BRITISH GAS,BRI040
EFDC,YB110,SUPERVISION/MANAGEMENT SPECIAL,ELECTRICITY,1120,09-Oct-19,160066,10.57,BRITISH GAS,BRI040
EFDC,YB110,SUPERVISION/MANAGEMENT SPECIAL,ELECTRICITY,1120,09-Oct-19,160066,12.54,BRITISH GAS,BRI040
EFDC,YB110,SUPERVISION/MANAGEMENT SPECIAL,ELECTRICITY,1120,09-Oct-19,160066,16.75,BRITISH GAS,BRI040
EFDC,YB110,SUPERVISION/MANAGEMENT SPECIAL,ELECTRICITY,1120,09-Oct-19,160066,19.16,BRITISH GAS,BRI040
EFDC,YB110,SUPERVISION/MANAGEMENT SPECIAL,ELECTRICITY,1120,09-Oct-19,160066,19.58,BRITISH GAS,BRI040
EFDC,YB110,SUPERVISION/MANAGEMENT SPECIAL,ELECTRICITY,1120,09-Oct-19,160066,10.1,BRITISH GAS,BRI040
EFDC,YB110,SUPERVISION/MANAGEMENT SPECIAL,ELECTRICITY,1120,09-Oct-19,160066,15.91,BRITISH GAS,BRI040
EFDC,YB110,SUPERVISION/MANAGEMENT SPECIAL,ELECTRICITY,1120,09-Oct-19,160066,53.42,BRITISH GAS,BRI040
EFDC,YB110,SUPERVISION/MANAGEMENT SPECIAL,ELECTRICITY,1120,09-Oct-19,160066,98.58,BRITISH GAS,BRI040
EFDC,YB110,SUPERVISION/MANAGEMENT SPECIAL,ELECTRICITY,1120,09-Oct-19,160066,30.2,BRITISH GAS,BRI040
EFDC,YB110,SUPERVISION/MANAGEMENT SPECIAL,ELECTRICITY,1120,09-Oct-19,160066,50.58,BRITISH GAS,BRI040
EFDC,YB110,SUPERVISION/MANAGEMENT SPECIAL,ELECTRICITY,1120,09-Oct-19,160066,14.3,BRITISH GAS,BRI040
EFDC,YB110,SUPERVISION/MANAGEMENT SPECIAL,ELECTRICITY,1120,09-Oct-19,160066,101.85,BRITISH GAS,BRI040
EFDC,YB110,SUPERVISION/MANAGEMENT SPECIAL,ELECTRICITY,1120,09-Oct-19,160066,44.94,BRITISH GAS,BRI040
EFDC,YB110,SUPERVISION/MANAGEMENT SPECIAL,ELECTRICITY,1120,09-Oct-19,160066,10.86,BRITISH GAS,BRI040
EFDC,YB110,SUPERVISION/MANAGEMENT SPECIAL,ELECTRICITY,1120,09-Oct-19,160066,13.23,BRITISH GAS,BRI040
EFDC,YB110,SUPERVISION/MANAGEMENT SPECIAL,ELECTRICITY,1120,09-Oct-19,160066,11.37,BRITISH GAS,BRI040
EFDC,YB110,SUPERVISION/MANAGEMENT SPECIAL,ELECTRICITY,1120,09-Oct-19,160066,12.8,BRITISH GAS,BRI040
EFDC,YB110,SUPERVISION/MANAGEMENT SPECIAL,ELECTRICITY,1120,09-Oct-19,160066,34.75,BRITISH GAS,BRI040
EFDC,YB110,SUPERVISION/MANAGEMENT SPECIAL,ELECTRICITY,1120,09-Oct-19,160066,55.05,BRITISH GAS,BRI040
EFDC,YB110,SUPERVISION/MANAGEMENT SPECIAL,ELECTRICITY,1120,09-Oct-19,160066,10.04,BRITISH GAS,BRI040
EFDC,YB110,SUPERVISION/MANAGEMENT SPECIAL,ELECTRICITY,1120,09-Oct-19,160066,9.14,BRITISH GAS,BRI040
EFDC,YB110,SUPERVISION/MANAGEMENT SPECIAL,ELECTRICITY,1120,09-Oct-19,160066,5.66,BRITISH GAS,BRI040
EFDC,YB110,SUPERVISION/MANAGEMENT SPECIAL,ELECTRICITY,1120,09-Oct-19,160066,10.02,BRITISH GAS,BRI040
EFDC,YB110,SUPERVISION/MANAGEMENT SPECIAL,ELECTRICITY,1120,09-Oct-19,160066,13.66,BRITISH GAS,BRI040
EFDC,YB110,SUPERVISION/MANAGEMENT SPECIAL,ELECTRICITY,1120,09-Oct-19,160066,25.17,BRITISH GAS,BRI040
EFDC,YB110,SUPERVISION/MANAGEMENT SPECIAL,ELECTRICITY,1120,09-Oct-19,160066,28.34,BRITISH GAS,BRI040
EFDC,YB110,SUPERVISION/MANAGEMENT SPECIAL,ELECTRICITY,1120,09-Oct-19,160066,16,BRITISH GAS,BRI040
EFDC,YB110,SUPERVISION/MANAGEMENT SPECIAL,ELECTRICITY,1120,09-Oct-19,160066,10.12,BRITISH GAS,BRI040
EFDC,YB110,SUPERVISION/MANAGEMENT SPECIAL,ELECTRICITY,1120,09-Oct-19,160066,15.35,BRITISH GAS,BRI040
EFDC,YB110,SUPERVISION/MANAGEMENT SPECIAL,ELECTRICITY,1120,09-Oct-19,160066,39.95,BRITISH GAS,BRI040
EFDC,YB110,SUPERVISION/MANAGEMENT SPECIAL,ELECTRICITY,1120,09-Oct-19,160066,35.78,BRITISH GAS,BRI040
EFDC,YB110,SUPERVISION/MANAGEMENT SPECIAL,ELECTRICITY,1120,09-Oct-19,160066,6.64,BRITISH GAS,BRI040
EFDC,YB110,SUPERVISION/MANAGEMENT SPECIAL,ELECTRICITY,1120,09-Oct-19,160066,23.4,BRITISH GAS,BRI040
EFDC,YB110,SUPERVISION/MANAGEMENT SPECIAL,ELECTRICITY,1120,09-Oct-19,160066,8.12,BRITISH GAS,BRI040
EFDC,YB110,SUPERVISION/MANAGEMENT SPECIAL,ELECTRICITY,1120,09-Oct-19,160066,20.62,BRITISH GAS,BRI040
EFDC,YB110,SUPERVISION/MANAGEMENT SPECIAL,ELECTRICITY,1120,09-Oct-19,160066,8.12,BRITISH GAS,BRI040
EFDC,YB110,SUPERVISION/MANAGEMENT SPECIAL,ELECTRICITY,1120,09-Oct-19,160066,40.69,BRITISH GAS,BRI040
EFDC,YB110,SUPERVISION/MANAGEMENT SPECIAL,ELECTRICITY,1120,09-Oct-19,160066,28.52,BRITISH GAS,BRI040
EFDC,YB110,SUPERVISION/MANAGEMENT SPECIAL,ELECTRICITY,1120,09-Oct-19,160066,25.5,BRITISH GAS,BRI040
EFDC,YB110,SUPERVISION/MANAGEMENT SPECIAL,ELECTRICITY,1120,09-Oct-19,160066,38.63,BRITISH GAS,BRI040
EFDC,YB110,SUPERVISION/MANAGEMENT SPECIAL,ELECTRICITY,1120,09-Oct-19,160066,25.6,BRITISH GAS,BRI040
EFDC,YB110,SUPERVISION/MANAGEMENT SPECIAL,ELECTRICITY,1120,09-Oct-19,160066,9.79,BRITISH GAS,BRI040
EFDC,YB110,SUPERVISION/MANAGEMENT SPECIAL,ELECTRICITY,1120,09-Oct-19,160066,15.85,BRITISH GAS,BRI040
EFDC,YB110,SUPERVISION/MANAGEMENT SPECIAL,ELECTRICITY,1120,09-Oct-19,160066,11.62,BRITISH GAS,BRI040
EFDC,YB110,SUPERVISION/MANAGEMENT SPECIAL,ELECTRICITY,1120,09-Oct-19,160066,7.38,BRITISH GAS,BRI040
EFDC,YB110,SUPERVISION/MANAGEMENT SPECIAL,ELECTRICITY,1120,09-Oct-19,160066,4.06,BRITISH GAS,BRI040
EFDC,YB110,SUPERVISION/MANAGEMENT SPECIAL,ELECTRICITY,1120,09-Oct-19,160066,3.07,BRITISH GAS,BRI040
EFDC,YB110,SUPERVISION/MANAGEMENT SPECIAL,ELECTRICITY,1120,09-Oct-19,160066,4.34,BRITISH GAS,BRI040
EFDC,YB110,SUPERVISION/MANAGEMENT SPECIAL,ELECTRICITY,1120,09-Oct-19,160066,3.28,BRITISH GAS,BRI040
EFDC,YB110,SUPERVISION/MANAGEMENT SPECIAL,ELECTRICITY,1120,09-Oct-19,160066,23.43,BRITISH GAS,BRI040
EFDC,YB110,SUPERVISION/MANAGEMENT SPECIAL,ELECTRICITY,1120,09-Oct-19,160066,16.1,BRITISH GAS,BRI040
EFDC,YB110,SUPERVISION/MANAGEMENT SPECIAL,ELECTRICITY,1120,09-Oct-19,160066,13.66,BRITISH GAS,BRI040
EFDC,YB110,SUPERVISION/MANAGEMENT SPECIAL,ELECTRICITY,1120,09-Oct-19,160066,35.9,BRITISH GAS,BRI040
EFDC,YB110,SUPERVISION/MANAGEMENT SPECIAL,ELECTRICITY,1120,09-Oct-19,160066,15.5,BRITISH GAS,BRI040
EFDC,YB110,SUPERVISION/MANAGEMENT SPECIAL,ELECTRICITY,1120,09-Oct-19,160066,17,BRITISH GAS,BRI040
EFDC,YB110,SUPERVISION/MANAGEMENT SPECIAL,ELECTRICITY,1120,09-Oct-19,160066,11.53,BRITISH GAS,BRI040
EFDC,YB110,SUPERVISION/MANAGEMENT SPECIAL,ELECTRICITY,1120,09-Oct-19,160066,15.59,BRITISH GAS,BRI040
EFDC,YB110,SUPERVISION/MANAGEMENT SPECIAL,ELECTRICITY,1120,09-Oct-19,160066,7.13,BRITISH GAS,BRI040
EFDC,YB110,SUPERVISION/MANAGEMENT SPECIAL,ELECTRICITY,1120,09-Oct-19,160066,12.38,BRITISH GAS,BRI040
EFDC,YB110,SUPERVISION/MANAGEMENT SPECIAL,ELECTRICITY,1120,09-Oct-19,160066,16.81,BRITISH GAS,BRI040
EFDC,YB110,SUPERVISION/MANAGEMENT SPECIAL,ELECTRICITY,1120,09-Oct-19,160066,19.36,BRITISH GAS,BRI040
EFDC,YB110,SUPERVISION/MANAGEMENT SPECIAL,ELECTRICITY,1120,09-Oct-19,160066,15.98,BRITISH GAS,BRI040
EFDC,YB110,SUPERVISION/MANAGEMENT SPECIAL,ELECTRICITY,1120,09-Oct-19,160066,23.79,BRITISH GAS,BRI040
EFDC,YB110,SUPERVISION/MANAGEMENT SPECIAL,ELECTRICITY,1120,09-Oct-19,160066,18.16,BRITISH GAS,BRI040
EFDC,YB110,SUPERVISION/MANAGEMENT SPECIAL,ELECTRICITY,1120,09-Oct-19,160066,15.72,BRITISH GAS,BRI040
EFDC,YB110,SUPERVISION/MANAGEMENT SPECIAL,ELECTRICITY,1120,09-Oct-19,160066,21.76,BRITISH GAS,BRI040
EFDC,YB110,SUPERVISION/MANAGEMENT SPECIAL,ELECTRICITY,1120,09-Oct-19,160066,22.66,BRITISH GAS,BRI040
EFDC,YB110,SUPERVISION/MANAGEMENT SPECIAL,ELECTRICITY,1120,09-Oct-19,160066,15.58,BRITISH GAS,BRI040
EFDC,YB110,SUPERVISION/MANAGEMENT SPECIAL,ELECTRICITY,1120,09-Oct-19,160066,16.36,BRITISH GAS,BRI040
EFDC,YB110,SUPERVISION/MANAGEMENT SPECIAL,ELECTRICITY,1120,09-Oct-19,160066,14.43,BRITISH GAS,BRI040
EFDC,YB110,SUPERVISION/MANAGEMENT SPECIAL,ELECTRICITY,1120,09-Oct-19,160066,12.98,BRITISH GAS,BRI040
EFDC,YB110,SUPERVISION/MANAGEMENT SPECIAL,ELECTRICITY,1120,09-Oct-19,160066,15.08,BRITISH GAS,BRI040
EFDC,YB110,SUPERVISION/MANAGEMENT SPECIAL,ELECTRICITY,1120,09-Oct-19,160066,38.58,BRITISH GAS,BRI040
EFDC,YB110,SUPERVISION/MANAGEMENT SPECIAL,ELECTRICITY,1120,09-Oct-19,160066,6.64,BRITISH GAS,BRI040
EFDC,YB110,SUPERVISION/MANAGEMENT SPECIAL,ELECTRICITY,1120,09-Oct-19,160066,-8.36,BRITISH GAS,BRI040
EFDC,YB110,SUPERVISION/MANAGEMENT SPECIAL,ELECTRICITY,1120,09-Oct-19,160066,15.99,BRITISH GAS,BRI040
EFDC,YB110,SUPERVISION/MANAGEMENT SPECIAL,ELECTRICITY,1120,09-Oct-19,160066,32.99,BRITISH GAS,BRI040
EFDC,YB110,SUPERVISION/MANAGEMENT SPECIAL,ELECTRICITY,1120,09-Oct-19,160066,6.64,BRITISH GAS,BRI040
EFDC,YB110,SUPERVISION/MANAGEMENT SPECIAL,ELECTRICITY,1120,09-Oct-19,160066,14.05,BRITISH GAS,BRI040
EFDC,YB110,SUPERVISION/MANAGEMENT SPECIAL,ELECTRICITY,1120,09-Oct-19,160066,13.81,BRITISH GAS,BRI040
EFDC,YB110,SUPERVISION/MANAGEMENT SPECIAL,ELECTRICITY,1120,09-Oct-19,160066,20.74,BRITISH GAS,BRI040
EFDC,YB110,SUPERVISION/MANAGEMENT SPECIAL,ELECTRICITY,1120,09-Oct-19,160066,13.79,BRITISH GAS,BRI040
EFDC,YB110,SUPERVISION/MANAGEMENT SPECIAL,ELECTRICITY,1120,09-Oct-19,160066,9.78,BRITISH GAS,BRI040
EFDC,YB110,SUPERVISION/MANAGEMENT SPECIAL,ELECTRICITY,1120,09-Oct-19,160066,17.66,BRITISH GAS,BRI040
EFDC,YB110,SUPERVISION/MANAGEMENT SPECIAL,ELECTRICITY,1120,09-Oct-19,160066,22.06,BRITISH GAS,BRI040
EFDC,YB110,SUPERVISION/MANAGEMENT SPECIAL,ELECTRICITY,1120,09-Oct-19,160066,15.06,BRITISH GAS,BRI040
EFDC,YB110,SUPERVISION/MANAGEMENT SPECIAL,ELECTRICITY,1120,09-Oct-19,160066,6.89,BRITISH GAS,BRI040
EFDC,YB110,SUPERVISION/MANAGEMENT SPECIAL,ELECTRICITY,1120,09-Oct-19,160066,12.65,BRITISH GAS,BRI040
EFDC,YB110,SUPERVISION/MANAGEMENT SPECIAL,ELECTRICITY,1120,09-Oct-19,160066,15.08,BRITISH GAS,BRI040
EFDC,YB110,SUPERVISION/MANAGEMENT SPECIAL,ELECTRICITY,1120,09-Oct-19,160066,12.38,BRITISH GAS,BRI040
EFDC,YB110,SUPERVISION/MANAGEMENT SPECIAL,ELECTRICITY,1120,09-Oct-19,160066,11.05,BRITISH GAS,BRI040
EFDC,YB110,SUPERVISION/MANAGEMENT SPECIAL,ELECTRICITY,1120,09-Oct-19,160066,8.12,BRITISH GAS,BRI040
EFDC,YB110,SUPERVISION/MANAGEMENT SPECIAL,ELECTRICITY,1120,09-Oct-19,160066,31.05,BRITISH GAS,BRI040
EFDC,YB110,SUPERVISION/MANAGEMENT SPECIAL,ELECTRICITY,1120,09-Oct-19,160066,6.64,BRITISH GAS,BRI040
EFDC,YB110,SUPERVISION/MANAGEMENT SPECIAL,ELECTRICITY,1120,09-Oct-19,160066,9.84,BRITISH GAS,BRI040
EFDC,YB110,SUPERVISION/MANAGEMENT SPECIAL,ELECTRICITY,1120,09-Oct-19,160066,7.13,BRITISH GAS,BRI040
EFDC,YB110,SUPERVISION/MANAGEMENT SPECIAL,ELECTRICITY,1120,09-Oct-19,160066,6.64,BRITISH GAS,BRI040
EFDC,YB110,SUPERVISION/MANAGEMENT SPECIAL,ELECTRICITY,1120,09-Oct-19,160066,11.48,BRITISH GAS,BRI040
EFDC,YB110,SUPERVISION/MANAGEMENT SPECIAL,ELECTRICITY,1120,09-Oct-19,160066,18.92,BRITISH GAS,BRI040
EFDC,YB110,SUPERVISION/MANAGEMENT SPECIAL,ELECTRICITY,1120,09-Oct-19,160066,18.24,BRITISH GAS,BRI040
EFDC,YB110,SUPERVISION/MANAGEMENT SPECIAL,ELECTRICITY,1120,09-Oct-19,160066,47.16,BRITISH GAS,BRI040
EFDC,YB110,SUPERVISION/MANAGEMENT SPECIAL,ELECTRICITY,1120,09-Oct-19,160066,-16.31,BRITISH GAS,BRI040
EFDC,YB110,SUPERVISION/MANAGEMENT SPECIAL,ELECTRICITY,1120,09-Oct-19,160066,-17.4,BRITISH GAS,BRI040
EFDC,YB110,SUPERVISION/MANAGEMENT SPECIAL,ELECTRICITY,1120,09-Oct-19,160066,-12.96,BRITISH GAS,BRI040
EFDC,YB110,SUPERVISION/MANAGEMENT SPECIAL,ELECTRICITY,1120,09-Oct-19,160066,-16.75,BRITISH GAS,BRI040
EFDC,YB110,SUPERVISION/MANAGEMENT SPECIAL,ELECTRICITY,1120,09-Oct-19,160066,-13.37,BRITISH GAS,BRI040
EFDC,YB110,SUPERVISION/MANAGEMENT SPECIAL,ELECTRICITY,1120,09-Oct-19,160066,-33.14,BRITISH GAS,BRI040
EFDC,YB110,SUPERVISION/MANAGEMENT SPECIAL,ELECTRICITY,1120,09-Oct-19,160066,74.88,BRITISH GAS,BRI040
EFDC,YB110,SUPERVISION/MANAGEMENT SPECIAL,ELECTRICITY,1120,09-Oct-19,160066,24.03,BRITISH GAS,BRI040
EFDC,YB110,SUPERVISION/MANAGEMENT SPECIAL,ELECTRICITY,1120,09-Oct-19,160066,32.24,BRITISH GAS,BRI040
EFDC,YB110,SUPERVISION/MANAGEMENT SPECIAL,ELECTRICITY,1120,09-Oct-19,160066,15.39,BRITISH GAS,BRI040
EFDC,YB110,SUPERVISION/MANAGEMENT SPECIAL,ELECTRICITY,1120,09-Oct-19,160066,12.96,BRITISH GAS,BRI040
EFDC,YB110,SUPERVISION/MANAGEMENT SPECIAL,ELECTRICITY,1120,09-Oct-19,160066,13.9,BRITISH GAS,BRI040
EFDC,YB110,SUPERVISION/MANAGEMENT SPECIAL,ELECTRICITY,1120,09-Oct-19,160066,36.35,BRITISH GAS,BRI040
EFDC,YB110,SUPERVISION/MANAGEMENT SPECIAL,ELECTRICITY,1120,09-Oct-19,160066,14.05,BRITISH GAS,BRI040
EFDC,YB110,SUPERVISION/MANAGEMENT SPECIAL,ELECTRICITY,1120,09-Oct-19,160066,15.58,BRITISH GAS,BRI040
EFDC,YB110,SUPERVISION/MANAGEMENT SPECIAL,ELECTRICITY,1120,09-Oct-19,160066,18.11,BRITISH GAS,BRI040
EFDC,YB110,SUPERVISION/MANAGEMENT SPECIAL,ELECTRICITY,1120,09-Oct-19,160066,14.03,BRITISH GAS,BRI040
EFDC,YB110,SUPERVISION/MANAGEMENT SPECIAL,ELECTRICITY,1120,09-Oct-19,160066,21.55,BRITISH GAS,BRI040
EFDC,YB110,SUPERVISION/MANAGEMENT SPECIAL,ELECTRICITY,1120,09-Oct-19,160066,13.69,BRITISH GAS,BRI040
EFDC,YB110,SUPERVISION/MANAGEMENT SPECIAL,ELECTRICITY,1120,09-Oct-19,160066,16.01,BRITISH GAS,BRI040
EFDC,YB110,SUPERVISION/MANAGEMENT SPECIAL,ELECTRICITY,1120,09-Oct-19,160066,13.85,BRITISH GAS,BRI040
EFDC,YB110,SUPERVISION/MANAGEMENT SPECIAL,ELECTRICITY,1120,09-Oct-19,160066,13.82,BRITISH GAS,BRI040
EFDC,YB110,SUPERVISION/MANAGEMENT SPECIAL,ELECTRICITY,1120,09-Oct-19,160066,18.83,BRITISH GAS,BRI040
EFDC,YB110,SUPERVISION/MANAGEMENT SPECIAL,ELECTRICITY,1120,09-Oct-19,160066,26.23,BRITISH GAS,BRI040
EFDC,YB110,SUPERVISION/MANAGEMENT SPECIAL,ELECTRICITY,1120,09-Oct-19,160066,10.57,BRITISH GAS,BRI040
EFDC,YB110,SUPERVISION/MANAGEMENT SPECIAL,ELECTRICITY,1120,09-Oct-19,160066,21.87,BRITISH GAS,BRI040
EFDC,YB110,SUPERVISION/MANAGEMENT SPECIAL,ELECTRICITY,1120,09-Oct-19,160066,22.85,BRITISH GAS,BRI040
EFDC,YB110,SUPERVISION/MANAGEMENT SPECIAL,ELECTRICITY,1120,09-Oct-19,160066,11.29,BRITISH GAS,BRI040
EFDC,YB110,SUPERVISION/MANAGEMENT SPECIAL,ELECTRICITY,1120,09-Oct-19,160066,40.8,BRITISH GAS,BRI040
EFDC,YB110,SUPERVISION/MANAGEMENT SPECIAL,ELECTRICITY,1120,09-Oct-19,160066,21.48,BRITISH GAS,BRI040
EFDC,YB110,SUPERVISION/MANAGEMENT SPECIAL,ELECTRICITY,1120,09-Oct-19,160066,19.65,BRITISH GAS,BRI040
EFDC,YB110,SUPERVISION/MANAGEMENT SPECIAL,ELECTRICITY,1120,09-Oct-19,160066,22.2,BRITISH GAS,BRI040
EFDC,YB110,SUPERVISION/MANAGEMENT SPECIAL,ELECTRICITY,1120,09-Oct-19,160066,15.51,BRITISH GAS,BRI040
EFDC,YB110,SUPERVISION/MANAGEMENT SPECIAL,ELECTRICITY,1120,09-Oct-19,160066,12.71,BRITISH GAS,BRI040
EFDC,YB110,SUPERVISION/MANAGEMENT SPECIAL,ELECTRICITY,1120,09-Oct-19,160066,12.39,BRITISH GAS,BRI040
EFDC,YB110,SUPERVISION/MANAGEMENT SPECIAL,ELECTRICITY,1120,09-Oct-19,160066,13.96,BRITISH GAS,BRI040
EFDC,YB110,SUPERVISION/MANAGEMENT SPECIAL,ELECTRICITY,1120,09-Oct-19,160066,11.71,BRITISH GAS,BRI040
EFDC,YB110,SUPERVISION/MANAGEMENT SPECIAL,ELECTRICITY,1120,09-Oct-19,160066,14.35,BRITISH GAS,BRI040
EFDC,YB110,SUPERVISION/MANAGEMENT SPECIAL,ELECTRICITY,1120,09-Oct-19,160066,25.91,BRITISH GAS,BRI040
EFDC,YB110,SUPERVISION/MANAGEMENT SPECIAL,ELECTRICITY,1120,09-Oct-19,160066,11.82,BRITISH GAS,BRI040
EFDC,YB110,SUPERVISION/MANAGEMENT SPECIAL,ELECTRICITY,1120,09-Oct-19,160066,12.4,BRITISH GAS,BRI040
EFDC,YB110,SUPERVISION/MANAGEMENT SPECIAL,ELECTRICITY,1120,09-Oct-19,160066,12.93,BRITISH GAS,BRI040
EFDC,YB110,SUPERVISION/MANAGEMENT SPECIAL,ELECTRICITY,1120,09-Oct-19,160066,15.54,BRITISH GAS,BRI040
EFDC,YB110,SUPERVISION/MANAGEMENT SPECIAL,ELECTRICITY,1120,09-Oct-19,160066,11.86,BRITISH GAS,BRI040
EFDC,YB110,SUPERVISION/MANAGEMENT SPECIAL,ELECTRICITY,1120,09-Oct-19,160066,15.39,BRITISH GAS,BRI040
EFDC,YB110,SUPERVISION/MANAGEMENT SPECIAL,ELECTRICITY,1120,09-Oct-19,160066,19.86,BRITISH GAS,BRI040
EFDC,YB110,SUPERVISION/MANAGEMENT SPECIAL,ELECTRICITY,1120,09-Oct-19,160066,12.36,BRITISH GAS,BRI040
EFDC,YB110,SUPERVISION/MANAGEMENT SPECIAL,ELECTRICITY,1120,09-Oct-19,160066,16.58,BRITISH GAS,BRI040
EFDC,YB110,SUPERVISION/MANAGEMENT SPECIAL,ELECTRICITY,1120,09-Oct-19,160066,10.73,BRITISH GAS,BRI040
EFDC,YB110,SUPERVISION/MANAGEMENT SPECIAL,ELECTRICITY,1120,09-Oct-19,160066,17.4,BRITISH GAS,BRI040
EFDC,YB110,SUPERVISION/MANAGEMENT SPECIAL,ELECTRICITY,1120,09-Oct-19,160066,53.84,BRITISH GAS,BRI040
EFDC,YB110,SUPERVISION/MANAGEMENT SPECIAL,ELECTRICITY,1120,09-Oct-19,160066,12.55,BRITISH GAS,BRI040
EFDC,YB110,SUPERVISION/MANAGEMENT SPECIAL,ELECTRICITY,1120,09-Oct-19,160066,17.31,BRITISH GAS,BRI040
EFDC,YB110,SUPERVISION/MANAGEMENT SPECIAL,ELECTRICITY,1120,09-Oct-19,160066,12.13,BRITISH GAS,BRI040
EFDC,YB110,SUPERVISION/MANAGEMENT SPECIAL,ELECTRICITY,1120,09-Oct-19,160066,15.8,BRITISH GAS,BRI040
EFDC,YB110,SUPERVISION/MANAGEMENT SPECIAL,ELECTRICITY,1120,09-Oct-19,160066,14.4,BRITISH GAS,BRI040
EFDC,YB110,SUPERVISION/MANAGEMENT SPECIAL,ELECTRICITY,1120,09-Oct-19,160066,7.1,BRITISH GAS,BRI040
EFDC,YB110,SUPERVISION/MANAGEMENT SPECIAL,ELECTRICITY,1120,09-Oct-19,160066,7.89,BRITISH GAS,BRI040
EFDC,YB110,SUPERVISION/MANAGEMENT SPECIAL,ELECTRICITY,1120,09-Oct-19,160066,12.37,BRITISH GAS,BRI040
EFDC,YB110,SUPERVISION/MANAGEMENT SPECIAL,ELECTRICITY,1120,09-Oct-19,160066,12.98,BRITISH GAS,BRI040
EFDC,YB110,SUPERVISION/MANAGEMENT SPECIAL,ELECTRICITY,1120,09-Oct-19,160066,16.41,BRITISH GAS,BRI040
EFDC,YB110,SUPERVISION/MANAGEMENT SPECIAL,ELECTRICITY,1120,09-Oct-19,160066,14.71,BRITISH GAS,BRI040
EFDC,YB110,SUPERVISION/MANAGEMENT SPECIAL,ELECTRICITY,1120,09-Oct-19,160066,-19.66,BRITISH GAS,BRI040
EFDC,YB110,SUPERVISION/MANAGEMENT SPECIAL,ELECTRICITY,1120,09-Oct-19,160066,-18.76,BRITISH GAS,BRI040
EFDC,YB110,SUPERVISION/MANAGEMENT SPECIAL,ELECTRICITY,1120,09-Oct-19,160066,-17.44,BRITISH GAS,BRI040
EFDC,YB110,SUPERVISION/MANAGEMENT SPECIAL,ELECTRICITY,1120,09-Oct-19,160066,-18.49,BRITISH GAS,BRI040
EFDC,YB110,SUPERVISION/MANAGEMENT SPECIAL,ELECTRICITY,1120,09-Oct-19,160066,17.42,BRITISH GAS,BRI040
EFDC,YB110,SUPERVISION/MANAGEMENT SPECIAL,ELECTRICITY,1120,09-Oct-19,160066,11.36,BRITISH GAS,BRI040
EFDC,YB110,SUPERVISION/MANAGEMENT SPECIAL,ELECTRICITY,1120,09-Oct-19,160066,11.15,BRITISH GAS,BRI040
EFDC,YB110,SUPERVISION/MANAGEMENT SPECIAL,ELECTRICITY,1120,09-Oct-19,160066,15.38,BRITISH GAS,BRI040
EFDC,YB110,SUPERVISION/MANAGEMENT SPECIAL,ELECTRICITY,1120,09-Oct-19,160066,7.62,BRITISH GAS,BRI040
EFDC,YB110,SUPERVISION/MANAGEMENT SPECIAL,ELECTRICITY,1120,09-Oct-19,160066,12.06,BRITISH GAS,BRI040
EFDC,YB110,SUPERVISION/MANAGEMENT SPECIAL,ELECTRICITY,1120,09-Oct-19,160066,18.59,BRITISH GAS,BRI040
EFDC,YB110,SUPERVISION/MANAGEMENT SPECIAL,ELECTRICITY,1120,09-Oct-19,160066,7.62,BRITISH GAS,BRI040
EFDC,YB110,SUPERVISION/MANAGEMENT SPECIAL,ELECTRICITY,1120,09-Oct-19,160066,10.47,BRITISH GAS,BRI040
EFDC,YB110,SUPERVISION/MANAGEMENT SPECIAL,ELECTRICITY,1120,09-Oct-19,160066,16.17,BRITISH GAS,BRI040
EFDC,YB110,SUPERVISION/MANAGEMENT SPECIAL,ELECTRICITY,1120,09-Oct-19,160066,5.65,BRITISH GAS,BRI040
EFDC,YB110,SUPERVISION/MANAGEMENT SPECIAL,ELECTRICITY,1120,09-Oct-19,160066,43.74,BRITISH GAS,BRI040
EFDC,YB110,SUPERVISION/MANAGEMENT SPECIAL,ELECTRICITY,1120,09-Oct-19,160066,18.21,BRITISH GAS,BRI040
EFDC,YB110,SUPERVISION/MANAGEMENT SPECIAL,ELECTRICITY,1120,09-Oct-19,160066,18.1,BRITISH GAS,BRI040
EFDC,YB110,SUPERVISION/MANAGEMENT SPECIAL,ELECTRICITY,1120,09-Oct-19,160066,11.57,BRITISH GAS,BRI040
EFDC,YB110,SUPERVISION/MANAGEMENT SPECIAL,ELECTRICITY,1120,09-Oct-19,160066,28.22,BRITISH GAS,BRI040
EFDC,YB110,SUPERVISION/MANAGEMENT SPECIAL,ELECTRICITY,1120,09-Oct-19,160066,13.21,BRITISH GAS,BRI040
EFDC,YB110,SUPERVISION/MANAGEMENT SPECIAL,ELECTRICITY,1120,09-Oct-19,160066,16.1,BRITISH GAS,BRI040
EFDC,YB110,SUPERVISION/MANAGEMENT SPECIAL,ELECTRICITY,1120,09-Oct-19,160066,12.07,BRITISH GAS,BRI040
EFDC,YB110,SUPERVISION/MANAGEMENT SPECIAL,ELECTRICITY,1120,09-Oct-19,160066,18.97,BRITISH GAS,BRI040
EFDC,YB110,SUPERVISION/MANAGEMENT SPECIAL,ELECTRICITY,1120,09-Oct-19,160066,65.38,BRITISH GAS,BRI040
EFDC,YB110,SUPERVISION/MANAGEMENT SPECIAL,ELECTRICITY,1120,09-Oct-19,160066,8.23,BRITISH GAS,BRI040
EFDC,YB110,SUPERVISION/MANAGEMENT SPECIAL,ELECTRICITY,1120,09-Oct-19,160066,17.83,BRITISH GAS,BRI040
EFDC,YB110,SUPERVISION/MANAGEMENT SPECIAL,ELECTRICITY,1120,09-Oct-19,160066,28.34,BRITISH GAS,BRI040
EFDC,YB110,SUPERVISION/MANAGEMENT SPECIAL,ELECTRICITY,1120,09-Oct-19,160066,14.62,BRITISH GAS,BRI040
EFDC,YB110,SUPERVISION/MANAGEMENT SPECIAL,ELECTRICITY,1120,09-Oct-19,160066,101.28,BRITISH GAS,BRI040
EFDC,YB110,SUPERVISION/MANAGEMENT SPECIAL,ELECTRICITY,1120,09-Oct-19,160066,10.48,BRITISH GAS,BRI040
EFDC,YB110,SUPERVISION/MANAGEMENT SPECIAL,ELECTRICITY,1120,09-Oct-19,160066,21.63,BRITISH GAS,BRI040
EFDC,YB110,SUPERVISION/MANAGEMENT SPECIAL,ELECTRICITY,1120,09-Oct-19,160066,22.35,BRITISH GAS,BRI040
EFDC,YB110,SUPERVISION/MANAGEMENT SPECIAL,ELECTRICITY,1120,09-Oct-19,160066,9.14,BRITISH GAS,BRI040
EFDC,YB110,SUPERVISION/MANAGEMENT SPECIAL,ELECTRICITY,1120,09-Oct-19,160066,29.86,BRITISH GAS,BRI040
EFDC,YB110,SUPERVISION/MANAGEMENT SPECIAL,ELECTRICITY,1120,09-Oct-19,160066,49.44,BRITISH GAS,BRI040
EFDC,YB110,SUPERVISION/MANAGEMENT SPECIAL,ELECTRICITY,1120,09-Oct-19,160066,11.6,BRITISH GAS,BRI040
EFDC,YB110,SUPERVISION/MANAGEMENT SPECIAL,ELECTRICITY,1120,09-Oct-19,160066,8.81,BRITISH GAS,BRI040
EFDC,YB110,SUPERVISION/MANAGEMENT SPECIAL,ELECTRICITY,1120,09-Oct-19,160066,14.25,BRITISH GAS,BRI040
EFDC,YB110,SUPERVISION/MANAGEMENT SPECIAL,ELECTRICITY,1120,09-Oct-19,160066,11.65,BRITISH GAS,BRI040
EFDC,YB110,SUPERVISION/MANAGEMENT SPECIAL,ELECTRICITY,1120,09-Oct-19,160066,14.19,BRITISH GAS,BRI040
EFDC,YB110,SUPERVISION/MANAGEMENT SPECIAL,ELECTRICITY,1120,09-Oct-19,160066,15.98,BRITISH GAS,BRI040
EFDC,YB110,SUPERVISION/MANAGEMENT SPECIAL,ELECTRICITY,1120,09-Oct-19,160066,78.62,BRITISH GAS,BRI040
EFDC,YB110,SUPERVISION/MANAGEMENT SPECIAL,ELECTRICITY,1120,09-Oct-19,160066,117.01,BRITISH GAS,BRI040
EFDC,YB110,SUPERVISION/MANAGEMENT SPECIAL,ELECTRICITY,1120,09-Oct-19,160066,24.67,BRITISH GAS,BRI040
EFDC,YB110,SUPERVISION/MANAGEMENT SPECIAL,ELECTRICITY,1120,09-Oct-19,160066,13.67,BRITISH GAS,BRI040
EFDC,YB110,SUPERVISION/MANAGEMENT SPECIAL,ELECTRICITY,1120,09-Oct-19,160066,21.14,BRITISH GAS,BRI040
EFDC,YB110,SUPERVISION/MANAGEMENT SPECIAL,ELECTRICITY,1120,09-Oct-19,160066,26.79,BRITISH GAS,BRI040
EFDC,YB110,SUPERVISION/MANAGEMENT SPECIAL,ELECTRICITY,1120,09-Oct-19,160066,21.81,BRITISH GAS,BRI040
EFDC,YB110,SUPERVISION/MANAGEMENT SPECIAL,ELECTRICITY,1120,09-Oct-19,160066,13.29,BRITISH GAS,BRI040
EFDC,YB110,SUPERVISION/MANAGEMENT SPECIAL,ELECTRICITY,1120,09-Oct-19,160066,14.39,BRITISH GAS,BRI040
EFDC,YB110,SUPERVISION/MANAGEMENT SPECIAL,ELECTRICITY,1120,09-Oct-19,160066,14.32,BRITISH GAS,BRI040
EFDC,YB110,SUPERVISION/MANAGEMENT SPECIAL,ELECTRICITY,1120,09-Oct-19,160066,16.84,BRITISH GAS,BRI040
EFDC,YB110,SUPERVISION/MANAGEMENT SPECIAL,ELECTRICITY,1120,09-Oct-19,160066,14.64,BRITISH GAS,BRI040
EFDC,YB110,SUPERVISION/MANAGEMENT SPECIAL,ELECTRICITY,1120,09-Oct-19,160066,20.59,BRITISH GAS,BRI040
EFDC,YB110,SUPERVISION/MANAGEMENT SPECIAL,ELECTRICITY,1120,09-Oct-19,160066,19.83,BRITISH GAS,BRI040
EFDC,YB110,SUPERVISION/MANAGEMENT SPECIAL,ELECTRICITY,1120,09-Oct-19,160066,14.47,BRITISH GAS,BRI040
EFDC,YB110,SUPERVISION/MANAGEMENT SPECIAL,ELECTRICITY,1120,09-Oct-19,160066,19.72,BRITISH GAS,BRI040
EFDC,YB110,SUPERVISION/MANAGEMENT SPECIAL,ELECTRICITY,1120,09-Oct-19,160066,23.12,BRITISH GAS,BRI040
EFDC,YB110,SUPERVISION/MANAGEMENT SPECIAL,ELECTRICITY,1120,09-Oct-19,160066,17.64,BRITISH GAS,BRI040
EFDC,YB110,SUPERVISION/MANAGEMENT SPECIAL,ELECTRICITY,1120,09-Oct-19,160066,-54.81,BRITISH GAS,BRI040
EFDC,YB110,SUPERVISION/MANAGEMENT SPECIAL,ELECTRICITY,1120,09-Oct-19,160066,18.76,BRITISH GAS,BRI040
EFDC,YB110,SUPERVISION/MANAGEMENT SPECIAL,ELECTRICITY,1120,09-Oct-19,160066,12.8,BRITISH GAS,BRI040
EFDC,YB110,SUPERVISION/MANAGEMENT SPECIAL,ELECTRICITY,1120,09-Oct-19,160066,10.96,BRITISH GAS,BRI040
EFDC,YB110,SUPERVISION/MANAGEMENT SPECIAL,ELECTRICITY,1120,09-Oct-19,160066,23.4,BRITISH GAS,BRI040
EFDC,YB110,SUPERVISION/MANAGEMENT SPECIAL,ELECTRICITY,1120,09-Oct-19,160066,12.96,BRITISH GAS,BRI040
EFDC,YB110,SUPERVISION/MANAGEMENT SPECIAL,ELECTRICITY,1120,09-Oct-19,160066,14.54,BRITISH GAS,BRI040
EFDC,YB110,SUPERVISION/MANAGEMENT SPECIAL,ELECTRICITY,1120,09-Oct-19,160066,15.52,BRITISH GAS,BRI040
EFDC,YB110,SUPERVISION/MANAGEMENT SPECIAL,ELECTRICITY,1120,09-Oct-19,160066,13.39,BRITISH GAS,BRI040
EFDC,YB110,SUPERVISION/MANAGEMENT SPECIAL,ELECTRICITY,1120,09-Oct-19,160066,15.79,BRITISH GAS,BRI040
EFDC,YB110,SUPERVISION/MANAGEMENT SPECIAL,ELECTRICITY,1120,09-Oct-19,160066,12.74,BRITISH GAS,BRI040
EFDC,YB110,SUPERVISION/MANAGEMENT SPECIAL,ELECTRICITY,1120,09-Oct-19,160066,11.82,BRITISH GAS,BRI040
EFDC,YB110,SUPERVISION/MANAGEMENT SPECIAL,ELECTRICITY,1120,09-Oct-19,160066,20.99,BRITISH GAS,BRI040
EFDC,YB110,SUPERVISION/MANAGEMENT SPECIAL,ELECTRICITY,1120,09-Oct-19,160066,16.97,BRITISH GAS,BRI040
EFDC,YB110,SUPERVISION/MANAGEMENT SPECIAL,ELECTRICITY,1120,09-Oct-19,160066,18.81,BRITISH GAS,BRI040
EFDC,YB110,SUPERVISION/MANAGEMENT SPECIAL,ELECTRICITY,1120,09-Oct-19,160066,21.87,BRITISH GAS,BRI040
EFDC,YB110,SUPERVISION/MANAGEMENT SPECIAL,ELECTRICITY,1120,09-Oct-19,160066,23.64,BRITISH GAS,BRI040
EFDC,YB110,SUPERVISION/MANAGEMENT SPECIAL,ELECTRICITY,1120,09-Oct-19,160066,-21.27,BRITISH GAS,BRI040
EFDC,YB110,SUPERVISION/MANAGEMENT SPECIAL,ELECTRICITY,1120,09-Oct-19,160066,18.18,BRITISH GAS,BRI040
EFDC,YB110,SUPERVISION/MANAGEMENT SPECIAL,ELECTRICITY,1120,09-Oct-19,160066,22.53,BRITISH GAS,BRI040
EFDC,YB110,SUPERVISION/MANAGEMENT SPECIAL,ELECTRICITY,1120,09-Oct-19,160066,335.14,BRITISH GAS,BRI040
EFDC,YB110,SUPERVISION/MANAGEMENT SPECIAL,ELECTRICITY,1120,09-Oct-19,160066,13.28,BRITISH GAS,BRI040
EFDC,YB110,SUPERVISION/MANAGEMENT SPECIAL,ELECTRICITY,1120,09-Oct-19,160066,13.39,BRITISH GAS,BRI040
EFDC,YB110,SUPERVISION/MANAGEMENT SPECIAL,ELECTRICITY,1120,09-Oct-19,160066,22.13,BRITISH GAS,BRI040
EFDC,YB110,SUPERVISION/MANAGEMENT SPECIAL,ELECTRICITY,1120,09-Oct-19,160066,20.41,BRITISH GAS,BRI040
EFDC,YB110,SUPERVISION/MANAGEMENT SPECIAL,ELECTRICITY,1120,09-Oct-19,160066,13.42,BRITISH GAS,BRI040
EFDC,YB110,SUPERVISION/MANAGEMENT SPECIAL,ELECTRICITY,1120,09-Oct-19,160066,11.67,BRITISH GAS,BRI040
EFDC,YB110,SUPERVISION/MANAGEMENT SPECIAL,ELECTRICITY,1120,09-Oct-19,160066,11.73,BRITISH GAS,BRI040
EFDC,YB110,SUPERVISION/MANAGEMENT SPECIAL,ELECTRICITY,1120,09-Oct-19,160066,-57.08,BRITISH GAS,BRI040
EFDC,YB110,SUPERVISION/MANAGEMENT SPECIAL,ELECTRICITY,1120,09-Oct-19,160066,-115,BRITISH GAS,BRI040
EFDC,YB110,SUPERVISION/MANAGEMENT SPECIAL,ELECTRICITY,1120,09-Oct-19,160066,10.63,BRITISH GAS,BRI040
EFDC,YB110,SUPERVISION/MANAGEMENT SPECIAL,ELECTRICITY,1120,09-Oct-19,160066,11.72,BRITISH GAS,BRI040
EFDC,YB110,SUPERVISION/MANAGEMENT SPECIAL,ELECTRICITY,1120,09-Oct-19,160066,15.26,BRITISH GAS,BRI040
EFDC,YB110,SUPERVISION/MANAGEMENT SPECIAL,ELECTRICITY,1120,09-Oct-19,160066,-116,BRITISH GAS,BRI040
EFDC,YB110,SUPERVISION/MANAGEMENT SPECIAL,ELECTRICITY,1120,09-Oct-19,160066,14.05,BRITISH GAS,BRI040
EFDC,YB110,SUPERVISION/MANAGEMENT SPECIAL,ELECTRICITY,1120,09-Oct-19,160066,11.22,BRITISH GAS,BRI040
EFDC,YB110,SUPERVISION/MANAGEMENT SPECIAL,ELECTRICITY,1120,09-Oct-19,160066,19.53,BRITISH GAS,BRI040
EFDC,YB110,SUPERVISION/MANAGEMENT SPECIAL,ELECTRICITY,1120,09-Oct-19,160066,13.13,BRITISH GAS,BRI040
EFDC,YB110,SUPERVISION/MANAGEMENT SPECIAL,ELECTRICITY,1120,09-Oct-19,160066,16.1,BRITISH GAS,BRI040
EFDC,YB110,SUPERVISION/MANAGEMENT SPECIAL,ELECTRICITY,1120,09-Oct-19,160066,14.02,BRITISH GAS,BRI040
EFDC,YB110,SUPERVISION/MANAGEMENT SPECIAL,ELECTRICITY,1120,09-Oct-19,160066,22.03,BRITISH GAS,BRI040
EFDC,YB110,SUPERVISION/MANAGEMENT SPECIAL,ELECTRICITY,1120,09-Oct-19,160066,12.24,BRITISH GAS,BRI040
EFDC,YB110,SUPERVISION/MANAGEMENT SPECIAL,ELECTRICITY,1120,09-Oct-19,160066,26.37,BRITISH GAS,BRI040
EFDC,YB110,SUPERVISION/MANAGEMENT SPECIAL,ELECTRICITY,1120,09-Oct-19,160066,21.12,BRITISH GAS,BRI040
EFDC,YB110,SUPERVISION/MANAGEMENT SPECIAL,ELECTRICITY,1120,09-Oct-19,160066,6.83,BRITISH GAS,BRI040
EFDC,YB110,SUPERVISION/MANAGEMENT SPECIAL,ELECTRICITY,1120,09-Oct-19,160066,8.85,BRITISH GAS,BRI040
EFDC,YB110,SUPERVISION/MANAGEMENT SPECIAL,ELECTRICITY,1120,09-Oct-19,160066,16.2,BRITISH GAS,BRI040
EFDC,YB110,SUPERVISION/MANAGEMENT SPECIAL,ELECTRICITY,1120,09-Oct-19,160066,12.39,BRITISH GAS,BRI040
EFDC,YB110,SUPERVISION/MANAGEMENT SPECIAL,ELECTRICITY,1120,09-Oct-19,160066,12.71,BRITISH GAS,BRI040
EFDC,YB110,SUPERVISION/MANAGEMENT SPECIAL,ELECTRICITY,1120,09-Oct-19,160066,17.62,BRITISH GAS,BRI040
EFDC,YB110,SUPERVISION/MANAGEMENT SPECIAL,ELECTRICITY,1120,09-Oct-19,160066,11.14,BRITISH GAS,BRI040
EFDC,YB110,SUPERVISION/MANAGEMENT SPECIAL,ELECTRICITY,1120,09-Oct-19,160066,11.96,BRITISH GAS,BRI040
EFDC,YB110,SUPERVISION/MANAGEMENT SPECIAL,ELECTRICITY,1120,09-Oct-19,160066,14.78,BRITISH GAS,BRI040
EFDC,YB110,SUPERVISION/MANAGEMENT SPECIAL,ELECTRICITY,1120,09-Oct-19,160066,12.1,BRITISH GAS,BRI040
EFDC,YB110,SUPERVISION/MANAGEMENT SPECIAL,ELECTRICITY,1120,09-Oct-19,160066,12.04,BRITISH GAS,BRI040
EFDC,YB110,SUPERVISION/MANAGEMENT SPECIAL,ELECTRICITY,1120,09-Oct-19,160066,10.57,BRITISH GAS,BRI040
EFDC,YB110,SUPERVISION/MANAGEMENT SPECIAL,ELECTRICITY,1120,09-Oct-19,160066,25.93,BRITISH GAS,BRI040
EFDC,YB110,SUPERVISION/MANAGEMENT SPECIAL,ELECTRICITY,1120,09-Oct-19,160066,14.28,BRITISH GAS,BRI040
EFDC,YB140,SUPERVISION/MANAGEMENT SPECIAL,ELECTRICITY,1120,09-Oct-19,160066,21.34,BRITISH GAS,BRI040
EFDC,YB140,SUPERVISION/MANAGEMENT SPECIAL,ELECTRICITY,1120,09-Oct-19,160066,25.43,BRITISH GAS,BRI040
EFDC,YB140,SUPERVISION/MANAGEMENT SPECIAL,ELECTRICITY,1120,09-Oct-19,160066,30.87,BRITISH GAS,BRI040
EFDC,YB140,SUPERVISION/MANAGEMENT SPECIAL,ELECTRICITY,1120,09-Oct-19,160066,22.7,BRITISH GAS,BRI040
EFDC,YB140,SUPERVISION/MANAGEMENT SPECIAL,ELECTRICITY,1120,09-Oct-19,160066,22.49,BRITISH GAS,BRI040
EFDC,YB140,SUPERVISION/MANAGEMENT SPECIAL,ELECTRICITY,1120,09-Oct-19,160066,21.48,BRITISH GAS,BRI040
EFDC,YB140,SUPERVISION/MANAGEMENT SPECIAL,ELECTRICITY,1120,09-Oct-19,160066,-639.47,BRITISH GAS,BRI040
EFDC,YB140,SUPERVISION/MANAGEMENT SPECIAL,ELECTRICITY,1120,09-Oct-19,160066,36.84,BRITISH GAS,BRI040
EFDC,YB140,SUPERVISION/MANAGEMENT SPECIAL,ELECTRICITY,1120,09-Oct-19,160066,17.95,BRITISH GAS,BRI040
EFDC,YB140,SUPERVISION/MANAGEMENT SPECIAL,ELECTRICITY,1120,09-Oct-19,160066,57.32,BRITISH GAS,BRI040
EFDC,YB140,SUPERVISION/MANAGEMENT SPECIAL,ELECTRICITY,1120,09-Oct-19,160066,22.27,BRITISH GAS,BRI040
EFDC,YB140,SUPERVISION/MANAGEMENT SPECIAL,ELECTRICITY,1120,09-Oct-19,160066,22.52,BRITISH GAS,BRI040
EFDC,YB140,SUPERVISION/MANAGEMENT SPECIAL,ELECTRICITY,1120,09-Oct-19,160066,28.28,BRITISH GAS,BRI040
EFDC,YB300,SUPERVISION/MANAGEMENT SPECIAL,ELECTRICITY,1120,09-Oct-19,160066,43.16,BRITISH GAS,BRI040
EFDC,YB200,SUPERVISION/MANAGEMENT SPECIAL,ELECTRICITY,1120,09-Oct-19,160066,11.86,BRITISH GAS,BRI040
EFDC,YB140,SUPERVISION/MANAGEMENT SPECIAL,ELECTRICITY,1120,09-Oct-19,160066,18.08,BRITISH GAS,BRI040
EFDC,YB140,SUPERVISION/MANAGEMENT SPECIAL,ELECTRICITY,1120,09-Oct-19,160066,18.21,BRITISH GAS,BRI040
EFDC,YB140,SUPERVISION/MANAGEMENT SPECIAL,ELECTRICITY,1120,09-Oct-19,160066,27.48,BRITISH GAS,BRI040
EFDC,YB140,SUPERVISION/MANAGEMENT SPECIAL,ELECTRICITY,1120,09-Oct-19,160066,16.36,BRITISH GAS,BRI040
EFDC,YB110,SUPERVISION/MANAGEMENT SPECIAL,ELECTRICITY,1120,09-Oct-19,160066,11.78,BRITISH GAS,BRI040
EFDC,YB110,SUPERVISION/MANAGEMENT SPECIAL,ELECTRICITY,1120,09-Oct-19,160066,15.98,BRITISH GAS,BRI040
EFDC,YB110,SUPERVISION/MANAGEMENT SPECIAL,ELECTRICITY,1120,09-Oct-19,160066,12.93,BRITISH GAS,BRI040
EFDC,YB110,SUPERVISION/MANAGEMENT SPECIAL,ELECTRICITY,1120,09-Oct-19,160066,10.25,BRITISH GAS,BRI040
EFDC,YB110,SUPERVISION/MANAGEMENT SPECIAL,ELECTRICITY,1120,09-Oct-19,160066,11.75,BRITISH GAS,BRI040
EFDC,YB110,SUPERVISION/MANAGEMENT SPECIAL,ELECTRICITY,1120,09-Oct-19,160066,16.26,BRITISH GAS,BRI040
EFDC,YB110,SUPERVISION/MANAGEMENT SPECIAL,ELECTRICITY,1120,09-Oct-19,160066,26.48,BRITISH GAS,BRI040
EFDC,YB110,SUPERVISION/MANAGEMENT SPECIAL,ELECTRICITY,1120,09-Oct-19,160066,11.98,BRITISH GAS,BRI040
EFDC,YB110,SUPERVISION/MANAGEMENT SPECIAL,ELECTRICITY,1120,09-Oct-19,160066,40.23,BRITISH GAS,BRI040
EFDC,YB110,SUPERVISION/MANAGEMENT SPECIAL,ELECTRICITY,1120,09-Oct-19,160066,16.6,BRITISH GAS,BRI040
EFDC,YB110,SUPERVISION/MANAGEMENT SPECIAL,ELECTRICITY,1120,09-Oct-19,160066,25.97,BRITISH GAS,BRI040
EFDC,YB110,SUPERVISION/MANAGEMENT SPECIAL,ELECTRICITY,1120,09-Oct-19,160066,16.72,BRITISH GAS,BRI040
EFDC,YB110,SUPERVISION/MANAGEMENT SPECIAL,ELECTRICITY,1120,09-Oct-19,160066,18.29,BRITISH GAS,BRI040
EFDC,YB110,SUPERVISION/MANAGEMENT SPECIAL,ELECTRICITY,1120,09-Oct-19,160066,21.06,BRITISH GAS,BRI040
EFDC,YB110,SUPERVISION/MANAGEMENT SPECIAL,ELECTRICITY,1120,09-Oct-19,160066,17.33,BRITISH GAS,BRI040
EFDC,YB110,SUPERVISION/MANAGEMENT SPECIAL,ELECTRICITY,1120,09-Oct-19,160066,14.05,BRITISH GAS,BRI040
EFDC,YB110,SUPERVISION/MANAGEMENT SPECIAL,ELECTRICITY,1120,09-Oct-19,160066,23.11,BRITISH GAS,BRI040
EFDC,YB110,SUPERVISION/MANAGEMENT SPECIAL,ELECTRICITY,1120,09-Oct-19,160066,11.7,BRITISH GAS,BRI040
EFDC,YB110,SUPERVISION/MANAGEMENT SPECIAL,ELECTRICITY,1120,09-Oct-19,160066,10.69,BRITISH GAS,BRI040
EFDC,YB110,SUPERVISION/MANAGEMENT SPECIAL,ELECTRICITY,1120,09-Oct-19,160066,44.2,BRITISH GAS,BRI040
EFDC,YB110,SUPERVISION/MANAGEMENT SPECIAL,ELECTRICITY,1120,09-Oct-19,160066,15,BRITISH GAS,BRI040
EFDC,YB110,SUPERVISION/MANAGEMENT SPECIAL,ELECTRICITY,1120,09-Oct-19,160066,8.92,BRITISH GAS,BRI040
EFDC,YB110,SUPERVISION/MANAGEMENT SPECIAL,ELECTRICITY,1120,09-Oct-19,160066,18.95,BRITISH GAS,BRI040
EFDC,YB110,SUPERVISION/MANAGEMENT SPECIAL,ELECTRICITY,1120,09-Oct-19,160066,15.33,BRITISH GAS,BRI040
EFDC,YB110,SUPERVISION/MANAGEMENT SPECIAL,ELECTRICITY,1120,09-Oct-19,160066,15.2,BRITISH GAS,BRI040
EFDC,YB110,SUPERVISION/MANAGEMENT SPECIAL,ELECTRICITY,1120,09-Oct-19,160066,10.71,BRITISH GAS,BRI040
EFDC,YB110,SUPERVISION/MANAGEMENT SPECIAL,ELECTRICITY,1120,09-Oct-19,160066,17.62,BRITISH GAS,BRI040
EFDC,YB110,SUPERVISION/MANAGEMENT SPECIAL,ELECTRICITY,1120,09-Oct-19,160066,13.19,BRITISH GAS,BRI040
EFDC,YB110,SUPERVISION/MANAGEMENT SPECIAL,ELECTRICITY,1120,09-Oct-19,160066,33.21,BRITISH GAS,BRI040
EFDC,YB110,SUPERVISION/MANAGEMENT SPECIAL,ELECTRICITY,1120,09-Oct-19,160066,13.87,BRITISH GAS,BRI040
EFDC,YB110,SUPERVISION/MANAGEMENT SPECIAL,ELECTRICITY,1120,09-Oct-19,160066,11.35,BRITISH GAS,BRI040
EFDC,YB110,SUPERVISION/MANAGEMENT SPECIAL,ELECTRICITY,1120,09-Oct-19,160066,26.33,BRITISH GAS,BRI040
EFDC,YB500,SUPERVISION/MANAGEMENT SPECIAL,ELECTRICITY,1120,09-Oct-19,160066,-26.26,BRITISH GAS,BRI040
EFDC,YB500,SUPERVISION/MANAGEMENT SPECIAL,ELECTRICITY,1120,09-Oct-19,160066,17.13,BRITISH GAS,BRI040
EFDC,YB500,SUPERVISION/MANAGEMENT SPECIAL,ELECTRICITY,1120,09-Oct-19,160066,18.16,BRITISH GAS,BRI040
EFDC,YB500,SUPERVISION/MANAGEMENT SPECIAL,ELECTRICITY,1120,09-Oct-19,160066,16.75,BRITISH GAS,BRI040
EFDC,YB500,SUPERVISION/MANAGEMENT SPECIAL,ELECTRICITY,1120,09-Oct-19,160066,7.14,BRITISH GAS,BRI040
EFDC,YB500,SUPERVISION/MANAGEMENT SPECIAL,ELECTRICITY,1120,09-Oct-19,160066,6.64,BRITISH GAS,BRI040
EFDC,YB500,SUPERVISION/MANAGEMENT SPECIAL,ELECTRICITY,1120,09-Oct-19,160066,40.14,BRITISH GAS,BRI040
EFDC,YB500,SUPERVISION/MANAGEMENT SPECIAL,ELECTRICITY,1120,09-Oct-19,160066,7.89,BRITISH GAS,BRI040
EFDC,YB500,SUPERVISION/MANAGEMENT SPECIAL,ELECTRICITY,1120,09-Oct-19,160066,320.91,BRITISH GAS,BRI040
EFDC,YB500,SUPERVISION/MANAGEMENT SPECIAL,ELECTRICITY,1120,09-Oct-19,160066,33.92,BRITISH GAS,BRI040
EFDC,YB500,SUPERVISION/MANAGEMENT SPECIAL,ELECTRICITY,1120,09-Oct-19,160066,56.09,BRITISH GAS,BRI040
EFDC,YB500,SUPERVISION/MANAGEMENT SPECIAL,ELECTRICITY,1120,09-Oct-19,160066,259.41,BRITISH GAS,BRI040
EFDC,YB500,SUPERVISION/MANAGEMENT SPECIAL,ELECTRICITY,1120,09-Oct-19,160066,31.79,BRITISH GAS,BRI040
EFDC,YB500,SUPERVISION/MANAGEMENT SPECIAL,ELECTRICITY,1120,09-Oct-19,160066,8.41,BRITISH GAS,BRI040
EFDC,YB500,SUPERVISION/MANAGEMENT SPECIAL,ELECTRICITY,1120,09-Oct-19,160066,14.43,BRITISH GAS,BRI040
EFDC,YB500,SUPERVISION/MANAGEMENT SPECIAL,ELECTRICITY,1120,09-Oct-19,160066,10.09,BRITISH GAS,BRI040
EFDC,YB500,SUPERVISION/MANAGEMENT SPECIAL,ELECTRICITY,1120,09-Oct-19,160066,520.1,BRITISH GAS,BRI040
EFDC,YB500,SUPERVISION/MANAGEMENT SPECIAL,ELECTRICITY,1120,09-Oct-19,160066,6.89,BRITISH GAS,BRI040
EFDC,YB500,SUPERVISION/MANAGEMENT SPECIAL,ELECTRICITY,1120,09-Oct-19,160066,657.26,BRITISH GAS,BRI040
EFDC,YB500,SUPERVISION/MANAGEMENT SPECIAL,ELECTRICITY,1120,09-Oct-19,160066,324.52,BRITISH GAS,BRI040
EFDC,YB500,SUPERVISION/MANAGEMENT SPECIAL,ELECTRICITY,1120,09-Oct-19,160066,70.29,BRITISH GAS,BRI040
EFDC,YB500,SUPERVISION/MANAGEMENT SPECIAL,ELECTRICITY,1120,09-Oct-19,160066,171.53,BRITISH GAS,BRI040
EFDC,YB500,SUPERVISION/MANAGEMENT SPECIAL,ELECTRICITY,1120,09-Oct-19,160066,329.86,BRITISH GAS,BRI040
EFDC,YB500,SUPERVISION/MANAGEMENT SPECIAL,ELECTRICITY,1120,09-Oct-19,160066,17.81,BRITISH GAS,BRI040
EFDC,YB500,SUPERVISION/MANAGEMENT SPECIAL,ELECTRICITY,1120,09-Oct-19,160066,8.01,BRITISH GAS,BRI040
EFDC,YB500,SUPERVISION/MANAGEMENT SPECIAL,ELECTRICITY,1120,09-Oct-19,160066,6.64,BRITISH GAS,BRI040
EFDC,YB500,SUPERVISION/MANAGEMENT SPECIAL,ELECTRICITY,1120,09-Oct-19,160066,11.6,BRITISH GAS,BRI040
EFDC,YB500,SUPERVISION/MANAGEMENT SPECIAL,ELECTRICITY,1120,09-Oct-19,160066,13.97,BRITISH GAS,BRI040
EFDC,YB500,SUPERVISION/MANAGEMENT SPECIAL,ELECTRICITY,1120,09-Oct-19,160066,5.58,BRITISH GAS,BRI040
EFDC,YB520,SUPERVISION/MANAGEMENT SPECIAL,ELECTRICITY,1120,09-Oct-19,160066,231.73,BRITISH GAS,BRI040
EFDC,YB520,SUPERVISION/MANAGEMENT SPECIAL,ELECTRICITY,1120,09-Oct-19,160066,177.09,BRITISH GAS,BRI040
EFDC,TI190,LAND & PROPERTY,ELECTRICITY,1120,09-Oct-19,160066,80.96,BRITISH GAS,BRI040
EFDC,FD100,LAND DRAINAGE/SEWERAGE,ELECTRICITY,1120,09-Oct-19,160066,7.3,BRITISH GAS,BRI040
EFDC,RS301,NORTH WEALD CENTRE,ELECTRICITY,1120,09-Oct-19,160066,14.78,BRITISH GAS,BRI040
EFDC,RS302,NORTH WEALD CENTRE,ELECTRICITY,1120,09-Oct-19,160066,7.87,BRITISH GAS,BRI040
EFDC,UO130,LAND & PROPERTY,ELECTRICITY,1120,09-Oct-19,160066,19.89,BRITISH GAS,BRI040
EFDC,UO130,LAND & PROPERTY,ELECTRICITY,1120,09-Oct-19,160066,2.3,BRITISH GAS,BRI040
EFDC,UO130,LAND & PROPERTY,ELECTRICITY,1120,09-Oct-19,160066,23.17,BRITISH GAS,BRI040
EFDC,UO130,LAND & PROPERTY,ELECTRICITY,1120,09-Oct-19,160066,24.24,BRITISH GAS,BRI040
EFDC,EH112,LAND DRAINAGE/SEWERAGE,ELECTRICITY,1120,09-Oct-19,160066,-166.43,BRITISH GAS,BRI040
EFDC,35300,CONTRACT & TECH SUPPORT SERVIC,ELECTRICITY,1120,09-Oct-19,160066,68.57,BRITISH GAS,BRI040
EFDC,CH110,"MUSEUM, HERITAGE & CULTURE",ELECTRICITY,1120,09-Oct-19,160066,532.58,BRITISH GAS,BRI040
EFDC,EH112,LAND DRAINAGE/SEWERAGE,ELECTRICITY,1120,09-Oct-19,160066,56.7,BRITISH GAS,BRI040
EFDC,EH112,LAND DRAINAGE/SEWERAGE,ELECTRICITY,1120,09-Oct-19,160066,17.54,BRITISH GAS,BRI040
EFDC,EH112,LAND DRAINAGE/SEWERAGE,ELECTRICITY,1120,09-Oct-19,160066,13.33,BRITISH GAS,BRI040
EFDC,EH112,LAND DRAINAGE/SEWERAGE,ELECTRICITY,1120,09-Oct-19,160066,21.34,BRITISH GAS,BRI040
EFDC,EH112,LAND DRAINAGE/SEWERAGE,ELECTRICITY,1120,09-Oct-19,160066,109.59,BRITISH GAS,BRI040
EFDC,EH112,LAND DRAINAGE/SEWERAGE,ELECTRICITY,1120,09-Oct-19,160066,-185.01,BRITISH GAS,BRI040
EFDC,EH112,LAND DRAINAGE/SEWERAGE,ELECTRICITY,1120,09-Oct-19,160066,-179,BRITISH GAS,BRI040
EFDC,EH160,OTHER ACTIVITIES,ELECTRICITY,1120,09-Oct-19,160066,23.06,BRITISH GAS,BRI040
EFDC,EH160,OTHER ACTIVITIES,ELECTRICITY,1120,09-Oct-19,160066,54.43,BRITISH GAS,BRI040
EFDC,EH160,OTHER ACTIVITIES,ELECTRICITY,1120,09-Oct-19,160066,32.61,BRITISH GAS,BRI040
EFDC,EH160,OTHER ACTIVITIES,ELECTRICITY,1120,09-Oct-19,160066,33.39,BRITISH GAS,BRI040
EFDC,EH160,OTHER ACTIVITIES,ELECTRICITY,1120,09-Oct-19,160066,28.67,BRITISH GAS,BRI040
EFDC,EH112,LAND DRAINAGE/SEWERAGE,ELECTRICITY,1120,09-Oct-19,160066,-204.69,BRITISH GAS,BRI040
EFDC,UO130,LAND & PROPERTY,ELECTRICITY,1120,09-Oct-19,160066,14.29,BRITISH GAS,BRI040
EFDC,27050,ACCOMMODATION,ELECTRICITY,1120,09-Oct-19,160066,45.28,BRITISH GAS,BRI040
EFDC,23130,ACCOMMODATION,ELECTRICITY,1120,09-Oct-19,160066,95.58,BRITISH GAS,BRI040
EFDC,23140,ACCOMMODATION,ELECTRICITY,1120,09-Oct-19,160066,177.43,BRITISH GAS,BRI040
EFDC,23140,ACCOMMODATION,ELECTRICITY,1120,09-Oct-19,160066,186.87,BRITISH GAS,BRI040
EFDC,YB620,SUPERVISION/MANAGEMENT SPECIAL,ELECTRICITY,1120,09-Oct-19,160066,428.32,BRITISH GAS,BRI040
EFDC,27110,ACCOMMODATION,ELECTRICITY,1120,09-Oct-19,160066,69.57,BRITISH GAS,BRI040
EFDC,27110,ACCOMMODATION,ELECTRICITY,1120,09-Oct-19,160066,68.67,BRITISH GAS,BRI040
EFDC,27110,ACCOMMODATION,ELECTRICITY,1120,09-Oct-19,160066,94.89,BRITISH GAS,BRI040
EFDC,27150,"COMMUNITY, HEALTH & WELLBEING",ELECTRICITY,1120,09-Oct-19,160066,447.39,BRITISH GAS,BRI040
EFDC,YB110,SUPERVISION/MANAGEMENT SPECIAL,ELECTRICITY,1120,09-Oct-19,160066,14.32,BRITISH GAS,BRI040
EFDC,33075,OTHER ACTIVITIES,ANNUAL SUPPORT /  LICENSES,3872,09-Oct-19,158705,750,CAPITA BUSINESS SERVICES LTD,CAP004
EFDC,EI131,LOCAL PLAN IMPLEMENTATION,TRAINING EXPENSES,0310,09-Oct-19,158426,1003,CHELMSFORD & WEST ESSEX TRAINING GROUP,CHE015
EFDC,RM400,PLANNED & CYCLICAL MAINTENANCE,BUILDING MAINTENANCE,1010,09-Oct-19,160203,872.7,EDMUNDSON ELECTRICAL LTD,EDM001
EFDC,RM400,PLANNED & CYCLICAL MAINTENANCE,BUILDING MAINTENANCE,1010,09-Oct-19,160203,454.56,EDMUNDSON ELECTRICAL LTD,EDM001
EFDC,34110,HOUSING PROP SUPPORT SERVICES,BANKING AND CASH COLLECTION,3440,09-Oct-19,158767,72.59,CONTRACT SECURITY SERVICES LTD,CON033
EFDC,YB620,SUPERVISION/MANAGEMENT SPECIAL,BANKING AND CASH COLLECTION,3440,09-Oct-19,158767,72.58,CONTRACT SECURITY SERVICES LTD,CON033
EFDC,33020,OTHER ACTIVITIES,BANKING AND CASH COLLECTION,3440,09-Oct-19,158767,362.92,CONTRACT SECURITY SERVICES LTD,CON033
EFDC,TO100,LAND & PROPERTY,BANKING AND CASH COLLECTION,3440,09-Oct-19,158767,72.58,CONTRACT SECURITY SERVICES LTD,CON033
EFDC,CH110,"MUSEUM, HERITAGE & CULTURE",BANKING AND CASH COLLECTION,3440,09-Oct-19,158767,36.29,CONTRACT SECURITY SERVICES LTD,CON033
EFDC,33020,OTHER ACTIVITIES,BANKING AND CASH COLLECTION,3440,09-Oct-19,158767,725.83,CONTRACT SECURITY SERVICES LTD,CON033
EFDC,27050,ACCOMMODATION,GAS,1110,09-Oct-19,160068,969.17,CORONA ENERGY RETAIL 4 LTD,COR015
EFDC,YB620,SUPERVISION/MANAGEMENT SPECIAL,GAS,1110,09-Oct-19,160074,835.34,CORONA ENERGY RETAIL 4 LTD,COR015
EFDC,YB500,SUPERVISION/MANAGEMENT SPECIAL,GAS,1110,09-Oct-19,160069,778.68,CORONA ENERGY RETAIL 4 LTD,COR015
EFDC,YB500,SUPERVISION/MANAGEMENT SPECIAL,GAS,1110,09-Oct-19,160070,882.52,CORONA ENERGY RETAIL 4 LTD,COR015
EFDC,YB500,SUPERVISION/MANAGEMENT SPECIAL,GAS,1110,09-Oct-19,160073,594.43,CORONA ENERGY RETAIL 4 LTD,COR015
EFDC,YB500,SUPERVISION/MANAGEMENT SPECIAL,GAS,1110,09-Oct-19,160075,893.22,CORONA ENERGY RETAIL 4 LTD,COR015
EFDC,YB500,SUPERVISION/MANAGEMENT SPECIAL,GAS,1110,09-Oct-19,160077,737.51,CORONA ENERGY RETAIL 4 LTD,COR015
EFDC,YB500,SUPERVISION/MANAGEMENT SPECIAL,GAS,1110,09-Oct-19,160084,609.2,CORONA ENERGY RETAIL 4 LTD,COR015
EFDC,YB500,SUPERVISION/MANAGEMENT SPECIAL,GAS,1110,09-Oct-19,160087,1109.88,CORONA ENERGY RETAIL 4 LTD,COR015
EFDC,32120,OTHER SUPPORT SERVICES,CRB POLICE CHECK COSTS,0381,09-Oct-19,157590,44,DISCLOSURE & BARRING SERVICE,CRB002
EFDC,EH150,REGULATORY SERVICES,CRB POLICE CHECK COSTS,0381,09-Oct-19,157590,1540,DISCLOSURE & BARRING SERVICE,CRB002
EFDC,33065,OTHER ACTIVITIES,PROFESSIONAL FEES,3420,09-Oct-19,160259,9957,DELOITTE LLP,DEL005
EFDC,YA110,SUPERVISION/MANAGEMENT GENERAL,PROFESSIONAL FEES,3420,09-Oct-19,158408,850,DERRICK WADE WATERS,DER001
EFDC,27050,ACCOMMODATION,CLEANING MATERIALS,1610,09-Oct-19,158278,791.6,ESSEX SUPPLIES (UK) LTD,ESS028
EFDC,CAPHR,HRA CAPITAL,WORKS,A040,09-Oct-19,160261,84761.92,EXTERIOR PLAS,EXT001
EFDC,CAPHR,HRA CAPITAL,WORKS,A040,09-Oct-19,160262,9772.82,EXTERIOR PLAS,EXT001
EFDC,CAPHR,HRA CAPITAL,WORKS,A040,09-Oct-19,160262,5383.08,EXTERIOR PLAS,EXT001
EFDC,RM300,PLANNED & CYCLICAL MAINTENANCE,BUILDING MAINTENANCE,1010,09-Oct-19,160263,86065.94,FLOWLINE (BUILDERS) LTD,FLO003
EFDC,RE100,ELECTIONS,POSTAGE,3510,09-Oct-19,159670,4793.48,ELECTORAL REFORM SERVICES,ELE013
EFDC,RE100,ELECTIONS,PRINTING - EXTERNAL,3390,09-Oct-19,159671,5904.81,ELECTORAL REFORM SERVICES,ELE013
EFDC,RE100,ELECTIONS,POSTAGE,3510,09-Oct-19,159671,15831.27,ELECTORAL REFORM SERVICES,ELE013
EFDC,RE100,ELECTIONS,PRINTING - EXTERNAL,3390,09-Oct-19,159672,1829.11,ELECTORAL REFORM SERVICES,ELE013
EFDC,RE100,ELECTIONS,POSTAGE,3510,09-Oct-19,159672,4851.02,ELECTORAL REFORM SERVICES,ELE013
EFDC,CAPHR,HRA CAPITAL,SURVEYS,A120,09-Oct-19,159364,875,RICHARD F GILL & ASSOCIATES,GIL005
EFDC,32120,OTHER SUPPORT SERVICES,EMPLOYEES - OTHER PAYMENTS,0191,09-Oct-19,158742,554.75,HARLOW OCCUPATIONAL HEALTH SERVICE LTD,HAR006
EFDC,32120,OTHER SUPPORT SERVICES,EMPLOYEES - OTHER PAYMENTS,0191,09-Oct-19,158742,206.15,HARLOW OCCUPATIONAL HEALTH SERVICE LTD,HAR006
EFDC,36650,HRA SUPPORT SERVICES,AGENCY STAFF,0120,09-Oct-19,159210,2278,HAYS SPECIALIST RECRUITMENT LTD,HAY011
EFDC,33060,OTHER ACTIVITIES,AGENCY STAFF,0120,09-Oct-19,158138,1298,HAYS SPECIALIST RECRUITMENT LTD,HAY011
EFDC,43310,CONTRACT & TECH SUPPORT SERVIC,RECRUITMENT EXPENSES,0320,09-Oct-19,157330,4400,HAYMARKET MEDIA GROUP LTD,HAY012
EFDC,32060,OTHER SUPPORT SERVICES,AGENCY STAFF,0120,09-Oct-19,158494,1628,LAW ABSOLUTE LIMITED,LAW009
EFDC,32060,OTHER SUPPORT SERVICES,AGENCY STAFF,0120,09-Oct-19,158789,1628,LAW ABSOLUTE LIMITED,LAW009
EFDC,43310,CONTRACT & TECH SUPPORT SERVIC,AGENCY STAFF,0120,09-Oct-19,158824,597.86,ADECCO UK LTD,ADE002
EFDC,51150,OTHER SUPPORT SERVICES,TRAINING EXPENSES,0310,09-Oct-19,158179,6750,ANGLIA RUSKIN UNIVERSITY,ANG007
EFDC,CH110,"MUSEUM, HERITAGE & CULTURE",CLEANING MATERIALS,1610,09-Oct-19,158424,88.12,IMPERIAL POLYTHENE PRODUCTS LIMITED,IMP008
EFDC,23140,ACCOMMODATION,CLEANING MATERIALS,1610,09-Oct-19,158424,88.12,IMPERIAL POLYTHENE PRODUCTS LIMITED,IMP008
EFDC,27050,ACCOMMODATION,CLEANING MATERIALS,1610,09-Oct-19,158424,440.59,IMPERIAL POLYTHENE PRODUCTS LIMITED,IMP008
EFDC,27060,ACCOMMODATION,CLEANING MATERIALS,1610,09-Oct-19,158424,88.12,IMPERIAL POLYTHENE PRODUCTS LIMITED,IMP008
EFDC,23110,ACCOMMODATION,CLEANING MATERIALS,1610,09-Oct-19,158424,88.12,IMPERIAL POLYTHENE PRODUCTS LIMITED,IMP008
EFDC,23130,ACCOMMODATION,CLEANING MATERIALS,1610,09-Oct-19,158424,88.12,IMPERIAL POLYTHENE PRODUCTS LIMITED,IMP008
EFDC,RM200,RESPONSIVE & VOID REPAIRS,BUILDING MAINTENANCE,1010,09-Oct-19,160238,56381.97,MEARS LTD,MEA002
EFDC,RM200,RESPONSIVE & VOID REPAIRS,BUILDING MAINTENANCE,1010,09-Oct-19,160239,42021.32,MEARS LTD,MEA002
EFDC,RM200,RESPONSIVE & VOID REPAIRS,BUILDING MAINTENANCE,1010,09-Oct-19,160240,103511.45,MEARS LTD,MEA002
EFDC,CAPHR,HRA CAPITAL,VOIDS WORKS,A045,09-Oct-19,160239,11070.17,MEARS LTD,MEA002
EFDC,CAPHR,HRA CAPITAL,VOIDS WORKS,A045,09-Oct-19,160240,8276.67,MEARS LTD,MEA002
EFDC,CAPHR,HRA CAPITAL,VOIDS WORKS,A045,09-Oct-19,160240,13664.06,MEARS LTD,MEA002
EFDC,CAPHR,HRA CAPITAL,VOIDS WORKS,A045,09-Oct-19,160240,18132.75,MEARS LTD,MEA002
EFDC,CAPHR,HRA CAPITAL,VOIDS WORKS,A045,09-Oct-19,160239,1855.68,MEARS LTD,MEA002
EFDC,CAPHR,HRA CAPITAL,VOIDS WORKS,A045,09-Oct-19,160238,2275.86,MEARS LTD,MEA002
EFDC,CAPHR,HRA CAPITAL,VOIDS WORKS,A045,09-Oct-19,160238,18314.41,MEARS LTD,MEA002
EFDC,CAPHR,HRA CAPITAL,VOIDS WORKS,A045,09-Oct-19,160238,14858.33,MEARS LTD,MEA002
EFDC,CAPHR,HRA CAPITAL,VOIDS WORKS,A045,09-Oct-19,160239,7502.54,MEARS LTD,MEA002
EFDC,DC120,PLANNING REGULATORY SERVICES,PUBLICITY,3360,09-Oct-19,158491,654.5,NEWSQUEST MEDIA GROUP,NEW002
EFDC,CY100,COMMUNITY & PARTNERSHIP,CONTRIBUTIONS,3740,09-Oct-19,159738,849.42,PARKGUARD LTD,PAR016
EFDC,33080,OTHER ACTIVITIES,ANNUAL SUPPORT /  LICENSES,3872,09-Oct-19,158945,950.49,PHOENIX SOFTWARE LTD,PHO002
EFDC,32170,OTHER SUPPORT SERVICES,AGENCY STAFF,0120,09-Oct-19,160226,589.75,REED SPECIALIST RECRUITMENT LTD,REE002
EFDC,51140,OTHER SUPPORT SERVICES,AGENCY STAFF,0120,09-Oct-19,160227,605.52,REED SPECIALIST RECRUITMENT LTD,REE002
EFDC,35013,CONTRACT & TECH SUPPORT SERVIC,AGENCY STAFF,0120,09-Oct-19,160224,1043.1,REED SPECIALIST RECRUITMENT LTD,REE002
EFDC,32115,OTHER SUPPORT SERVICES,CONSULTANTS FEES,3490,09-Oct-19,158043,600,THE SCOUT ASSOCIATION,SCO005
EFDC,78001,HRA SUPPORT SERVICES,FUEL,2330,09-Oct-19,160237,2369.86,SHELL U.K. OIL PRODUCTS LIMITED,SHE007
EFDC,33080,OTHER ACTIVITIES,FUEL,2330,09-Oct-19,160237,37.91,SHELL U.K. OIL PRODUCTS LIMITED,SHE007
EFDC,YB120,SUPERVISION/MANAGEMENT SPECIAL,FUEL,2330,09-Oct-19,160237,154.16,SHELL U.K. OIL PRODUCTS LIMITED,SHE007
EFDC,51150,OTHER SUPPORT SERVICES,POSTAGE,3510,09-Oct-19,159797,367.62,ROYAL MAIL GROUP PLC,ROY015
EFDC,33075,OTHER ACTIVITIES,POSTAGE,3510,09-Oct-19,159797,510.19,ROYAL MAIL GROUP PLC,ROY015
EFDC,33075,OTHER ACTIVITIES,POSTAGE,3510,09-Oct-19,159140,731.94,ROYAL MAIL GROUP PLC,ROY015
EFDC,33055,OTHER ACTIVITIES,POSTAGE,3510,09-Oct-19,159140,365.64,ROYAL MAIL GROUP PLC,ROY015
EFDC,33055,OTHER ACTIVITIES,POSTAGE,3510,09-Oct-19,159797,225.06,ROYAL MAIL GROUP PLC,ROY015
EFDC,33055,OTHER ACTIVITIES,POSTAGE,3510,09-Oct-19,159140,184.8,ROYAL MAIL GROUP PLC,ROY015
EFDC,CH110,"MUSEUM, HERITAGE & CULTURE",POSTAGE,3510,09-Oct-19,159140,0.99,ROYAL MAIL GROUP PLC,ROY015
EFDC,34110,HOUSING PROP SUPPORT SERVICES,POSTAGE,3510,09-Oct-19,159797,3.96,ROYAL MAIL GROUP PLC,ROY015
EFDC,34110,HOUSING PROP SUPPORT SERVICES,POSTAGE,3510,09-Oct-19,159140,1.65,ROYAL MAIL GROUP PLC,ROY015
EFDC,RE100,ELECTIONS,POSTAGE,3510,09-Oct-19,159140,96.03,ROYAL MAIL GROUP PLC,ROY015
EFDC,RE100,ELECTIONS,POSTAGE,3510,09-Oct-19,159978,584.57,ROYAL MAIL GROUP PLC,ROY015
EFDC,RE100,ELECTIONS,POSTAGE,3510,09-Oct-19,159797,215.49,ROYAL MAIL GROUP PLC,ROY015
EFDC,78001,HRA SUPPORT SERVICES,MATERIALS,3080,09-Oct-19,157991,528.84,TRAVIS PERKINS TRADING COMPANY LTD,TRA001
EFDC,78001,HRA SUPPORT SERVICES,MATERIALS,3080,09-Oct-19,153610,628.2,TRAVIS PERKINS TRADING COMPANY LTD,TRA001
EFDC,78001,HRA SUPPORT SERVICES,MATERIALS,3080,09-Oct-19,160248,964.84,TRAVIS PERKINS TRADING COMPANY LTD,TRA001
EFDC,78001,HRA SUPPORT SERVICES,MATERIALS,3080,09-Oct-19,160251,638.14,TRAVIS PERKINS TRADING COMPANY LTD,TRA001
EFDC,32060,OTHER SUPPORT SERVICES,RECRUITMENT EXPENSES,0320,09-Oct-19,158482,676.71,VENN GROUP LTD,VEN004
EFDC,32060,OTHER SUPPORT SERVICES,AGENCY STAFF,0120,09-Oct-19,159067,1366.86,VENN GROUP LTD,VEN004
EFDC,32060,OTHER SUPPORT SERVICES,AGENCY STAFF,0120,09-Oct-19,158820,1574.53,VENN GROUP LTD,VEN004
EFDC,32060,OTHER SUPPORT SERVICES,AGENCY STAFF,0120,09-Oct-19,158481,1727.04,VENN GROUP LTD,VEN004
EFDC,CAPHR,HRA CAPITAL,WORKS,A040,09-Oct-19,160252,7350,VSN ENTERPRISES LTD,VSN001
EFDC,CAPHR,HRA CAPITAL,WORKS,A040,09-Oct-19,160252,7829.74,VSN ENTERPRISES LTD,VSN001
EFDC,CAPHR,HRA CAPITAL,VOIDS WORKS,A045,09-Oct-19,160268,17184.36,GRACELANDS COMPLETE MAINTENANCE SERVICES LTD,GRA007
EFDC,CAPHR,HRA CAPITAL,VOIDS WORKS,A045,09-Oct-19,160271,6329,GRACELANDS COMPLETE MAINTENANCE SERVICES LTD,GRA007
EFDC,CAPHR,HRA CAPITAL,VOIDS WORKS,A045,09-Oct-19,160271,223353.28,GRACELANDS COMPLETE MAINTENANCE SERVICES LTD,GRA007
EFDC,CAPHR,HRA CAPITAL,VOIDS WORKS,A045,09-Oct-19,160268,22665.03,GRACELANDS COMPLETE MAINTENANCE SERVICES LTD,GRA007
EFDC,CAPHR,HRA CAPITAL,VOIDS WORKS,A045,09-Oct-19,160267,43067.63,GRACELANDS COMPLETE MAINTENANCE SERVICES LTD,GRA007
EFDC,CAPHR,HRA CAPITAL,VOIDS WORKS,A045,09-Oct-19,160265,30483.47,GRACELANDS COMPLETE MAINTENANCE SERVICES LTD,GRA007
EFDC,CAPHR,HRA CAPITAL,VOIDS WORKS,A045,09-Oct-19,160265,53107.58,GRACELANDS COMPLETE MAINTENANCE SERVICES LTD,GRA007
EFDC,CAPHR,HRA CAPITAL,VOIDS WORKS,A045,09-Oct-19,160265,52640.23,GRACELANDS COMPLETE MAINTENANCE SERVICES LTD,GRA007
EFDC,CAPHR,HRA CAPITAL,VOIDS WORKS,A045,09-Oct-19,160265,83417.09,GRACELANDS COMPLETE MAINTENANCE SERVICES LTD,GRA007
EFDC,CAPHR,HRA CAPITAL,VOIDS WORKS,A045,09-Oct-19,160267,29832.83,GRACELANDS COMPLETE MAINTENANCE SERVICES LTD,GRA007
EFDC,CAPHR,HRA CAPITAL,VOIDS WORKS,A045,09-Oct-19,160268,23686.17,GRACELANDS COMPLETE MAINTENANCE SERVICES LTD,GRA007
EFDC,CAPHR,HRA CAPITAL,VOIDS WORKS,A045,09-Oct-19,160267,12498.44,GRACELANDS COMPLETE MAINTENANCE SERVICES LTD,GRA007
EFDC,CAPHR,HRA CAPITAL,VOIDS WORKS,A045,09-Oct-19,160268,26518.25,GRACELANDS COMPLETE MAINTENANCE SERVICES LTD,GRA007
EFDC,RM200,RESPONSIVE & VOID REPAIRS,BUILDING MAINTENANCE,1010,09-Oct-19,160265,104235.07,GRACELANDS COMPLETE MAINTENANCE SERVICES LTD,GRA007
EFDC,RM200,RESPONSIVE & VOID REPAIRS,BUILDING MAINTENANCE,1010,09-Oct-19,160267,102872.19,GRACELANDS COMPLETE MAINTENANCE SERVICES LTD,GRA007
EFDC,RM200,RESPONSIVE & VOID REPAIRS,BUILDING MAINTENANCE,1010,09-Oct-19,160268,89250.43,GRACELANDS COMPLETE MAINTENANCE SERVICES LTD,GRA007
EFDC,CAPHR,HRA CAPITAL,VOIDS WORKS,A045,09-Oct-19,160267,42975.49,GRACELANDS COMPLETE MAINTENANCE SERVICES LTD,GRA007
EFDC,CAPHR,HRA CAPITAL,WORKS,A040,09-Oct-19,160270,19985.71,GRACELANDS COMPLETE MAINTENANCE SERVICES LTD,GRA007
EFDC,33055,OTHER ACTIVITIES,AGENCY STAFF,0120,09-Oct-19,160213,981.24,MORGAN HUNT UK LTD,MOR001
EFDC,33075,OTHER ACTIVITIES,AGENCY STAFF,0120,09-Oct-19,160212,869.13,MORGAN HUNT UK LTD,MOR001
EFDC,33075,OTHER ACTIVITIES,AGENCY STAFF,0120,09-Oct-19,160210,869.13,MORGAN HUNT UK LTD,MOR001
EFDC,33055,OTHER ACTIVITIES,AGENCY STAFF,0120,09-Oct-19,160211,981.24,MORGAN HUNT UK LTD,MOR001
EFDC,36650,HRA SUPPORT SERVICES,AGENCY STAFF,0120,09-Oct-19,160209,1229.04,MORGAN HUNT UK LTD,MOR001
EFDC,35005,CONTRACT & TECH SUPPORT SERVIC,AGENCY STAFF,0120,09-Oct-19,160215,817,MORGAN HUNT UK LTD,MOR001
EFDC,CAPHR,HRA CAPITAL,WORKS,A040,09-Oct-19,160254,2150.63,ARAN SERVICES LTD,ARA001
EFDC,CAPHR,HRA CAPITAL,WORKS,A040,09-Oct-19,160253,9681.15,ARAN SERVICES LTD,ARA001
EFDC,CAPHR,HRA CAPITAL,VOIDS WORKS,A045,09-Oct-19,159399,750,WOODS BUILDING SERVICES LTD,WOO001
EFDC,RS400,"COMMUNITY, HEALTH & WELLBEING",ACTIVITIES,3372,09-Oct-19,159208,4950,ARC THEATRE,ARC003
EFDC,32120,OTHER SUPPORT SERVICES,AGENCY STAFF,0120,09-Oct-19,158156,1017.73,THE OYSTER PARTNERSHIP LTD,OYS001
EFDC,32120,OTHER SUPPORT SERVICES,AGENCY STAFF,0120,09-Oct-19,158127,943.56,THE OYSTER PARTNERSHIP LTD,OYS001
EFDC,32120,OTHER SUPPORT SERVICES,AGENCY STAFF,0120,09-Oct-19,158485,943.56,THE OYSTER PARTNERSHIP LTD,OYS001
EFDC,32120,OTHER SUPPORT SERVICES,AGENCY STAFF,0120,09-Oct-19,158484,1050.5,THE OYSTER PARTNERSHIP LTD,OYS001
EFDC,CAPGF,GENERAL FUND CAPITAL,WORKS,B040,09-Oct-19,160231,997.57,SMART MERCHANTS LTD,SMA002
EFDC,26200,OTHER SUPPORT SERVICES,BUILDING MAINTENANCE,1010,09-Oct-19,160233,535.92,SMART MERCHANTS LTD,SMA002
EFDC,DC110,PLANNING REGULATORY SERVICES,PROFESSIONAL FEES,3420,09-Oct-19,158812,871,AECOM INFRASTRUCTURE & ENVIRONMENT UK LTD,AEC002
EFDC,37600,PLANNING SUPPORT SERVICES,AGENCY STAFF,0120,09-Oct-19,158080,1239.5,MATCHTECH GROUP LTD,MAT002
EFDC,26200,OTHER SUPPORT SERVICES,BUILDING MAINTENANCE,1010,09-Oct-19,160176,49.65,M J ANDERSON MAINTENANCE CONTRACTORS LTD,AND003
EFDC,26200,OTHER SUPPORT SERVICES,BUILDING MAINTENANCE,1010,09-Oct-19,160176,1400,M J ANDERSON MAINTENANCE CONTRACTORS LTD,AND003
EFDC,32060,OTHER SUPPORT SERVICES,CONSULTANTS FEES,3490,09-Oct-19,158084,3434,BEVAN BRITTAN LLP CLIENT A/C,BEV002
EFDC,CAPHR,HRA CAPITAL,WORKS,E040,09-Oct-19,160241,221551.71,MULALLEY & CO LTD,MUL003
EFDC,RM500,OTHER ITEMS,CONSULTANTS FEES,3490,09-Oct-19,158783,975,ZENERGI LTD,ZEN001
EFDC,RM200,RESPONSIVE & VOID REPAIRS,BUILDING MAINTENANCE,1010,09-Oct-19,159790,7128,WICKES BUILDING SUPPLIES LTD,WIC004
EFDC,CAPGF,GENERAL FUND CAPITAL,WORKS,B040,09-Oct-19,160244,30495.5,PLACES FOR PEOPLE LEISURE MANAGEMENT LTD,PLA005
EFDC,PS100,CAR PARKING,OTHER MAINTENANCE,1050,09-Oct-19,159382,1150,W H CONSTRUCTION LTD,CON014
EFDC,37600,PLANNING SUPPORT SERVICES,AGENCY STAFF,0120,09-Oct-19,158463,2625,VIVID RESOURCING LTD,VIV002
EFDC,37600,PLANNING SUPPORT SERVICES,AGENCY STAFF,0120,09-Oct-19,158464,1295,VIVID RESOURCING LTD,VIV002
EFDC,DC120,PLANNING REGULATORY SERVICES,CONSULTANTS FEES,3490,09-Oct-19,157986,780,VIVID RESOURCING LTD,VIV002
EFDC,CAPHR,HRA CAPITAL,WORKS,E040,09-Oct-19,160246,71387.46,STORM BUILDING LTD,STO007
EFDC,EH142,ENVIRONMENTAL HEALTH,PROFESSIONAL FEES,3420,09-Oct-19,159082,1314,STEWART HARRIS AGNEW PARTNERSHIP,STE004
EFDC,YD100,"RENTS, RATES TAXES & INSURANCE",WATER CHARGES,1410,09-Oct-19,160258,901.85,CASTLE WATER LTD,CAS001
EFDC,HI122,HIGHWAYS,TREE  MAINTENANCE,1070,09-Oct-19,158754,960,KENDAL TREE SURGERY LTD,KEN004
EFDC,26200,OTHER SUPPORT SERVICES,BUILDING MAINTENANCE,1010,09-Oct-19,158759,2850,BASILDON STONE LIMITED,BAS027
EFDC,GT100,LOCAL PLAN IMPLEMENTATION,CONSULTANTS FEES,3490,09-Oct-19,160187,4322,CUSHMAN & WAKEFIELD DEBENHAM TIE LEUNG LTD,CUS022
EFDC,32115,OTHER SUPPORT SERVICES,CONSULTANTS FEES,3490,09-Oct-19,158764,1350,THE CTG GROUP LIMITED,CTG001
EFDC,32060,OTHER SUPPORT SERVICES,CONSULTANTS FEES,3490,09-Oct-19,159162,1250,SAM FOWLES,FOW002
EFDC,WC200,WASTE MANAGEMENT,CLEANSING CONTRACTORS,4320,09-Oct-19,159403,1750,LOCAL GREEN POINTS LLP,GRE020
EFDC,WC200,WASTE MANAGEMENT,CLEANSING CONTRACTORS,4320,09-Oct-19,159403,4618,LOCAL GREEN POINTS LLP,GRE020
EFDC,26200,OTHER SUPPORT SERVICES,BUILDING MAINTENANCE,1010,09-Oct-19,160196,70,DDM FIRE SAFETY,DDM001
EFDC,RM400,PLANNED & CYCLICAL MAINTENANCE,BUILDING MAINTENANCE,1010,09-Oct-19,160196,470.83,DDM FIRE SAFETY,DDM001
EFDC,26200,OTHER SUPPORT SERVICES,BUILDING MAINTENANCE,1010,09-Oct-19,160197,54.17,DDM FIRE SAFETY,DDM001
EFDC,RM400,PLANNED & CYCLICAL MAINTENANCE,BUILDING MAINTENANCE,1010,09-Oct-19,160197,341.66,DDM FIRE SAFETY,DDM001
EFDC,26200,OTHER SUPPORT SERVICES,BUILDING MAINTENANCE,1010,09-Oct-19,160197,54.17,DDM FIRE SAFETY,DDM001
EFDC,26200,OTHER SUPPORT SERVICES,BUILDING MAINTENANCE,1010,09-Oct-19,160197,58.33,DDM FIRE SAFETY,DDM001
EFDC,PP111,LOCAL PLAN IMPLEMENTATION,CONSULTANTS FEES,3490,09-Oct-19,158821,1360,PEYTO LAW,PEY001
EFDC,PH100,PRIVATE SECTOR HOUSING,GRANTS GENERAL,3720,15-Oct-19,34190,8041.39,ARAN SERVICES LTD,8938P
EFDC,PH100,PRIVATE SECTOR HOUSING,GRANTS GENERAL,3720,15-Oct-19,34200,3970,GB ADAPTIONS LTD,7357P
EFDC,GD100,VOLUNTARY SECTOR SUPPORT,GRANTS TO VOLUNTARY ORGS,3710,15-Oct-19,34199,5000,CRY-CARDIAC RISK IN THE YOUNG,8585P
EFDC,PH100,PRIVATE SECTOR HOUSING,GRANTS GENERAL,3720,15-Oct-19,34195,7050,E M S LIFTS LIMITED,EMS001
EFDC,BAL01,EFDC BALANCE SHEET,HOUSING RENT REFUNDS,Z613,15-Oct-19,34173,910.24,MS N J BOOKER,7371P
EFDC,CAPGF,GENERAL FUND CAPITAL,CAPITAL SOFTWARE,K340,16-Oct-19,157751,2397,CAPITA BUSINESS SERVICES LTD,CAP004
EFDC,28030,OTHER SUPPORT SERVICES,MATERIALS,3080,16-Oct-19,158712,-45.25,CARE VENDING SERVICES LTD,CAR017
EFDC,28030,OTHER SUPPORT SERVICES,EQUIPMENT - HIRED,3020,16-Oct-19,160115,884,CARE VENDING SERVICES LTD,CAR017
EFDC,28030,OTHER SUPPORT SERVICES,MATERIALS,3080,16-Oct-19,158712,573.63,CARE VENDING SERVICES LTD,CAR017
EFDC,32121,OTHER SUPPORT SERVICES,CONSULTANTS FEES,3490,16-Oct-19,159818,659,CMS TRAINING LTD,CMS001
EFDC,BAL01,EFDC BALANCE SHEET,BUSY BEES,Z606,16-Oct-19,160590,1891.75,COMPUTERSHAREVOUCHER SERVICES,BUS009
EFDC,33075,OTHER ACTIVITIES,AGENCY STAFF,0120,16-Oct-19,156825,814,EDEN BROWN LTD,EDE001
EFDC,33075,OTHER ACTIVITIES,AGENCY STAFF,0120,16-Oct-19,153137,814,EDEN BROWN LTD,EDE001
EFDC,33075,OTHER ACTIVITIES,AGENCY STAFF,0120,16-Oct-19,157581,814,EDEN BROWN LTD,EDE001
EFDC,33075,OTHER ACTIVITIES,AGENCY STAFF,0120,16-Oct-19,156456,583,EDEN BROWN LTD,EDE001
EFDC,CAPHR,HRA CAPITAL,CONSULTANCY FEES,E200,16-Oct-19,158860,850,DERRICK WADE WATERS,DER001
EFDC,RM100,RESPONSIVE & VOID REPAIRS,BUILDING MAINTENANCE,1010,16-Oct-19,160597,1928.88,EXTERIOR PLAS,EXT001
EFDC,42110,GOVERNANCE SUPPORT SERVICES,STATIONERY,3320,16-Oct-19,159808,533,FALCON BUSINESS SUPPLIES LTD,FAL001
EFDC,RE100,ELECTIONS,POSTAGE,3510,16-Oct-19,159994,4851.02,ELECTORAL REFORM SERVICES,ELE013
EFDC,RE100,ELECTIONS,PRINTING - EXTERNAL,3390,16-Oct-19,159994,1829.11,ELECTORAL REFORM SERVICES,ELE013
EFDC,36650,HRA SUPPORT SERVICES,AGENCY STAFF,0120,16-Oct-19,159155,1500,HAYS SPECIALIST RECRUITMENT LTD,HAY011
EFDC,36650,HRA SUPPORT SERVICES,AGENCY STAFF,0120,16-Oct-19,158763,2000,HAYS SPECIALIST RECRUITMENT LTD,HAY011
EFDC,33060,OTHER ACTIVITIES,AGENCY STAFF,0120,16-Oct-19,158518,2360,HAYS SPECIALIST RECRUITMENT LTD,HAY011
EFDC,33060,OTHER ACTIVITIES,AGENCY STAFF,0120,16-Oct-19,158710,2360,HAYS SPECIALIST RECRUITMENT LTD,HAY011
EFDC,EH160,OTHER ACTIVITIES,LEASE RENTAL,1220,16-Oct-19,157718,16252.72,JCDECAUX UK LTD,JCD001
EFDC,32060,OTHER SUPPORT SERVICES,AGENCY STAFF,0120,16-Oct-19,159143,1826,LAW ABSOLUTE LIMITED,LAW009
EFDC,33080,OTHER ACTIVITIES,CONSULTANTS FEES,3490,16-Oct-19,159865,1000,NORTHGATE PUBLIC SERVICES (UK) LTD,NOR018
EFDC,33080,OTHER ACTIVITIES,ANNUAL SUPPORT /  LICENSES,3872,16-Oct-19,160541,750,NORTHGATE PUBLIC SERVICES (UK) LTD,NOR018
EFDC,33080,OTHER ACTIVITIES,MOBILE PHONE LINE COSTS,3580,16-Oct-19,160610,7.5,O2 (UK) LTD,OTW002
EFDC,33080,OTHER ACTIVITIES,MOBILE PHONE LINE COSTS,3580,16-Oct-19,160610,5938.21,O2 (UK) LTD,OTW002
EFDC,35013,CONTRACT & TECH SUPPORT SERVIC,AGENCY STAFF,0120,16-Oct-19,160225,1043.1,REED SPECIALIST RECRUITMENT LTD,REE002
EFDC,RM300,PLANNED & CYCLICAL MAINTENANCE,BUILDING MAINTENANCE,1010,16-Oct-19,160611,1545.54,SCCI ALPHATRACK LTD,SCC003
EFDC,LA100,LAA POOLED FUNDS,LAA EXPENDITURE,Y100,16-Oct-19,160549,74.75,SOLON SECURITY LTD,SOL008
EFDC,LA100,LAA POOLED FUNDS,LAA EXPENDITURE,Y100,16-Oct-19,160549,652.05,SOLON SECURITY LTD,SOL008
EFDC,51150,OTHER SUPPORT SERVICES,POSTAGE,3510,16-Oct-19,160109,676.5,ROYAL MAIL GROUP PLC,ROY015
EFDC,RE100,ELECTIONS,POSTAGE,3510,16-Oct-19,160109,291.06,ROYAL MAIL GROUP PLC,ROY015
EFDC,33055,OTHER ACTIVITIES,POSTAGE,3510,16-Oct-19,160109,329.01,ROYAL MAIL GROUP PLC,ROY015
EFDC,33075,OTHER ACTIVITIES,POSTAGE,3510,16-Oct-19,160109,627.28,ROYAL MAIL GROUP PLC,ROY015
EFDC,CH110,"MUSEUM, HERITAGE & CULTURE",POSTAGE,3510,16-Oct-19,160109,0.99,ROYAL MAIL GROUP PLC,ROY015
EFDC,34110,HOUSING PROP SUPPORT SERVICES,POSTAGE,3510,16-Oct-19,160109,0.33,ROYAL MAIL GROUP PLC,ROY015
EFDC,CAPHR,HRA CAPITAL,EQUIPMENT ACQUISITION,C330,16-Oct-19,160548,5685,RVTV SECURITY LTD,RVT001
EFDC,DC110,PLANNING REGULATORY SERVICES,PROFESSIONAL FEES,3420,16-Oct-19,159721,6130,MISS MEGAN THOMAS,THO013
EFDC,SC100,WASTE MANAGEMENT,HIGHWAYS CONTRACTORS,4310,16-Oct-19,158489,1231.55,VEOLIA ES (UK) LTD,VER004
EFDC,33080,OTHER ACTIVITIES,ANNUAL SUPPORT /  LICENSES,3872,16-Oct-19,160613,5468,ZOHO CORPORATION B.V.,ZOH001
EFDC,26200,OTHER SUPPORT SERVICES,BUILDING MAINTENANCE,1010,16-Oct-19,159833,142.5,EMERY ELECTRICAL LTD,EME001
EFDC,26200,OTHER SUPPORT SERVICES,BUILDING MAINTENANCE,1010,16-Oct-19,159833,57,EMERY ELECTRICAL LTD,EME001
EFDC,26200,OTHER SUPPORT SERVICES,BUILDING MAINTENANCE,1010,16-Oct-19,159833,199.5,EMERY ELECTRICAL LTD,EME001
EFDC,26200,OTHER SUPPORT SERVICES,FIXED PLANT MAINTENANCE,1020,16-Oct-19,159833,114,EMERY ELECTRICAL LTD,EME001
EFDC,RM400,PLANNED & CYCLICAL MAINTENANCE,BUILDING MAINTENANCE,1010,16-Oct-19,159833,513,EMERY ELECTRICAL LTD,EME001
EFDC,RM400,PLANNED & CYCLICAL MAINTENANCE,BUILDING MAINTENANCE,1010,16-Oct-19,159833,182.14,EMERY ELECTRICAL LTD,EME001
EFDC,26200,OTHER SUPPORT SERVICES,BUILDING MAINTENANCE,1010,16-Oct-19,159833,114,EMERY ELECTRICAL LTD,EME001
EFDC,RM300,PLANNED & CYCLICAL MAINTENANCE,BUILDING MAINTENANCE,1010,16-Oct-19,160614,86268.13,GRACELANDS COMPLETE MAINTENANCE SERVICES LTD,GRA007
EFDC,CAPHR,HRA CAPITAL,WORKS,A040,16-Oct-19,160608,3693.84,GRACELANDS COMPLETE MAINTENANCE SERVICES LTD,GRA007
EFDC,CAPHR,HRA CAPITAL,WORKS,A040,16-Oct-19,160615,31329.65,GRACELANDS COMPLETE MAINTENANCE SERVICES LTD,GRA007
EFDC,CAPHR,HRA CAPITAL,WORKS,A040,16-Oct-19,160616,47526.11,GRACELANDS COMPLETE MAINTENANCE SERVICES LTD,GRA007
EFDC,CAPHR,HRA CAPITAL,WORKS,A040,16-Oct-19,160616,4411.06,GRACELANDS COMPLETE MAINTENANCE SERVICES LTD,GRA007
EFDC,CAPHR,HRA CAPITAL,WORKS,A040,16-Oct-19,160616,2940,GRACELANDS COMPLETE MAINTENANCE SERVICES LTD,GRA007
EFDC,CAPHR,HRA CAPITAL,WORKS,A040,16-Oct-19,160608,14137.1,GRACELANDS COMPLETE MAINTENANCE SERVICES LTD,GRA007
EFDC,36500,HRA SUPPORT SERVICES,AGENCY STAFF,0120,16-Oct-19,160536,878.17,MORGAN HUNT UK LTD,MOR001
EFDC,36500,HRA SUPPORT SERVICES,AGENCY STAFF,0120,16-Oct-19,160537,912.35,MORGAN HUNT UK LTD,MOR001
EFDC,36500,HRA SUPPORT SERVICES,AGENCY STAFF,0120,16-Oct-19,160538,925.2,MORGAN HUNT UK LTD,MOR001
EFDC,35005,CONTRACT & TECH SUPPORT SERVIC,AGENCY STAFF,0120,16-Oct-19,160539,855.79,MORGAN HUNT UK LTD,MOR001
EFDC,36500,HRA SUPPORT SERVICES,AGENCY STAFF,0120,16-Oct-19,160105,895.13,MORGAN HUNT UK LTD,MOR001
EFDC,36500,HRA SUPPORT SERVICES,AGENCY STAFF,0120,16-Oct-19,160111,901,JAMES ANDREWS RECRUITMENT SOLUTIONS LTD,JAM001
EFDC,36500,HRA SUPPORT SERVICES,AGENCY STAFF,0120,16-Oct-19,159712,761.88,JAMES ANDREWS RECRUITMENT SOLUTIONS LTD,JAM001
EFDC,36500,HRA SUPPORT SERVICES,AGENCY STAFF,0120,16-Oct-19,160144,940.75,JAMES ANDREWS RECRUITMENT SOLUTIONS LTD,JAM001
EFDC,33080,OTHER ACTIVITIES,EQUIPMENT - MAINTENANCE,3030,16-Oct-19,158797,2524.44,BOTTOMLINE TECHNOLOGIES LTD,BOT001
EFDC,ED100,LOCAL PLAN IMPLEMENTATION,CONTRIBUTIONS,3740,16-Oct-19,160596,1000,EPPING TOWN CENTRE PARTNERSHIP,EPP012
EFDC,RS410,"COMMUNITY, HEALTH & WELLBEING",ACTIVITIES,3372,16-Oct-19,160599,875,EPPING FOREST MTB,EPP046
EFDC,RS400,"COMMUNITY, HEALTH & WELLBEING",ACTIVITIES,3372,16-Oct-19,160426,600,EPPING UPPER CLAPTON RUGBY FOOTBALL CLUB,UPP001
EFDC,32030,OTHER SUPPORT SERVICES,AGENCY STAFF,0120,16-Oct-19,160553,2769.5,T.S.S. (TOTAL SECURITY SERVICES) LTD,TSS001
EFDC,WC100,WASTE MANAGEMENT,EQUIPMENT - NEW,3010,16-Oct-19,160488,7935.18,BIFFA MUNICIPAL LTD,BIF001
EFDC,23140,ACCOMMODATION,REFUSE REMOVAL,1640,16-Oct-19,160488,22.52,BIFFA MUNICIPAL LTD,BIF001
EFDC,FD100,LAND DRAINAGE/SEWERAGE,PROFESSIONAL FEES,3420,16-Oct-19,160488,9.12,BIFFA MUNICIPAL LTD,BIF001
EFDC,YB120,SUPERVISION/MANAGEMENT SPECIAL,EQUIPMENT - MAINTENANCE,3030,16-Oct-19,160488,228,BIFFA MUNICIPAL LTD,BIF001
EFDC,23110,ACCOMMODATION,REFUSE REMOVAL,1640,16-Oct-19,160488,11.26,BIFFA MUNICIPAL LTD,BIF001
EFDC,23110,ACCOMMODATION,REFUSE REMOVAL,1640,16-Oct-19,160488,25.23,BIFFA MUNICIPAL LTD,BIF001
EFDC,YB400,SUPERVISION/MANAGEMENT SPECIAL,REFUSE REMOVAL,1640,16-Oct-19,160488,1496.82,BIFFA MUNICIPAL LTD,BIF001
EFDC,YB500,SUPERVISION/MANAGEMENT SPECIAL,REFUSE REMOVAL,1640,16-Oct-19,160488,11.26,BIFFA MUNICIPAL LTD,BIF001
EFDC,YB620,SUPERVISION/MANAGEMENT SPECIAL,REFUSE REMOVAL,1640,16-Oct-19,160488,11.26,BIFFA MUNICIPAL LTD,BIF001
EFDC,27150,"COMMUNITY, HEALTH & WELLBEING",REFUSE REMOVAL,1640,16-Oct-19,160488,11.26,BIFFA MUNICIPAL LTD,BIF001
EFDC,27110,ACCOMMODATION,REFUSE REMOVAL,1640,16-Oct-19,160488,11.26,BIFFA MUNICIPAL LTD,BIF001
EFDC,27050,ACCOMMODATION,REFUSE REMOVAL,1640,16-Oct-19,160488,540.48,BIFFA MUNICIPAL LTD,BIF001
EFDC,WC200,WASTE MANAGEMENT,CLEANSING CONTRACTORS,4320,16-Oct-19,160488,24498.36,BIFFA MUNICIPAL LTD,BIF001
EFDC,WC102,WASTE MANAGEMENT,CLEANSING CONTRACTORS,4320,16-Oct-19,160488,537.9,BIFFA MUNICIPAL LTD,BIF001
EFDC,OS110,PARKS & GROUNDS,GROUNDS MAINTENANCE,1040,16-Oct-19,160488,27.36,BIFFA MUNICIPAL LTD,BIF001
EFDC,OS100,PARKS & GROUNDS,GROUNDS MAINTENANCE,1040,16-Oct-19,160488,27.36,BIFFA MUNICIPAL LTD,BIF001
EFDC,OS110,PARKS & GROUNDS,GROUNDS MAINTENANCE,1040,16-Oct-19,160488,57.63,BIFFA MUNICIPAL LTD,BIF001
EFDC,CY100,COMMUNITY & PARTNERSHIP,CONTRIBUTIONS,3740,16-Oct-19,160488,570,BIFFA MUNICIPAL LTD,BIF001
EFDC,WC300,WASTE MANAGEMENT,CLEANSING CONTRACTORS,4320,16-Oct-19,160488,945,BIFFA MUNICIPAL LTD,BIF001
EFDC,WC300,WASTE MANAGEMENT,CLEANSING CONTRACTORS,4320,16-Oct-19,160488,371.82,BIFFA MUNICIPAL LTD,BIF001
EFDC,WC100,WASTE MANAGEMENT,CLEANSING CONTRACTORS,4320,16-Oct-19,160488,9349.73,BIFFA MUNICIPAL LTD,BIF001
EFDC,SC100,WASTE MANAGEMENT,CLEANSING CONTRACTORS,4320,16-Oct-19,160488,40,BIFFA MUNICIPAL LTD,BIF001
EFDC,SC100,WASTE MANAGEMENT,CLEANSING CONTRACTORS,4320,16-Oct-19,160488,1267.54,BIFFA MUNICIPAL LTD,BIF001
EFDC,RS301,NORTH WEALD CENTRE,RENTS,9410,16-Oct-19,160488,-600,BIFFA MUNICIPAL LTD,BIF001
EFDC,WC100,WASTE MANAGEMENT,CLEANSING CONTRACTORS,4320,16-Oct-19,160488,78.76,BIFFA MUNICIPAL LTD,BIF001
EFDC,WC100,WASTE MANAGEMENT,CLEANSING CONTRACTORS,4320,16-Oct-19,160488,-5330.73,BIFFA MUNICIPAL LTD,BIF001
EFDC,WC100,WASTE MANAGEMENT,CLEANSING CONTRACTORS,4320,16-Oct-19,160488,456,BIFFA MUNICIPAL LTD,BIF001
EFDC,SC100,WASTE MANAGEMENT,CLEANSING CONTRACTORS,4320,16-Oct-19,160488,136.7,BIFFA MUNICIPAL LTD,BIF001
EFDC,SC100,WASTE MANAGEMENT,CLEANSING CONTRACTORS,4320,16-Oct-19,160488,15000,BIFFA MUNICIPAL LTD,BIF001
EFDC,GD190,VOLUNTARY SECTOR SUPPORT,GROUNDS MAINTENANCE,1040,16-Oct-19,160488,76.92,BIFFA MUNICIPAL LTD,BIF001
EFDC,PS100,CAR PARKING,OTHER MAINTENANCE,1050,16-Oct-19,160488,23.95,BIFFA MUNICIPAL LTD,BIF001
EFDC,32120,OTHER SUPPORT SERVICES,AGENCY STAFF,0120,16-Oct-19,159229,832.17,THE OYSTER PARTNERSHIP LTD,OYS001
EFDC,32120,OTHER SUPPORT SERVICES,AGENCY STAFF,0120,16-Oct-19,159227,760.09,THE OYSTER PARTNERSHIP LTD,OYS001
EFDC,32120,OTHER SUPPORT SERVICES,AGENCY STAFF,0120,16-Oct-19,159768,570.07,THE OYSTER PARTNERSHIP LTD,OYS001
EFDC,CAPHR,HRA CAPITAL,ARCHITECTS FEES,E160,16-Oct-19,159757,4317.25,ECD ARCHITECTS LTD,ECD001
EFDC,CAPHR,HRA CAPITAL,ARCHITECTS FEES,E160,16-Oct-19,159748,7514.61,ECD ARCHITECTS LTD,ECD001
EFDC,CAPHR,HRA CAPITAL,ARCHITECTS FEES,E160,16-Oct-19,159750,5525.37,ECD ARCHITECTS LTD,ECD001
EFDC,CAPHR,HRA CAPITAL,ARCHITECTS FEES,E160,16-Oct-19,159753,5294.54,ECD ARCHITECTS LTD,ECD001
EFDC,CAPHR,HRA CAPITAL,ARCHITECTS FEES,E160,16-Oct-19,159754,5840.57,ECD ARCHITECTS LTD,ECD001
EFDC,CAPHR,HRA CAPITAL,ARCHITECTS FEES,E160,16-Oct-19,159751,6780.16,ECD ARCHITECTS LTD,ECD001
EFDC,CAPHR,HRA CAPITAL,ARCHITECTS FEES,E160,16-Oct-19,159756,6072.26,ECD ARCHITECTS LTD,ECD001
EFDC,CAPHR,HRA CAPITAL,ARCHITECTS FEES,E160,16-Oct-19,159749,6981.7,ECD ARCHITECTS LTD,ECD001
EFDC,CAPHR,HRA CAPITAL,ARCHITECTS FEES,E160,16-Oct-19,159755,4956.76,ECD ARCHITECTS LTD,ECD001
EFDC,CAPHR,HRA CAPITAL,ARCHITECTS FEES,E160,16-Oct-19,159758,5498.47,ECD ARCHITECTS LTD,ECD001
EFDC,CAPHR,HRA CAPITAL,ARCHITECTS FEES,E160,16-Oct-19,159752,6216.54,ECD ARCHITECTS LTD,ECD001
EFDC,32220,OTHER SUPPORT SERVICES,AGENCY STAFF,0120,16-Oct-19,158454,4374.31,CAPSTONE PROPERTY RECRUITMENT LTD,CAP001
EFDC,32220,OTHER SUPPORT SERVICES,AGENCY STAFF,0120,16-Oct-19,158490,4435.92,CAPSTONE PROPERTY RECRUITMENT LTD,CAP001
EFDC,32220,OTHER SUPPORT SERVICES,LEGAL EXPENSES,3680,16-Oct-19,160425,1500,TROWERS & HAMLINS LLP,TRO002
EFDC,CAPHR,HRA CAPITAL,WORKS,E040,16-Oct-19,160255,17740,W H CONSTRUCTION LTD,CON014
EFDC,CAPHR,HRA CAPITAL,VOIDS WORKS,A045,16-Oct-19,160255,87529.39,W H CONSTRUCTION LTD,CON014
EFDC,CAPHR,HRA CAPITAL,WORKS,A040,16-Oct-19,160255,9478.95,W H CONSTRUCTION LTD,CON014
EFDC,CAPHR,HRA CAPITAL,WORKS,A040,16-Oct-19,159435,10399.59,D J BAGOT FLOORING CONTRACTORS,BAG002
EFDC,EH112,LAND DRAINAGE/SEWERAGE,PROFESSIONAL FEES,3420,16-Oct-19,160589,1705.01,AFFINITY WATER LTD,AFF002
EFDC,PS100,CAR PARKING,PARKING CONTRACTOR,4350,16-Oct-19,159381,18389.09,NSL LIMITED,NSL001
EFDC,RM100,RESPONSIVE & VOID REPAIRS,BUILDING MAINTENANCE,1010,16-Oct-19,160133,8371.6,GC ROOFING UK LIMITED,GCR001
EFDC,RM100,RESPONSIVE & VOID REPAIRS,BUILDING MAINTENANCE,1010,16-Oct-19,160132,4199.44,GC ROOFING UK LIMITED,GCR001
EFDC,RM100,RESPONSIVE & VOID REPAIRS,BUILDING MAINTENANCE,1010,16-Oct-19,160137,1200,GC ROOFING UK LIMITED,GCR001
EFDC,26200,OTHER SUPPORT SERVICES,BUILDING MAINTENANCE,1010,16-Oct-19,159455,361.38,BUSH FIRE LIMITED,BUS022
EFDC,26200,OTHER SUPPORT SERVICES,BUILDING MAINTENANCE,1010,16-Oct-19,159455,94.5,BUSH FIRE LIMITED,BUS022
EFDC,26200,OTHER SUPPORT SERVICES,BUILDING MAINTENANCE,1010,16-Oct-19,159455,770,BUSH FIRE LIMITED,BUS022
EFDC,26200,OTHER SUPPORT SERVICES,BUILDING MAINTENANCE,1010,16-Oct-19,159455,4.5,BUSH FIRE LIMITED,BUS022
EFDC,RS301,NORTH WEALD CENTRE,OTHER MAINTENANCE,1050,16-Oct-19,159378,4735.86,BLAKE CONTRACTORS LIMITED,BLA008
EFDC,37600,PLANNING SUPPORT SERVICES,AGENCY STAFF,0120,16-Oct-19,158128,1283.5,G2 RECRUITMENT SOLUTIONS,G2R001
EFDC,37600,PLANNING SUPPORT SERVICES,AGENCY STAFF,0120,16-Oct-19,158114,1372.5,G2 RECRUITMENT SOLUTIONS,G2R001
EFDC,37600,PLANNING SUPPORT SERVICES,AGENCY STAFF,0120,16-Oct-19,158486,1261.15,G2 RECRUITMENT SOLUTIONS,G2R001
EFDC,37600,PLANNING SUPPORT SERVICES,AGENCY STAFF,0120,16-Oct-19,158450,1263.85,G2 RECRUITMENT SOLUTIONS,G2R001
EFDC,37600,PLANNING SUPPORT SERVICES,AGENCY STAFF,0120,16-Oct-19,158487,1299.6,G2 RECRUITMENT SOLUTIONS,G2R001
EFDC,TI170,LAND & PROPERTY,PROFESSIONAL FEES,3420,16-Oct-19,160412,1088.5,BIRKETTS LLP,BIR001
EFDC,UO130,LAND & PROPERTY,PREMISES,1030,16-Oct-19,160422,2941.51,LAND COMMERCIAL SURVEYORS LIMITED,LAN027
EFDC,UO130,LAND & PROPERTY,PREMISES,1030,16-Oct-19,160420,1808.1,LAND COMMERCIAL SURVEYORS LIMITED,LAN027
EFDC,UO130,LAND & PROPERTY,PREMISES,1030,16-Oct-19,160420,1633.49,LAND COMMERCIAL SURVEYORS LIMITED,LAN027
EFDC,GT100,LOCAL PLAN IMPLEMENTATION,CONSULTANTS FEES,3490,16-Oct-19,159864,1666,GUY NICHOLSON,NIC023
EFDC,TO100,LAND & PROPERTY,LICENSES,2360,16-Oct-19,159062,600,HAYNES PRO UK,HAY014
EFDC,37600,PLANNING SUPPORT SERVICES,AGENCY STAFF,0120,16-Oct-19,158835,910,PARK AVENUE RECRUITMENT LTD,PAR088
EFDC,78001,HRA SUPPORT SERVICES,AGENCY STAFF,0120,16-Oct-19,159884,536.25,VENTURE CONSTRUCTION SERVICES LTD,VEN002
EFDC,78001,HRA SUPPORT SERVICES,AGENCY STAFF,0120,16-Oct-19,159882,500.76,VENTURE CONSTRUCTION SERVICES LTD,VEN002
EFDC,BAL01,EFDC BALANCE SHEET,SALARIES - UNIONS,Z605,22-Oct-19,34346,1231.1,UNISON,UNI001
EFDC,32140,OTHER SUPPORT SERVICES,COMMISSION,9320,22-Oct-19,34346,-30.78,UNISON,UNI001
EFDC,PH100,PRIVATE SECTOR HOUSING,GRANTS GENERAL,3720,22-Oct-19,34343,5323,STANNAH LIFT SERVICES LTD,STA002
EFDC,PH100,PRIVATE SECTOR HOUSING,GRANTS GENERAL,3720,22-Oct-19,34344,5744,STANNAH LIFT SERVICES LTD,STA002
EFDC,TO100,LAND & PROPERTY,LEVY FEES,3890,22-Oct-19,34317,2050,DVSA FINANCE SERVICE MANAGEMENT,5750P
EFDC,PH100,PRIVATE SECTOR HOUSING,GRANTS GENERAL,3720,22-Oct-19,34312,5720,ACCESSIBLE SOLUTIONS LIMITED,ACC002
EFDC,BAL01,EFDC BALANCE SHEET,SUNDRY DEBTORS (OTHER),Z208,22-Oct-19,34336,520,NICKOLDS HMO,8946P
EFDC,BAL01,EFDC BALANCE SHEET,SUNDRY DEBTORS (OTHER),Z208,22-Oct-19,34336,520,NICKOLDS HMO,8946P
EFDC,PH100,PRIVATE SECTOR HOUSING,GRANTS GENERAL,3720,22-Oct-19,34333,5561,JEWEL PROPERTY MAINTENANCE LTD,JEW022
EFDC,PH100,PRIVATE SECTOR HOUSING,GRANTS GENERAL,3720,22-Oct-19,34334,3851,JEWEL PROPERTY MAINTENANCE LTD,JEW022
EFDC,PH100,PRIVATE SECTOR HOUSING,GRANTS GENERAL,3720,22-Oct-19,34332,5580,JEWEL PROPERTY MAINTENANCE LTD,JEW022
EFDC,BAL01,EFDC BALANCE SHEET,HOUSING RENT REFUNDS,Z613,22-Oct-19,34342,630.42,MISS S REDMOND,8355P
EFDC,BAL01,EFDC BALANCE SHEET,SUNDRY DEBTORS (OTHER),Z208,22-Oct-19,34335,1000,MONTAGUES PROPERTY MANAGEMENT LTD,8630P
EFDC,BAL01,EFDC BALANCE SHEET,DEPOSITS - PAID,Z223,22-Oct-19,34335,1000,MONTAGUES PROPERTY MANAGEMENT LTD,8630P
EFDC,32121,OTHER SUPPORT SERVICES,EQUIPMENT - NEW,3010,23-Oct-19,160939,1000,CYCLESCHEME LIMITED,CYC001
EFDC,RM100,RESPONSIVE & VOID REPAIRS,BUILDING MAINTENANCE,1010,23-Oct-19,160942,3560.22,EXTERIOR PLAS,EXT001
EFDC,RM100,RESPONSIVE & VOID REPAIRS,BUILDING MAINTENANCE,1010,23-Oct-19,160943,600,EXTERIOR PLAS,EXT001
EFDC,RM100,RESPONSIVE & VOID REPAIRS,BUILDING MAINTENANCE,1010,23-Oct-19,160465,2446.1,EXTERIOR PLAS,EXT001
EFDC,36650,HRA SUPPORT SERVICES,AGENCY STAFF,0120,23-Oct-19,159981,1750,HAYS SPECIALIST RECRUITMENT LTD,HAY011
EFDC,EH160,OTHER ACTIVITIES,LEASE RENTAL,1220,23-Oct-19,157719,65010.88,JCDECAUX UK LTD,JCD001
EFDC,32060,OTHER SUPPORT SERVICES,AGENCY STAFF,0120,23-Oct-19,159404,1628,LAW ABSOLUTE LIMITED,LAW009
EFDC,37500,PLANNING SUPPORT SERVICES,AGENCY STAFF,0120,23-Oct-19,158830,577.5,ADECCO UK LTD,ADE002
EFDC,37500,PLANNING SUPPORT SERVICES,AGENCY STAFF,0120,23-Oct-19,158829,577.5,ADECCO UK LTD,ADE002
EFDC,37500,PLANNING SUPPORT SERVICES,AGENCY STAFF,0120,23-Oct-19,158833,577.5,ADECCO UK LTD,ADE002
EFDC,37500,PLANNING SUPPORT SERVICES,AGENCY STAFF,0120,23-Oct-19,158831,577.5,ADECCO UK LTD,ADE002
EFDC,37500,PLANNING SUPPORT SERVICES,AGENCY STAFF,0120,23-Oct-19,158832,577.5,ADECCO UK LTD,ADE002
EFDC,YA300,SUPERVISION/MANAGEMENT GENERAL,BANKING AND CASH COLLECTION,3440,23-Oct-19,160106,1644.48,ALLPAY.NET.LIMITED,ALL010
EFDC,YA300,SUPERVISION/MANAGEMENT GENERAL,BANKING AND CASH COLLECTION,3440,23-Oct-19,160150,518.82,ALLPAY.NET.LIMITED,ALL010
EFDC,TO100,LAND & PROPERTY,VEHICLE PARTS / REPAIRS,2210,23-Oct-19,160048,1062.5,LOUGHTON SELF DRIVE LTD,LOU001
EFDC,78001,HRA SUPPORT SERVICES,PROFESSIONAL FEES,3420,23-Oct-19,159765,9976.03,MEARS LTD,MEA002
EFDC,32191,OTHER SUPPORT SERVICES,CONSULTANTS FEES,3490,23-Oct-19,159766,3171.99,MEARS LTD,MEA002
EFDC,32200,OTHER SUPPORT SERVICES,EQUIPMENT - MAINTENANCE,3030,23-Oct-19,160841,4725.75,NEOPOST LTD,NEO003
EFDC,CY100,COMMUNITY & PARTNERSHIP,CONTRIBUTIONS,3740,23-Oct-19,160005,1415.7,PARKGUARD LTD,PAR016
EFDC,36600,HRA SUPPORT SERVICES,PRINT OPERATIONS INTERNAL,5420,23-Oct-19,160482,1236.39,MOBILE STATIONERY PRINTING CENTRE LTD,MOB002
EFDC,HI122,HIGHWAYS,TREE  MAINTENANCE,1070,23-Oct-19,160266,1470,PRINCIPAL TREES LTD,PRI017
EFDC,51140,OTHER SUPPORT SERVICES,AGENCY STAFF,0120,23-Oct-19,160900,605.52,REED SPECIALIST RECRUITMENT LTD,REE002
EFDC,35013,CONTRACT & TECH SUPPORT SERVIC,AGENCY STAFF,0120,23-Oct-19,160902,1043.1,REED SPECIALIST RECRUITMENT LTD,REE002
EFDC,51140,OTHER SUPPORT SERVICES,AGENCY STAFF,0120,23-Oct-19,160903,574.56,REED SPECIALIST RECRUITMENT LTD,REE002
EFDC,78001,HRA SUPPORT SERVICES,FUEL,2330,23-Oct-19,160745,2176.89,SHELL U.K. OIL PRODUCTS LIMITED,SHE007
EFDC,YB120,SUPERVISION/MANAGEMENT SPECIAL,FUEL,2330,23-Oct-19,160745,211.53,SHELL U.K. OIL PRODUCTS LIMITED,SHE007
EFDC,35300,CONTRACT & TECH SUPPORT SERVIC,FUEL,2330,23-Oct-19,160457,3133.3,SHELL U.K. OIL PRODUCTS LIMITED,SHE007
EFDC,26200,OTHER SUPPORT SERVICES,BUILDING MAINTENANCE,1010,23-Oct-19,160550,950,ROGER AYERS T/A R J SPECIALIST COATINGS,SPE005
EFDC,26200,OTHER SUPPORT SERVICES,BUILDING MAINTENANCE,1010,23-Oct-19,160550,152,ROGER AYERS T/A R J SPECIALIST COATINGS,SPE005
EFDC,32120,OTHER SUPPORT SERVICES,EMPLOYEES - OTHER PAYMENTS,0191,23-Oct-19,160006,510,SPECSAVERS OPTICAL SUPERSTORES,SPE016
EFDC,51150,OTHER SUPPORT SERVICES,TRAINING EXPENSES,0310,23-Oct-19,158811,625,SOLACE GROUP LTD,SOL010
EFDC,51150,OTHER SUPPORT SERVICES,POSTAGE,3510,23-Oct-19,160245,427.02,ROYAL MAIL GROUP PLC,ROY015
EFDC,RE100,ELECTIONS,POSTAGE,3510,23-Oct-19,160245,372.57,ROYAL MAIL GROUP PLC,ROY015
EFDC,33055,OTHER ACTIVITIES,POSTAGE,3510,23-Oct-19,160245,225.06,ROYAL MAIL GROUP PLC,ROY015
EFDC,33075,OTHER ACTIVITIES,POSTAGE,3510,23-Oct-19,160245,463.48,ROYAL MAIL GROUP PLC,ROY015
EFDC,34110,HOUSING PROP SUPPORT SERVICES,POSTAGE,3510,23-Oct-19,160245,7.26,ROYAL MAIL GROUP PLC,ROY015
EFDC,EL100,ELECTIONS,POSTAGE,3510,23-Oct-19,160245,54.91,ROYAL MAIL GROUP PLC,ROY015
EFDC,CH110,"MUSEUM, HERITAGE & CULTURE",POSTAGE,3510,23-Oct-19,160245,0.33,ROYAL MAIL GROUP PLC,ROY015
EFDC,YB520,SUPERVISION/MANAGEMENT SPECIAL,OTHER CONTRACTORS,4340,23-Oct-19,159610,4451.2,TUNSTALL RESPONSE LTD,TUN002
EFDC,RS301,NORTH WEALD CENTRE,FIXED PLANT MAINTENANCE,1020,23-Oct-19,160909,2140,C.Q SURFACING LTD,SUR008
EFDC,RS301,NORTH WEALD CENTRE,FIXED PLANT MAINTENANCE,1020,23-Oct-19,160909,1470,C.Q SURFACING LTD,SUR008
EFDC,78001,HRA SUPPORT SERVICES,MATERIALS,3080,23-Oct-19,160407,934.71,TRAVIS PERKINS TRADING COMPANY LTD,TRA001
EFDC,EH112,LAND DRAINAGE/SEWERAGE,OTHER MAINTENANCE,1050,23-Oct-19,159720,1617.68,VEOLIA ES (UK) LTD,VER004
EFDC,32120,OTHER SUPPORT SERVICES,SUBSCRIPTIONS,3730,23-Oct-19,160236,1000,VINE HR LTD,VIN003
EFDC,RM100,RESPONSIVE & VOID REPAIRS,BUILDING MAINTENANCE,1010,23-Oct-19,159810,1440,GRACELANDS COMPLETE MAINTENANCE SERVICES LTD,GRA007
EFDC,RM100,RESPONSIVE & VOID REPAIRS,BUILDING MAINTENANCE,1010,23-Oct-19,160168,800,GRACELANDS COMPLETE MAINTENANCE SERVICES LTD,GRA007
EFDC,RM100,RESPONSIVE & VOID REPAIRS,BUILDING MAINTENANCE,1010,23-Oct-19,159153,1703.74,GRACELANDS COMPLETE MAINTENANCE SERVICES LTD,GRA007
EFDC,RM100,RESPONSIVE & VOID REPAIRS,BUILDING MAINTENANCE,1010,23-Oct-19,160119,800,GRACELANDS COMPLETE MAINTENANCE SERVICES LTD,GRA007
EFDC,CAPHR,HRA CAPITAL,VOIDS WORKS,A045,23-Oct-19,160122,1038.17,GRACELANDS COMPLETE MAINTENANCE SERVICES LTD,GRA007
EFDC,CAPHR,HRA CAPITAL,VOIDS WORKS,A045,23-Oct-19,160121,1831.86,GRACELANDS COMPLETE MAINTENANCE SERVICES LTD,GRA007
EFDC,RM100,RESPONSIVE & VOID REPAIRS,BUILDING MAINTENANCE,1010,23-Oct-19,160131,1427.38,GRACELANDS COMPLETE MAINTENANCE SERVICES LTD,GRA007
EFDC,RM200,RESPONSIVE & VOID REPAIRS,BUILDING MAINTENANCE,1010,23-Oct-19,160468,700.49,GRACELANDS COMPLETE MAINTENANCE SERVICES LTD,GRA007
EFDC,RM200,RESPONSIVE & VOID REPAIRS,BUILDING MAINTENANCE,1010,23-Oct-19,159705,570,GRACELANDS COMPLETE MAINTENANCE SERVICES LTD,GRA007
EFDC,CAPHR,HRA CAPITAL,WORKS,A040,23-Oct-19,160947,14283.41,GRACELANDS COMPLETE MAINTENANCE SERVICES LTD,GRA007
EFDC,33055,OTHER ACTIVITIES,AGENCY STAFF,0120,23-Oct-19,160879,981.24,MORGAN HUNT UK LTD,MOR001
EFDC,33075,OTHER ACTIVITIES,AGENCY STAFF,0120,23-Oct-19,160888,869.13,MORGAN HUNT UK LTD,MOR001
EFDC,33075,OTHER ACTIVITIES,AGENCY STAFF,0120,23-Oct-19,160881,692.96,MORGAN HUNT UK LTD,MOR001
EFDC,36500,HRA SUPPORT SERVICES,AGENCY STAFF,0120,23-Oct-19,160883,954,MORGAN HUNT UK LTD,MOR001
EFDC,36500,HRA SUPPORT SERVICES,AGENCY STAFF,0120,23-Oct-19,160884,954,MORGAN HUNT UK LTD,MOR001
EFDC,36500,HRA SUPPORT SERVICES,AGENCY STAFF,0120,23-Oct-19,160885,954,MORGAN HUNT UK LTD,MOR001
EFDC,36500,HRA SUPPORT SERVICES,AGENCY STAFF,0120,23-Oct-19,160886,954,MORGAN HUNT UK LTD,MOR001
EFDC,35005,CONTRACT & TECH SUPPORT SERVIC,AGENCY STAFF,0120,23-Oct-19,160880,865.32,MORGAN HUNT UK LTD,MOR001
EFDC,35005,CONTRACT & TECH SUPPORT SERVIC,AGENCY STAFF,0120,23-Oct-19,160887,836.05,MORGAN HUNT UK LTD,MOR001
EFDC,33055,OTHER ACTIVITIES,AGENCY STAFF,0120,23-Oct-19,160889,981.24,MORGAN HUNT UK LTD,MOR001
EFDC,YB140,SUPERVISION/MANAGEMENT SPECIAL,OTHER MAINTENANCE,1050,23-Oct-19,159430,458.12,BINDER LTD,BIN001
EFDC,YB140,SUPERVISION/MANAGEMENT SPECIAL,OTHER MAINTENANCE,1050,23-Oct-19,159428,111.24,BINDER LTD,BIN001
EFDC,YB140,SUPERVISION/MANAGEMENT SPECIAL,OTHER MAINTENANCE,1050,23-Oct-19,159432,458.12,BINDER LTD,BIN001
EFDC,YB140,SUPERVISION/MANAGEMENT SPECIAL,OTHER MAINTENANCE,1050,23-Oct-19,159432,111.24,BINDER LTD,BIN001
EFDC,YB140,SUPERVISION/MANAGEMENT SPECIAL,OTHER MAINTENANCE,1050,23-Oct-19,159430,111.24,BINDER LTD,BIN001
EFDC,YB140,SUPERVISION/MANAGEMENT SPECIAL,OTHER MAINTENANCE,1050,23-Oct-19,159428,458.12,BINDER LTD,BIN001
EFDC,78001,HRA SUPPORT SERVICES,AGENCY STAFF,0120,23-Oct-19,160441,832.68,JAMES ANDREWS RECRUITMENT SOLUTIONS LTD,JAM001
EFDC,36500,HRA SUPPORT SERVICES,AGENCY STAFF,0120,23-Oct-19,160480,887.75,JAMES ANDREWS RECRUITMENT SOLUTIONS LTD,JAM001
EFDC,SC100,WASTE MANAGEMENT,CLEANSING CONTRACTORS,4320,23-Oct-19,159735,1646.2,JUST GRAB SERVICES LTD,JUS002
EFDC,DC120,PLANNING REGULATORY SERVICES,PROFESSIONAL FEES,3420,23-Oct-19,160442,5000,KIFT CONSULTING LTD,KIF001
EFDC,CAPGF,GENERAL FUND CAPITAL,WORKS,A040,23-Oct-19,159795,530,WOODS BUILDING SERVICES LTD,WOO001
EFDC,CAPGF,GENERAL FUND CAPITAL,WORKS,A040,23-Oct-19,159991,562,WOODS BUILDING SERVICES LTD,WOO001
EFDC,CAPHR,HRA CAPITAL,VOIDS WORKS,A045,23-Oct-19,159988,530,WOODS BUILDING SERVICES LTD,WOO001
EFDC,CAPHR,HRA CAPITAL,WORKS,A040,23-Oct-19,160754,1322,WOODS BUILDING SERVICES LTD,WOO001
EFDC,27050,ACCOMMODATION,SECURITY,1650,23-Oct-19,160931,5839.17,T.S.S. (TOTAL SECURITY SERVICES) LTD,TSS001
EFDC,UO120,LAND & PROPERTY,SECURITY,1650,23-Oct-19,160927,4500,T.S.S. (TOTAL SECURITY SERVICES) LTD,TSS001
EFDC,UO120,LAND & PROPERTY,SECURITY,1650,23-Oct-19,160927,300,T.S.S. (TOTAL SECURITY SERVICES) LTD,TSS001
EFDC,UO120,LAND & PROPERTY,SECURITY,1650,23-Oct-19,160930,2550,T.S.S. (TOTAL SECURITY SERVICES) LTD,TSS001
EFDC,32120,OTHER SUPPORT SERVICES,AGENCY STAFF,0120,23-Oct-19,160030,978.42,THE OYSTER PARTNERSHIP LTD,OYS001
EFDC,32120,OTHER SUPPORT SERVICES,AGENCY STAFF,0120,23-Oct-19,159740,979.56,THE OYSTER PARTNERSHIP LTD,OYS001
EFDC,CH110,"MUSEUM, HERITAGE & CULTURE",RENTS / HIRE OF HALL,1210,23-Oct-19,160871,1100,GRANGEWOOD INVESTMENTS LTD,GRA006
EFDC,35300,CONTRACT & TECH SUPPORT SERVIC,AGENCY STAFF,0120,23-Oct-19,160279,767.52,HL SERVICES (LONDON) LTD,HLS001
EFDC,35300,CONTRACT & TECH SUPPORT SERVIC,AGENCY STAFF,0120,23-Oct-19,160277,767.52,HL SERVICES (LONDON) LTD,HLS001
EFDC,35300,CONTRACT & TECH SUPPORT SERVIC,AGENCY STAFF,0120,23-Oct-19,160278,767.52,HL SERVICES (LONDON) LTD,HLS001
EFDC,23110,ACCOMMODATION,ELECTRICITY,1120,23-Oct-19,160840,1106.7,EDF ENERGY,EDF001
EFDC,RS302,NORTH WEALD CENTRE,ELECTRICITY,1120,23-Oct-19,160839,5377.58,EDF ENERGY,EDF001
EFDC,27050,ACCOMMODATION,ELECTRICITY,1120,23-Oct-19,160838,8419.12,EDF ENERGY,EDF001
EFDC,32180,OTHER SUPPORT SERVICES,TRAINING EXPENSES,0310,23-Oct-19,160899,1630,PPL TRAINING LTD,PPL001
EFDC,CAPGF,GENERAL FUND CAPITAL,CONSTRUCTION,J030,23-Oct-19,160933,7522.4,WYG MANAGEMENT SERVICES LTD,WYG002
EFDC,78001,HRA SUPPORT SERVICES,MATERIALS,3080,23-Oct-19,159690,999.82,FLOW DIRECT PLUMBING AND HEATING SUPPLIES LTD,FLO004
EFDC,78001,HRA SUPPORT SERVICES,EQUIPMENT - NEW,3010,23-Oct-19,160476,580,J W MACHINERY SERVICES LTD,JWM001
EFDC,32121,OTHER SUPPORT SERVICES,RECRUITMENT EXPENSES,0320,23-Oct-19,160126,3250,LEONARD CHESHIRE DISABILITY,LEO001
EFDC,RS150,LEISURE FACILITIES,EQUIPMENT - NEW,3010,23-Oct-19,160851,650,C G HAULAGE LTD,CGH001
EFDC,EH160,OTHER ACTIVITIES,CLEANING,1630,23-Oct-19,160935,1347.62,ATLAS CONTRACTORS LTD,ATL001
EFDC,CH116,"MUSEUM, HERITAGE & CULTURE",PRINTING - EXTERNAL,3390,23-Oct-19,160829,575,PANTHER PRINT & DESIGN LTD,PAN001
EFDC,35005,CONTRACT & TECH SUPPORT SERVIC,PRINTING - EXTERNAL,3390,23-Oct-19,160895,150,PANTHER PRINT & DESIGN LTD,PAN001
EFDC,35005,CONTRACT & TECH SUPPORT SERVIC,PRINTING - EXTERNAL,3390,23-Oct-19,160895,95,PANTHER PRINT & DESIGN LTD,PAN001
EFDC,35005,CONTRACT & TECH SUPPORT SERVIC,PRINTING - EXTERNAL,3390,23-Oct-19,160895,330,PANTHER PRINT & DESIGN LTD,PAN001
EFDC,GD100,VOLUNTARY SECTOR SUPPORT,GRANTS TO VOLUNTARY ORGS,3710,23-Oct-19,160756,5000,WALTHAM ABBEY YOUTH 2000,WAL015
EFDC,37600,PLANNING SUPPORT SERVICES,AGENCY STAFF,0120,23-Oct-19,159731,1251.25,VIVID RESOURCING LTD,VIV002
EFDC,37600,PLANNING SUPPORT SERVICES,AGENCY STAFF,0120,23-Oct-19,159770,1137.5,VIVID RESOURCING LTD,VIV002
EFDC,CH113,"MUSEUM, HERITAGE & CULTURE",PROFESSIONAL FEES,3420,23-Oct-19,159822,3513,CONSTANTINE LTD,CAN044
EFDC,37500,PLANNING SUPPORT SERVICES,AGENCY STAFF,0120,23-Oct-19,159150,2842.85,LEE AND SIBLEY CONSTRUCTION & DEVELOPMENT LTD,LEE003
EFDC,37500,PLANNING SUPPORT SERVICES,AGENCY STAFF,0120,23-Oct-19,159151,4089.19,LEE AND SIBLEY CONSTRUCTION & DEVELOPMENT LTD,LEE003
EFDC,37500,PLANNING SUPPORT SERVICES,AGENCY STAFF,0120,23-Oct-19,159152,2266.2,LEE AND SIBLEY CONSTRUCTION & DEVELOPMENT LTD,LEE003
EFDC,RM100,RESPONSIVE & VOID REPAIRS,BUILDING MAINTENANCE,1010,23-Oct-19,160738,918.05,GC ROOFING UK LIMITED,GCR001
EFDC,RM100,RESPONSIVE & VOID REPAIRS,BUILDING MAINTENANCE,1010,23-Oct-19,160737,644.6,GC ROOFING UK LIMITED,GCR001
EFDC,RM100,RESPONSIVE & VOID REPAIRS,BUILDING MAINTENANCE,1010,23-Oct-19,160944,1234.6,GC ROOFING UK LIMITED,GCR001
EFDC,37600,PLANNING SUPPORT SERVICES,AGENCY STAFF,0120,23-Oct-19,159729,1533.15,G2 RECRUITMENT SOLUTIONS,G2R001
EFDC,37600,PLANNING SUPPORT SERVICES,AGENCY STAFF,0120,23-Oct-19,159771,1574.55,G2 RECRUITMENT SOLUTIONS,G2R001
EFDC,TI170,LAND & PROPERTY,PROFESSIONAL FEES,3420,23-Oct-19,160936,840,BIRKETTS LLP,BIR001
EFDC,EH112,LAND DRAINAGE/SEWERAGE,OTHER MAINTENANCE,1050,23-Oct-19,160870,4149.68,GOLD STANDARD PEST SOLUTIONS LTD,GOL023
EFDC,26200,OTHER SUPPORT SERVICES,FIXED PLANT MAINTENANCE,1020,23-Oct-19,159987,1904.18,CENTRICA BUSINESS SOLUTIONS UK LTD,CEN010
EFDC,YA110,SUPERVISION/MANAGEMENT GENERAL,CONSULTANTS FEES,3490,23-Oct-19,160401,900,CARTER JONAS,CAR020
EFDC,YA110,SUPERVISION/MANAGEMENT GENERAL,CONSULTANTS FEES,3490,23-Oct-19,160835,675,CARTER JONAS,CAR020
EFDC,31140,CHIEF EXECUTIVE SUPPORT SERVIC,PROFESSIONAL FEES,3420,29-Oct-19,34450,2900,INFORMATION COMMISSIONER'S OFFICE,1093P
EFDC,33080,OTHER ACTIVITIES,FIXED NETWORK LINE COSTS,3520,30-Oct-19,161482,100,BRITISH TELECOMMUNICATIONS PLC,BRI002
EFDC,33080,OTHER ACTIVITIES,FIXED NETWORK LINE COSTS,3520,30-Oct-19,161482,10681.45,BRITISH TELECOMMUNICATIONS PLC,BRI002
EFDC,YB110,SUPERVISION/MANAGEMENT SPECIAL,ELECTRICITY,1120,30-Oct-19,161356,15.21,BRITISH GAS,BRI040
EFDC,YB110,SUPERVISION/MANAGEMENT SPECIAL,ELECTRICITY,1120,30-Oct-19,161356,11.78,BRITISH GAS,BRI040
EFDC,YB110,SUPERVISION/MANAGEMENT SPECIAL,ELECTRICITY,1120,30-Oct-19,161356,14.69,BRITISH GAS,BRI040
EFDC,YB110,SUPERVISION/MANAGEMENT SPECIAL,ELECTRICITY,1120,30-Oct-19,161356,15.33,BRITISH GAS,BRI040
EFDC,YB110,SUPERVISION/MANAGEMENT SPECIAL,ELECTRICITY,1120,30-Oct-19,161356,14.71,BRITISH GAS,BRI040
EFDC,YB110,SUPERVISION/MANAGEMENT SPECIAL,ELECTRICITY,1120,30-Oct-19,161356,14.43,BRITISH GAS,BRI040
EFDC,YB110,SUPERVISION/MANAGEMENT SPECIAL,ELECTRICITY,1120,30-Oct-19,161356,11.62,BRITISH GAS,BRI040
EFDC,YB110,SUPERVISION/MANAGEMENT SPECIAL,ELECTRICITY,1120,30-Oct-19,161356,14.86,BRITISH GAS,BRI040
EFDC,YB110,SUPERVISION/MANAGEMENT SPECIAL,ELECTRICITY,1120,30-Oct-19,161356,13.6,BRITISH GAS,BRI040
EFDC,YB110,SUPERVISION/MANAGEMENT SPECIAL,ELECTRICITY,1120,30-Oct-19,161356,14.88,BRITISH GAS,BRI040
EFDC,YB110,SUPERVISION/MANAGEMENT SPECIAL,ELECTRICITY,1120,30-Oct-19,161356,8.12,BRITISH GAS,BRI040
EFDC,YB110,SUPERVISION/MANAGEMENT SPECIAL,ELECTRICITY,1120,30-Oct-19,161356,13.45,BRITISH GAS,BRI040
EFDC,YB110,SUPERVISION/MANAGEMENT SPECIAL,ELECTRICITY,1120,30-Oct-19,161356,31.82,BRITISH GAS,BRI040
EFDC,YB110,SUPERVISION/MANAGEMENT SPECIAL,ELECTRICITY,1120,30-Oct-19,161356,12.16,BRITISH GAS,BRI040
EFDC,YB110,SUPERVISION/MANAGEMENT SPECIAL,ELECTRICITY,1120,30-Oct-19,161356,26.19,BRITISH GAS,BRI040
EFDC,YB110,SUPERVISION/MANAGEMENT SPECIAL,ELECTRICITY,1120,30-Oct-19,161356,16.52,BRITISH GAS,BRI040
EFDC,YB110,SUPERVISION/MANAGEMENT SPECIAL,ELECTRICITY,1120,30-Oct-19,161356,7.31,BRITISH GAS,BRI040
EFDC,YB110,SUPERVISION/MANAGEMENT SPECIAL,ELECTRICITY,1120,30-Oct-19,161356,6.39,BRITISH GAS,BRI040
EFDC,YB110,SUPERVISION/MANAGEMENT SPECIAL,ELECTRICITY,1120,30-Oct-19,161356,39.82,BRITISH GAS,BRI040
EFDC,YB110,SUPERVISION/MANAGEMENT SPECIAL,ELECTRICITY,1120,30-Oct-19,161356,7.38,BRITISH GAS,BRI040
EFDC,YB110,SUPERVISION/MANAGEMENT SPECIAL,ELECTRICITY,1120,30-Oct-19,161356,7.38,BRITISH GAS,BRI040
EFDC,YB110,SUPERVISION/MANAGEMENT SPECIAL,ELECTRICITY,1120,30-Oct-19,161356,8.36,BRITISH GAS,BRI040
EFDC,YB110,SUPERVISION/MANAGEMENT SPECIAL,ELECTRICITY,1120,30-Oct-19,161356,8.36,BRITISH GAS,BRI040
EFDC,YB110,SUPERVISION/MANAGEMENT SPECIAL,ELECTRICITY,1120,30-Oct-19,161356,22.59,BRITISH GAS,BRI040
EFDC,YB110,SUPERVISION/MANAGEMENT SPECIAL,ELECTRICITY,1120,30-Oct-19,161356,9.77,BRITISH GAS,BRI040
EFDC,YB110,SUPERVISION/MANAGEMENT SPECIAL,ELECTRICITY,1120,30-Oct-19,161356,7.37,BRITISH GAS,BRI040
EFDC,YB110,SUPERVISION/MANAGEMENT SPECIAL,ELECTRICITY,1120,30-Oct-19,161356,4.77,BRITISH GAS,BRI040
EFDC,YB110,SUPERVISION/MANAGEMENT SPECIAL,ELECTRICITY,1120,30-Oct-19,161356,3.59,BRITISH GAS,BRI040
EFDC,YB110,SUPERVISION/MANAGEMENT SPECIAL,ELECTRICITY,1120,30-Oct-19,161356,4.21,BRITISH GAS,BRI040
EFDC,YB110,SUPERVISION/MANAGEMENT SPECIAL,ELECTRICITY,1120,30-Oct-19,161356,14.38,BRITISH GAS,BRI040
EFDC,YB110,SUPERVISION/MANAGEMENT SPECIAL,ELECTRICITY,1120,30-Oct-19,161356,9.51,BRITISH GAS,BRI040
EFDC,YB110,SUPERVISION/MANAGEMENT SPECIAL,ELECTRICITY,1120,30-Oct-19,161356,16.83,BRITISH GAS,BRI040
EFDC,YB110,SUPERVISION/MANAGEMENT SPECIAL,ELECTRICITY,1120,30-Oct-19,161356,16.62,BRITISH GAS,BRI040
EFDC,YB110,SUPERVISION/MANAGEMENT SPECIAL,ELECTRICITY,1120,30-Oct-19,161356,50.6,BRITISH GAS,BRI040
EFDC,YB110,SUPERVISION/MANAGEMENT SPECIAL,ELECTRICITY,1120,30-Oct-19,161356,8.36,BRITISH GAS,BRI040
EFDC,YB110,SUPERVISION/MANAGEMENT SPECIAL,ELECTRICITY,1120,30-Oct-19,161356,8.36,BRITISH GAS,BRI040
EFDC,YB110,SUPERVISION/MANAGEMENT SPECIAL,ELECTRICITY,1120,30-Oct-19,161356,20.05,BRITISH GAS,BRI040
EFDC,YB110,SUPERVISION/MANAGEMENT SPECIAL,ELECTRICITY,1120,30-Oct-19,161356,6.39,BRITISH GAS,BRI040
EFDC,YB110,SUPERVISION/MANAGEMENT SPECIAL,ELECTRICITY,1120,30-Oct-19,161356,15.25,BRITISH GAS,BRI040
EFDC,YB110,SUPERVISION/MANAGEMENT SPECIAL,ELECTRICITY,1120,30-Oct-19,161356,6.39,BRITISH GAS,BRI040
EFDC,YB110,SUPERVISION/MANAGEMENT SPECIAL,ELECTRICITY,1120,30-Oct-19,161356,53.5,BRITISH GAS,BRI040
EFDC,YB110,SUPERVISION/MANAGEMENT SPECIAL,ELECTRICITY,1120,30-Oct-19,161356,34.28,BRITISH GAS,BRI040
EFDC,YB110,SUPERVISION/MANAGEMENT SPECIAL,ELECTRICITY,1120,30-Oct-19,161356,33.29,BRITISH GAS,BRI040
EFDC,YB110,SUPERVISION/MANAGEMENT SPECIAL,ELECTRICITY,1120,30-Oct-19,161356,8.36,BRITISH GAS,BRI040
EFDC,YB110,SUPERVISION/MANAGEMENT SPECIAL,ELECTRICITY,1120,30-Oct-19,161356,32.34,BRITISH GAS,BRI040
EFDC,YB110,SUPERVISION/MANAGEMENT SPECIAL,ELECTRICITY,1120,30-Oct-19,161356,33.25,BRITISH GAS,BRI040
EFDC,YB110,SUPERVISION/MANAGEMENT SPECIAL,ELECTRICITY,1120,30-Oct-19,161356,21.25,BRITISH GAS,BRI040
EFDC,YB110,SUPERVISION/MANAGEMENT SPECIAL,ELECTRICITY,1120,30-Oct-19,161356,17.78,BRITISH GAS,BRI040
EFDC,YB110,SUPERVISION/MANAGEMENT SPECIAL,ELECTRICITY,1120,30-Oct-19,161356,17.12,BRITISH GAS,BRI040
EFDC,YB110,SUPERVISION/MANAGEMENT SPECIAL,ELECTRICITY,1120,30-Oct-19,161356,30.62,BRITISH GAS,BRI040
EFDC,YB110,SUPERVISION/MANAGEMENT SPECIAL,ELECTRICITY,1120,30-Oct-19,161356,104.55,BRITISH GAS,BRI040
EFDC,YB110,SUPERVISION/MANAGEMENT SPECIAL,ELECTRICITY,1120,30-Oct-19,161356,60.14,BRITISH GAS,BRI040
EFDC,YB110,SUPERVISION/MANAGEMENT SPECIAL,ELECTRICITY,1120,30-Oct-19,161356,9.6,BRITISH GAS,BRI040
EFDC,YB110,SUPERVISION/MANAGEMENT SPECIAL,ELECTRICITY,1120,30-Oct-19,161356,13.43,BRITISH GAS,BRI040
EFDC,YB110,SUPERVISION/MANAGEMENT SPECIAL,ELECTRICITY,1120,30-Oct-19,161356,11.22,BRITISH GAS,BRI040
EFDC,YB110,SUPERVISION/MANAGEMENT SPECIAL,ELECTRICITY,1120,30-Oct-19,161356,47.3,BRITISH GAS,BRI040
EFDC,YB110,SUPERVISION/MANAGEMENT SPECIAL,ELECTRICITY,1120,30-Oct-19,161356,37.4,BRITISH GAS,BRI040
EFDC,YB110,SUPERVISION/MANAGEMENT SPECIAL,ELECTRICITY,1120,30-Oct-19,161356,8.36,BRITISH GAS,BRI040
EFDC,YB110,SUPERVISION/MANAGEMENT SPECIAL,ELECTRICITY,1120,30-Oct-19,161356,15.39,BRITISH GAS,BRI040
EFDC,YB110,SUPERVISION/MANAGEMENT SPECIAL,ELECTRICITY,1120,30-Oct-19,161356,51.03,BRITISH GAS,BRI040
EFDC,YB110,SUPERVISION/MANAGEMENT SPECIAL,ELECTRICITY,1120,30-Oct-19,161356,15.93,BRITISH GAS,BRI040
EFDC,YB110,SUPERVISION/MANAGEMENT SPECIAL,ELECTRICITY,1120,30-Oct-19,161356,3.17,BRITISH GAS,BRI040
EFDC,YB110,SUPERVISION/MANAGEMENT SPECIAL,ELECTRICITY,1120,30-Oct-19,161356,18.33,BRITISH GAS,BRI040
EFDC,YB110,SUPERVISION/MANAGEMENT SPECIAL,ELECTRICITY,1120,30-Oct-19,161356,12.2,BRITISH GAS,BRI040
EFDC,YB110,SUPERVISION/MANAGEMENT SPECIAL,ELECTRICITY,1120,30-Oct-19,161356,13.53,BRITISH GAS,BRI040
EFDC,YB110,SUPERVISION/MANAGEMENT SPECIAL,ELECTRICITY,1120,30-Oct-19,161356,16.86,BRITISH GAS,BRI040
EFDC,YB110,SUPERVISION/MANAGEMENT SPECIAL,ELECTRICITY,1120,30-Oct-19,161356,19.58,BRITISH GAS,BRI040
EFDC,YB110,SUPERVISION/MANAGEMENT SPECIAL,ELECTRICITY,1120,30-Oct-19,161356,10.63,BRITISH GAS,BRI040
EFDC,YB110,SUPERVISION/MANAGEMENT SPECIAL,ELECTRICITY,1120,30-Oct-19,161356,21.17,BRITISH GAS,BRI040
EFDC,YB110,SUPERVISION/MANAGEMENT SPECIAL,ELECTRICITY,1120,30-Oct-19,161356,14.3,BRITISH GAS,BRI040
EFDC,YB110,SUPERVISION/MANAGEMENT SPECIAL,ELECTRICITY,1120,30-Oct-19,161356,15.57,BRITISH GAS,BRI040
EFDC,YB110,SUPERVISION/MANAGEMENT SPECIAL,ELECTRICITY,1120,30-Oct-19,161356,14.44,BRITISH GAS,BRI040
EFDC,YB110,SUPERVISION/MANAGEMENT SPECIAL,ELECTRICITY,1120,30-Oct-19,161356,17.42,BRITISH GAS,BRI040
EFDC,YB110,SUPERVISION/MANAGEMENT SPECIAL,ELECTRICITY,1120,30-Oct-19,161356,17.76,BRITISH GAS,BRI040
EFDC,YB110,SUPERVISION/MANAGEMENT SPECIAL,ELECTRICITY,1120,30-Oct-19,161356,15.07,BRITISH GAS,BRI040
EFDC,YB110,SUPERVISION/MANAGEMENT SPECIAL,ELECTRICITY,1120,30-Oct-19,161356,14.69,BRITISH GAS,BRI040
EFDC,YB110,SUPERVISION/MANAGEMENT SPECIAL,ELECTRICITY,1120,30-Oct-19,161356,14.09,BRITISH GAS,BRI040
EFDC,YB110,SUPERVISION/MANAGEMENT SPECIAL,ELECTRICITY,1120,30-Oct-19,161356,15.2,BRITISH GAS,BRI040
EFDC,YB110,SUPERVISION/MANAGEMENT SPECIAL,ELECTRICITY,1120,30-Oct-19,161356,14.7,BRITISH GAS,BRI040
EFDC,YB110,SUPERVISION/MANAGEMENT SPECIAL,ELECTRICITY,1120,30-Oct-19,161356,13.99,BRITISH GAS,BRI040
EFDC,YB110,SUPERVISION/MANAGEMENT SPECIAL,ELECTRICITY,1120,30-Oct-19,161356,14.06,BRITISH GAS,BRI040
EFDC,YB110,SUPERVISION/MANAGEMENT SPECIAL,ELECTRICITY,1120,30-Oct-19,161356,15.06,BRITISH GAS,BRI040
EFDC,YB110,SUPERVISION/MANAGEMENT SPECIAL,ELECTRICITY,1120,30-Oct-19,161356,14.92,BRITISH GAS,BRI040
EFDC,YB110,SUPERVISION/MANAGEMENT SPECIAL,ELECTRICITY,1120,30-Oct-19,161356,7.62,BRITISH GAS,BRI040
EFDC,YB110,SUPERVISION/MANAGEMENT SPECIAL,ELECTRICITY,1120,30-Oct-19,161356,14.69,BRITISH GAS,BRI040
EFDC,YB110,SUPERVISION/MANAGEMENT SPECIAL,ELECTRICITY,1120,30-Oct-19,161356,16.36,BRITISH GAS,BRI040
EFDC,YB110,SUPERVISION/MANAGEMENT SPECIAL,ELECTRICITY,1120,30-Oct-19,161356,13.46,BRITISH GAS,BRI040
EFDC,YB110,SUPERVISION/MANAGEMENT SPECIAL,ELECTRICITY,1120,30-Oct-19,161356,13,BRITISH GAS,BRI040
EFDC,YB110,SUPERVISION/MANAGEMENT SPECIAL,ELECTRICITY,1120,30-Oct-19,161356,19.32,BRITISH GAS,BRI040
EFDC,YB110,SUPERVISION/MANAGEMENT SPECIAL,ELECTRICITY,1120,30-Oct-19,161356,15.25,BRITISH GAS,BRI040
EFDC,YB110,SUPERVISION/MANAGEMENT SPECIAL,ELECTRICITY,1120,30-Oct-19,161356,16.36,BRITISH GAS,BRI040
EFDC,YB110,SUPERVISION/MANAGEMENT SPECIAL,ELECTRICITY,1120,30-Oct-19,161356,27.75,BRITISH GAS,BRI040
EFDC,YB110,SUPERVISION/MANAGEMENT SPECIAL,ELECTRICITY,1120,30-Oct-19,161356,13.33,BRITISH GAS,BRI040
EFDC,YB110,SUPERVISION/MANAGEMENT SPECIAL,ELECTRICITY,1120,30-Oct-19,161356,41.1,BRITISH GAS,BRI040
EFDC,YB110,SUPERVISION/MANAGEMENT SPECIAL,ELECTRICITY,1120,30-Oct-19,161356,16.02,BRITISH GAS,BRI040
EFDC,YB110,SUPERVISION/MANAGEMENT SPECIAL,ELECTRICITY,1120,30-Oct-19,161356,17.65,BRITISH GAS,BRI040
EFDC,YB110,SUPERVISION/MANAGEMENT SPECIAL,ELECTRICITY,1120,30-Oct-19,161356,13.72,BRITISH GAS,BRI040
EFDC,YB110,SUPERVISION/MANAGEMENT SPECIAL,ELECTRICITY,1120,30-Oct-19,161356,14.49,BRITISH GAS,BRI040
EFDC,YB110,SUPERVISION/MANAGEMENT SPECIAL,ELECTRICITY,1120,30-Oct-19,161356,12.42,BRITISH GAS,BRI040
EFDC,YB110,SUPERVISION/MANAGEMENT SPECIAL,ELECTRICITY,1120,30-Oct-19,161356,12.89,BRITISH GAS,BRI040
EFDC,YB110,SUPERVISION/MANAGEMENT SPECIAL,ELECTRICITY,1120,30-Oct-19,161356,13.61,BRITISH GAS,BRI040
EFDC,YB110,SUPERVISION/MANAGEMENT SPECIAL,ELECTRICITY,1120,30-Oct-19,161356,15.25,BRITISH GAS,BRI040
EFDC,YB110,SUPERVISION/MANAGEMENT SPECIAL,ELECTRICITY,1120,30-Oct-19,161356,16.88,BRITISH GAS,BRI040
EFDC,YB110,SUPERVISION/MANAGEMENT SPECIAL,ELECTRICITY,1120,30-Oct-19,161356,13.32,BRITISH GAS,BRI040
EFDC,YB110,SUPERVISION/MANAGEMENT SPECIAL,ELECTRICITY,1120,30-Oct-19,161356,17.65,BRITISH GAS,BRI040
EFDC,YB110,SUPERVISION/MANAGEMENT SPECIAL,ELECTRICITY,1120,30-Oct-19,161356,24.2,BRITISH GAS,BRI040
EFDC,YB110,SUPERVISION/MANAGEMENT SPECIAL,ELECTRICITY,1120,30-Oct-19,161356,21.76,BRITISH GAS,BRI040
EFDC,YB110,SUPERVISION/MANAGEMENT SPECIAL,ELECTRICITY,1120,30-Oct-19,161356,22.66,BRITISH GAS,BRI040
EFDC,YB110,SUPERVISION/MANAGEMENT SPECIAL,ELECTRICITY,1120,30-Oct-19,161356,17.26,BRITISH GAS,BRI040
EFDC,YB110,SUPERVISION/MANAGEMENT SPECIAL,ELECTRICITY,1120,30-Oct-19,161356,15.85,BRITISH GAS,BRI040
EFDC,YB110,SUPERVISION/MANAGEMENT SPECIAL,ELECTRICITY,1120,30-Oct-19,161356,17.13,BRITISH GAS,BRI040
EFDC,YB110,SUPERVISION/MANAGEMENT SPECIAL,ELECTRICITY,1120,30-Oct-19,161356,15.35,BRITISH GAS,BRI040
EFDC,YB110,SUPERVISION/MANAGEMENT SPECIAL,ELECTRICITY,1120,30-Oct-19,161356,73.45,BRITISH GAS,BRI040
EFDC,YB110,SUPERVISION/MANAGEMENT SPECIAL,ELECTRICITY,1120,30-Oct-19,161356,20.74,BRITISH GAS,BRI040
EFDC,YB110,SUPERVISION/MANAGEMENT SPECIAL,ELECTRICITY,1120,30-Oct-19,161356,19.58,BRITISH GAS,BRI040
EFDC,YB110,SUPERVISION/MANAGEMENT SPECIAL,ELECTRICITY,1120,30-Oct-19,161356,53.77,BRITISH GAS,BRI040
EFDC,YB110,SUPERVISION/MANAGEMENT SPECIAL,ELECTRICITY,1120,30-Oct-19,161356,25.04,BRITISH GAS,BRI040
EFDC,YB110,SUPERVISION/MANAGEMENT SPECIAL,ELECTRICITY,1120,30-Oct-19,161356,10.72,BRITISH GAS,BRI040
EFDC,YB110,SUPERVISION/MANAGEMENT SPECIAL,ELECTRICITY,1120,30-Oct-19,161356,13.29,BRITISH GAS,BRI040
EFDC,YB110,SUPERVISION/MANAGEMENT SPECIAL,ELECTRICITY,1120,30-Oct-19,161356,23.67,BRITISH GAS,BRI040
EFDC,YB110,SUPERVISION/MANAGEMENT SPECIAL,ELECTRICITY,1120,30-Oct-19,161356,22.02,BRITISH GAS,BRI040
EFDC,YB110,SUPERVISION/MANAGEMENT SPECIAL,ELECTRICITY,1120,30-Oct-19,161356,25.34,BRITISH GAS,BRI040
EFDC,YB140,SUPERVISION/MANAGEMENT SPECIAL,ELECTRICITY,1120,30-Oct-19,161356,22.02,BRITISH GAS,BRI040
EFDC,YB300,SUPERVISION/MANAGEMENT SPECIAL,ELECTRICITY,1120,30-Oct-19,161356,35.24,BRITISH GAS,BRI040
EFDC,YB200,SUPERVISION/MANAGEMENT SPECIAL,ELECTRICITY,1120,30-Oct-19,161356,13.59,BRITISH GAS,BRI040
EFDC,YB140,SUPERVISION/MANAGEMENT SPECIAL,ELECTRICITY,1120,30-Oct-19,161356,18.49,BRITISH GAS,BRI040
EFDC,YB140,SUPERVISION/MANAGEMENT SPECIAL,ELECTRICITY,1120,30-Oct-19,161356,29.8,BRITISH GAS,BRI040
EFDC,YB140,SUPERVISION/MANAGEMENT SPECIAL,ELECTRICITY,1120,30-Oct-19,161356,-57.32,BRITISH GAS,BRI040
EFDC,YB140,SUPERVISION/MANAGEMENT SPECIAL,ELECTRICITY,1120,30-Oct-19,161356,-1129.07,BRITISH GAS,BRI040
EFDC,YB140,SUPERVISION/MANAGEMENT SPECIAL,ELECTRICITY,1120,30-Oct-19,161356,17.09,BRITISH GAS,BRI040
EFDC,YB140,SUPERVISION/MANAGEMENT SPECIAL,ELECTRICITY,1120,30-Oct-19,161356,30.19,BRITISH GAS,BRI040
EFDC,YB140,SUPERVISION/MANAGEMENT SPECIAL,ELECTRICITY,1120,30-Oct-19,161356,21.21,BRITISH GAS,BRI040
EFDC,YB110,SUPERVISION/MANAGEMENT SPECIAL,ELECTRICITY,1120,30-Oct-19,161356,27.01,BRITISH GAS,BRI040
EFDC,YB140,SUPERVISION/MANAGEMENT SPECIAL,ELECTRICITY,1120,30-Oct-19,161356,25.83,BRITISH GAS,BRI040
EFDC,YB140,SUPERVISION/MANAGEMENT SPECIAL,ELECTRICITY,1120,30-Oct-19,161356,32.5,BRITISH GAS,BRI040
EFDC,YB140,SUPERVISION/MANAGEMENT SPECIAL,ELECTRICITY,1120,30-Oct-19,161356,22.84,BRITISH GAS,BRI040
EFDC,YB140,SUPERVISION/MANAGEMENT SPECIAL,ELECTRICITY,1120,30-Oct-19,161356,22.94,BRITISH GAS,BRI040
EFDC,YB140,SUPERVISION/MANAGEMENT SPECIAL,ELECTRICITY,1120,30-Oct-19,161356,28.83,BRITISH GAS,BRI040
EFDC,YB140,SUPERVISION/MANAGEMENT SPECIAL,ELECTRICITY,1120,30-Oct-19,161356,24.37,BRITISH GAS,BRI040
EFDC,YB140,SUPERVISION/MANAGEMENT SPECIAL,ELECTRICITY,1120,30-Oct-19,161356,48.09,BRITISH GAS,BRI040
EFDC,YB140,SUPERVISION/MANAGEMENT SPECIAL,ELECTRICITY,1120,30-Oct-19,161356,11.68,BRITISH GAS,BRI040
EFDC,YB140,SUPERVISION/MANAGEMENT SPECIAL,ELECTRICITY,1120,30-Oct-19,161356,12.67,BRITISH GAS,BRI040
EFDC,YB140,SUPERVISION/MANAGEMENT SPECIAL,ELECTRICITY,1120,30-Oct-19,161356,23.67,BRITISH GAS,BRI040
EFDC,YB140,SUPERVISION/MANAGEMENT SPECIAL,ELECTRICITY,1120,30-Oct-19,161356,23.54,BRITISH GAS,BRI040
EFDC,YB110,SUPERVISION/MANAGEMENT SPECIAL,ELECTRICITY,1120,30-Oct-19,161356,17.5,BRITISH GAS,BRI040
EFDC,YB110,SUPERVISION/MANAGEMENT SPECIAL,ELECTRICITY,1120,30-Oct-19,161356,19.65,BRITISH GAS,BRI040
EFDC,YB110,SUPERVISION/MANAGEMENT SPECIAL,ELECTRICITY,1120,30-Oct-19,161356,16.85,BRITISH GAS,BRI040
EFDC,YB110,SUPERVISION/MANAGEMENT SPECIAL,ELECTRICITY,1120,30-Oct-19,161356,53.84,BRITISH GAS,BRI040
EFDC,YB110,SUPERVISION/MANAGEMENT SPECIAL,ELECTRICITY,1120,30-Oct-19,161356,102.85,BRITISH GAS,BRI040
EFDC,YB110,SUPERVISION/MANAGEMENT SPECIAL,ELECTRICITY,1120,30-Oct-19,161356,33.1,BRITISH GAS,BRI040
EFDC,YB110,SUPERVISION/MANAGEMENT SPECIAL,ELECTRICITY,1120,30-Oct-19,161356,52.44,BRITISH GAS,BRI040
EFDC,YB110,SUPERVISION/MANAGEMENT SPECIAL,ELECTRICITY,1120,30-Oct-19,161356,15.2,BRITISH GAS,BRI040
EFDC,YB110,SUPERVISION/MANAGEMENT SPECIAL,ELECTRICITY,1120,30-Oct-19,161356,15.43,BRITISH GAS,BRI040
EFDC,YB110,SUPERVISION/MANAGEMENT SPECIAL,ELECTRICITY,1120,30-Oct-19,161356,13.01,BRITISH GAS,BRI040
EFDC,YB110,SUPERVISION/MANAGEMENT SPECIAL,ELECTRICITY,1120,30-Oct-19,161356,11.19,BRITISH GAS,BRI040
EFDC,YB110,SUPERVISION/MANAGEMENT SPECIAL,ELECTRICITY,1120,30-Oct-19,161356,38.86,BRITISH GAS,BRI040
EFDC,YB110,SUPERVISION/MANAGEMENT SPECIAL,ELECTRICITY,1120,30-Oct-19,161356,15.49,BRITISH GAS,BRI040
EFDC,YB110,SUPERVISION/MANAGEMENT SPECIAL,ELECTRICITY,1120,30-Oct-19,161356,11.07,BRITISH GAS,BRI040
EFDC,YB110,SUPERVISION/MANAGEMENT SPECIAL,ELECTRICITY,1120,30-Oct-19,161356,16.67,BRITISH GAS,BRI040
EFDC,YB110,SUPERVISION/MANAGEMENT SPECIAL,ELECTRICITY,1120,30-Oct-19,161356,19.1,BRITISH GAS,BRI040
EFDC,YB110,SUPERVISION/MANAGEMENT SPECIAL,ELECTRICITY,1120,30-Oct-19,161356,15.72,BRITISH GAS,BRI040
EFDC,YB110,SUPERVISION/MANAGEMENT SPECIAL,ELECTRICITY,1120,30-Oct-19,161356,15.98,BRITISH GAS,BRI040
EFDC,YB110,SUPERVISION/MANAGEMENT SPECIAL,ELECTRICITY,1120,30-Oct-19,161356,11.22,BRITISH GAS,BRI040
EFDC,YB110,SUPERVISION/MANAGEMENT SPECIAL,ELECTRICITY,1120,30-Oct-19,161356,14.59,BRITISH GAS,BRI040
EFDC,YB110,SUPERVISION/MANAGEMENT SPECIAL,ELECTRICITY,1120,30-Oct-19,161356,16.86,BRITISH GAS,BRI040
EFDC,YB110,SUPERVISION/MANAGEMENT SPECIAL,ELECTRICITY,1120,30-Oct-19,161356,39.22,BRITISH GAS,BRI040
EFDC,YB110,SUPERVISION/MANAGEMENT SPECIAL,ELECTRICITY,1120,30-Oct-19,161356,42.21,BRITISH GAS,BRI040
EFDC,YB110,SUPERVISION/MANAGEMENT SPECIAL,ELECTRICITY,1120,30-Oct-19,161356,14.19,BRITISH GAS,BRI040
EFDC,YB110,SUPERVISION/MANAGEMENT SPECIAL,ELECTRICITY,1120,30-Oct-19,161356,8.61,BRITISH GAS,BRI040
EFDC,YB110,SUPERVISION/MANAGEMENT SPECIAL,ELECTRICITY,1120,30-Oct-19,161356,10.05,BRITISH GAS,BRI040
EFDC,YB110,SUPERVISION/MANAGEMENT SPECIAL,ELECTRICITY,1120,30-Oct-19,161356,9.65,BRITISH GAS,BRI040
EFDC,YB110,SUPERVISION/MANAGEMENT SPECIAL,ELECTRICITY,1120,30-Oct-19,161356,14.18,BRITISH GAS,BRI040
EFDC,YB110,SUPERVISION/MANAGEMENT SPECIAL,ELECTRICITY,1120,30-Oct-19,161356,10.72,BRITISH GAS,BRI040
EFDC,YB110,SUPERVISION/MANAGEMENT SPECIAL,ELECTRICITY,1120,30-Oct-19,161356,8.05,BRITISH GAS,BRI040
EFDC,YB110,SUPERVISION/MANAGEMENT SPECIAL,ELECTRICITY,1120,30-Oct-19,161356,29.33,BRITISH GAS,BRI040
EFDC,YB110,SUPERVISION/MANAGEMENT SPECIAL,ELECTRICITY,1120,30-Oct-19,161356,19.41,BRITISH GAS,BRI040
EFDC,YB110,SUPERVISION/MANAGEMENT SPECIAL,ELECTRICITY,1120,30-Oct-19,161356,18.66,BRITISH GAS,BRI040
EFDC,YB110,SUPERVISION/MANAGEMENT SPECIAL,ELECTRICITY,1120,30-Oct-19,161356,22.15,BRITISH GAS,BRI040
EFDC,YB110,SUPERVISION/MANAGEMENT SPECIAL,ELECTRICITY,1120,30-Oct-19,161356,26.08,BRITISH GAS,BRI040
EFDC,YB110,SUPERVISION/MANAGEMENT SPECIAL,ELECTRICITY,1120,30-Oct-19,161356,16.74,BRITISH GAS,BRI040
EFDC,YB110,SUPERVISION/MANAGEMENT SPECIAL,ELECTRICITY,1120,30-Oct-19,161356,10.25,BRITISH GAS,BRI040
EFDC,YB110,SUPERVISION/MANAGEMENT SPECIAL,ELECTRICITY,1120,30-Oct-19,161356,11.75,BRITISH GAS,BRI040
EFDC,YB110,SUPERVISION/MANAGEMENT SPECIAL,ELECTRICITY,1120,30-Oct-19,161356,15.5,BRITISH GAS,BRI040
EFDC,YB110,SUPERVISION/MANAGEMENT SPECIAL,ELECTRICITY,1120,30-Oct-19,161356,27.91,BRITISH GAS,BRI040
EFDC,YB110,SUPERVISION/MANAGEMENT SPECIAL,ELECTRICITY,1120,30-Oct-19,161356,19.29,BRITISH GAS,BRI040
EFDC,YB110,SUPERVISION/MANAGEMENT SPECIAL,ELECTRICITY,1120,30-Oct-19,161356,42.45,BRITISH GAS,BRI040
EFDC,YB110,SUPERVISION/MANAGEMENT SPECIAL,ELECTRICITY,1120,30-Oct-19,161356,23.99,BRITISH GAS,BRI040
EFDC,YB110,SUPERVISION/MANAGEMENT SPECIAL,ELECTRICITY,1120,30-Oct-19,161356,11.07,BRITISH GAS,BRI040
EFDC,YB110,SUPERVISION/MANAGEMENT SPECIAL,ELECTRICITY,1120,30-Oct-19,161356,16.86,BRITISH GAS,BRI040
EFDC,YB110,SUPERVISION/MANAGEMENT SPECIAL,ELECTRICITY,1120,30-Oct-19,161356,26.74,BRITISH GAS,BRI040
EFDC,YB110,SUPERVISION/MANAGEMENT SPECIAL,ELECTRICITY,1120,30-Oct-19,161356,19.73,BRITISH GAS,BRI040
EFDC,YB110,SUPERVISION/MANAGEMENT SPECIAL,ELECTRICITY,1120,30-Oct-19,161356,14.15,BRITISH GAS,BRI040
EFDC,YB110,SUPERVISION/MANAGEMENT SPECIAL,ELECTRICITY,1120,30-Oct-19,161356,16.98,BRITISH GAS,BRI040
EFDC,YB110,SUPERVISION/MANAGEMENT SPECIAL,ELECTRICITY,1120,30-Oct-19,161356,12.25,BRITISH GAS,BRI040
EFDC,YB110,SUPERVISION/MANAGEMENT SPECIAL,ELECTRICITY,1120,30-Oct-19,161356,17,BRITISH GAS,BRI040
EFDC,YB110,SUPERVISION/MANAGEMENT SPECIAL,ELECTRICITY,1120,30-Oct-19,161356,14.3,BRITISH GAS,BRI040
EFDC,YB110,SUPERVISION/MANAGEMENT SPECIAL,ELECTRICITY,1120,30-Oct-19,161356,15.33,BRITISH GAS,BRI040
EFDC,YB110,SUPERVISION/MANAGEMENT SPECIAL,ELECTRICITY,1120,30-Oct-19,161356,14.53,BRITISH GAS,BRI040
EFDC,YB110,SUPERVISION/MANAGEMENT SPECIAL,ELECTRICITY,1120,30-Oct-19,161356,47.71,BRITISH GAS,BRI040
EFDC,YB110,SUPERVISION/MANAGEMENT SPECIAL,ELECTRICITY,1120,30-Oct-19,161356,13.8,BRITISH GAS,BRI040
EFDC,YB110,SUPERVISION/MANAGEMENT SPECIAL,ELECTRICITY,1120,30-Oct-19,161356,9.69,BRITISH GAS,BRI040
EFDC,YB110,SUPERVISION/MANAGEMENT SPECIAL,ELECTRICITY,1120,30-Oct-19,161356,11.3,BRITISH GAS,BRI040
EFDC,YB110,SUPERVISION/MANAGEMENT SPECIAL,ELECTRICITY,1120,30-Oct-19,161356,18.38,BRITISH GAS,BRI040
EFDC,YB110,SUPERVISION/MANAGEMENT SPECIAL,ELECTRICITY,1120,30-Oct-19,161356,23.82,BRITISH GAS,BRI040
EFDC,YB110,SUPERVISION/MANAGEMENT SPECIAL,ELECTRICITY,1120,30-Oct-19,161356,494.17,BRITISH GAS,BRI040
EFDC,YB110,SUPERVISION/MANAGEMENT SPECIAL,ELECTRICITY,1120,30-Oct-19,161356,13.23,BRITISH GAS,BRI040
EFDC,YB110,SUPERVISION/MANAGEMENT SPECIAL,ELECTRICITY,1120,30-Oct-19,161356,13.81,BRITISH GAS,BRI040
EFDC,YB110,SUPERVISION/MANAGEMENT SPECIAL,ELECTRICITY,1120,30-Oct-19,161356,14.14,BRITISH GAS,BRI040
EFDC,YB110,SUPERVISION/MANAGEMENT SPECIAL,ELECTRICITY,1120,30-Oct-19,161356,11.13,BRITISH GAS,BRI040
EFDC,YB110,SUPERVISION/MANAGEMENT SPECIAL,ELECTRICITY,1120,30-Oct-19,161356,13.91,BRITISH GAS,BRI040
EFDC,YB110,SUPERVISION/MANAGEMENT SPECIAL,ELECTRICITY,1120,30-Oct-19,161356,22.25,BRITISH GAS,BRI040
EFDC,YB110,SUPERVISION/MANAGEMENT SPECIAL,ELECTRICITY,1120,30-Oct-19,161356,28.35,BRITISH GAS,BRI040
EFDC,YB110,SUPERVISION/MANAGEMENT SPECIAL,ELECTRICITY,1120,30-Oct-19,161356,13.99,BRITISH GAS,BRI040
EFDC,YB110,SUPERVISION/MANAGEMENT SPECIAL,ELECTRICITY,1120,30-Oct-19,161356,13.15,BRITISH GAS,BRI040
EFDC,YB110,SUPERVISION/MANAGEMENT SPECIAL,ELECTRICITY,1120,30-Oct-19,161356,18.54,BRITISH GAS,BRI040
EFDC,YB110,SUPERVISION/MANAGEMENT SPECIAL,ELECTRICITY,1120,30-Oct-19,161356,11.14,BRITISH GAS,BRI040
EFDC,YB110,SUPERVISION/MANAGEMENT SPECIAL,ELECTRICITY,1120,30-Oct-19,161356,9.66,BRITISH GAS,BRI040
EFDC,YB110,SUPERVISION/MANAGEMENT SPECIAL,ELECTRICITY,1120,30-Oct-19,161356,17.39,BRITISH GAS,BRI040
EFDC,YB110,SUPERVISION/MANAGEMENT SPECIAL,ELECTRICITY,1120,30-Oct-19,161356,14.72,BRITISH GAS,BRI040
EFDC,YB110,SUPERVISION/MANAGEMENT SPECIAL,ELECTRICITY,1120,30-Oct-19,161356,13.62,BRITISH GAS,BRI040
EFDC,YB110,SUPERVISION/MANAGEMENT SPECIAL,ELECTRICITY,1120,30-Oct-19,161356,250.88,BRITISH GAS,BRI040
EFDC,YB110,SUPERVISION/MANAGEMENT SPECIAL,ELECTRICITY,1120,30-Oct-19,161356,235.63,BRITISH GAS,BRI040
EFDC,YB110,SUPERVISION/MANAGEMENT SPECIAL,ELECTRICITY,1120,30-Oct-19,161356,380.5,BRITISH GAS,BRI040
EFDC,YB110,SUPERVISION/MANAGEMENT SPECIAL,ELECTRICITY,1120,30-Oct-19,161356,15.12,BRITISH GAS,BRI040
EFDC,YB110,SUPERVISION/MANAGEMENT SPECIAL,ELECTRICITY,1120,30-Oct-19,161356,14.58,BRITISH GAS,BRI040
EFDC,YB110,SUPERVISION/MANAGEMENT SPECIAL,ELECTRICITY,1120,30-Oct-19,161356,11.22,BRITISH GAS,BRI040
EFDC,YB110,SUPERVISION/MANAGEMENT SPECIAL,ELECTRICITY,1120,30-Oct-19,161356,13.75,BRITISH GAS,BRI040
EFDC,YB110,SUPERVISION/MANAGEMENT SPECIAL,ELECTRICITY,1120,30-Oct-19,161356,13.39,BRITISH GAS,BRI040
EFDC,YB110,SUPERVISION/MANAGEMENT SPECIAL,ELECTRICITY,1120,30-Oct-19,161356,14.79,BRITISH GAS,BRI040
EFDC,YB110,SUPERVISION/MANAGEMENT SPECIAL,ELECTRICITY,1120,30-Oct-19,161356,16.66,BRITISH GAS,BRI040
EFDC,YB110,SUPERVISION/MANAGEMENT SPECIAL,ELECTRICITY,1120,30-Oct-19,161356,438.76,BRITISH GAS,BRI040
EFDC,YB110,SUPERVISION/MANAGEMENT SPECIAL,ELECTRICITY,1120,30-Oct-19,161356,11.49,BRITISH GAS,BRI040
EFDC,YB110,SUPERVISION/MANAGEMENT SPECIAL,ELECTRICITY,1120,30-Oct-19,161356,19.99,BRITISH GAS,BRI040
EFDC,YB110,SUPERVISION/MANAGEMENT SPECIAL,ELECTRICITY,1120,30-Oct-19,161356,15.22,BRITISH GAS,BRI040
EFDC,YB110,SUPERVISION/MANAGEMENT SPECIAL,ELECTRICITY,1120,30-Oct-19,161356,16.63,BRITISH GAS,BRI040
EFDC,YB110,SUPERVISION/MANAGEMENT SPECIAL,ELECTRICITY,1120,30-Oct-19,161356,12.88,BRITISH GAS,BRI040
EFDC,YB110,SUPERVISION/MANAGEMENT SPECIAL,ELECTRICITY,1120,30-Oct-19,161356,13.28,BRITISH GAS,BRI040
EFDC,YB110,SUPERVISION/MANAGEMENT SPECIAL,ELECTRICITY,1120,30-Oct-19,161356,16.6,BRITISH GAS,BRI040
EFDC,YB110,SUPERVISION/MANAGEMENT SPECIAL,ELECTRICITY,1120,30-Oct-19,161356,14.87,BRITISH GAS,BRI040
EFDC,YB110,SUPERVISION/MANAGEMENT SPECIAL,ELECTRICITY,1120,30-Oct-19,161356,13.71,BRITISH GAS,BRI040
EFDC,YB110,SUPERVISION/MANAGEMENT SPECIAL,ELECTRICITY,1120,30-Oct-19,161356,28.31,BRITISH GAS,BRI040
EFDC,YB110,SUPERVISION/MANAGEMENT SPECIAL,ELECTRICITY,1120,30-Oct-19,161356,24.36,BRITISH GAS,BRI040
EFDC,YB110,SUPERVISION/MANAGEMENT SPECIAL,ELECTRICITY,1120,30-Oct-19,161356,27.45,BRITISH GAS,BRI040
EFDC,YB110,SUPERVISION/MANAGEMENT SPECIAL,ELECTRICITY,1120,30-Oct-19,161356,13.71,BRITISH GAS,BRI040
EFDC,YB110,SUPERVISION/MANAGEMENT SPECIAL,ELECTRICITY,1120,30-Oct-19,161356,23.92,BRITISH GAS,BRI040
EFDC,YB110,SUPERVISION/MANAGEMENT SPECIAL,ELECTRICITY,1120,30-Oct-19,161356,19.68,BRITISH GAS,BRI040
EFDC,YB110,SUPERVISION/MANAGEMENT SPECIAL,ELECTRICITY,1120,30-Oct-19,161356,29.31,BRITISH GAS,BRI040
EFDC,YB110,SUPERVISION/MANAGEMENT SPECIAL,ELECTRICITY,1120,30-Oct-19,161356,15.07,BRITISH GAS,BRI040
EFDC,YB110,SUPERVISION/MANAGEMENT SPECIAL,ELECTRICITY,1120,30-Oct-19,161356,20.54,BRITISH GAS,BRI040
EFDC,YB110,SUPERVISION/MANAGEMENT SPECIAL,ELECTRICITY,1120,30-Oct-19,161356,13.15,BRITISH GAS,BRI040
EFDC,YB110,SUPERVISION/MANAGEMENT SPECIAL,ELECTRICITY,1120,30-Oct-19,161356,18.09,BRITISH GAS,BRI040
EFDC,YB110,SUPERVISION/MANAGEMENT SPECIAL,ELECTRICITY,1120,30-Oct-19,161356,19.59,BRITISH GAS,BRI040
EFDC,YB110,SUPERVISION/MANAGEMENT SPECIAL,ELECTRICITY,1120,30-Oct-19,161356,16.49,BRITISH GAS,BRI040
EFDC,YB110,SUPERVISION/MANAGEMENT SPECIAL,ELECTRICITY,1120,30-Oct-19,161356,19.32,BRITISH GAS,BRI040
EFDC,YB110,SUPERVISION/MANAGEMENT SPECIAL,ELECTRICITY,1120,30-Oct-19,161356,13.93,BRITISH GAS,BRI040
EFDC,YB110,SUPERVISION/MANAGEMENT SPECIAL,ELECTRICITY,1120,30-Oct-19,161356,11.6,BRITISH GAS,BRI040
EFDC,YB110,SUPERVISION/MANAGEMENT SPECIAL,ELECTRICITY,1120,30-Oct-19,161356,21.33,BRITISH GAS,BRI040
EFDC,YB110,SUPERVISION/MANAGEMENT SPECIAL,ELECTRICITY,1120,30-Oct-19,161356,20.35,BRITISH GAS,BRI040
EFDC,YB110,SUPERVISION/MANAGEMENT SPECIAL,ELECTRICITY,1120,30-Oct-19,161356,20.19,BRITISH GAS,BRI040
EFDC,YB110,SUPERVISION/MANAGEMENT SPECIAL,ELECTRICITY,1120,30-Oct-19,161356,32.49,BRITISH GAS,BRI040
EFDC,YB110,SUPERVISION/MANAGEMENT SPECIAL,ELECTRICITY,1120,30-Oct-19,161356,37.47,BRITISH GAS,BRI040
EFDC,YB110,SUPERVISION/MANAGEMENT SPECIAL,ELECTRICITY,1120,30-Oct-19,161356,14.17,BRITISH GAS,BRI040
EFDC,YB110,SUPERVISION/MANAGEMENT SPECIAL,ELECTRICITY,1120,30-Oct-19,161356,15.5,BRITISH GAS,BRI040
EFDC,YB110,SUPERVISION/MANAGEMENT SPECIAL,ELECTRICITY,1120,30-Oct-19,161356,26.51,BRITISH GAS,BRI040
EFDC,YB110,SUPERVISION/MANAGEMENT SPECIAL,ELECTRICITY,1120,30-Oct-19,161356,13.98,BRITISH GAS,BRI040
EFDC,YB110,SUPERVISION/MANAGEMENT SPECIAL,ELECTRICITY,1120,30-Oct-19,161356,53.8,BRITISH GAS,BRI040
EFDC,YB110,SUPERVISION/MANAGEMENT SPECIAL,ELECTRICITY,1120,30-Oct-19,161356,16.03,BRITISH GAS,BRI040
EFDC,YB110,SUPERVISION/MANAGEMENT SPECIAL,ELECTRICITY,1120,30-Oct-19,161356,14.06,BRITISH GAS,BRI040
EFDC,YB110,SUPERVISION/MANAGEMENT SPECIAL,ELECTRICITY,1120,30-Oct-19,161356,16.19,BRITISH GAS,BRI040
EFDC,YB110,SUPERVISION/MANAGEMENT SPECIAL,ELECTRICITY,1120,30-Oct-19,161356,15.04,BRITISH GAS,BRI040
EFDC,YB110,SUPERVISION/MANAGEMENT SPECIAL,ELECTRICITY,1120,30-Oct-19,161356,13.08,BRITISH GAS,BRI040
EFDC,YB110,SUPERVISION/MANAGEMENT SPECIAL,ELECTRICITY,1120,30-Oct-19,161356,13.48,BRITISH GAS,BRI040
EFDC,YB110,SUPERVISION/MANAGEMENT SPECIAL,ELECTRICITY,1120,30-Oct-19,161356,13.9,BRITISH GAS,BRI040
EFDC,YB110,SUPERVISION/MANAGEMENT SPECIAL,ELECTRICITY,1120,30-Oct-19,161356,14.72,BRITISH GAS,BRI040
EFDC,YB110,SUPERVISION/MANAGEMENT SPECIAL,ELECTRICITY,1120,30-Oct-19,161356,16.43,BRITISH GAS,BRI040
EFDC,YB110,SUPERVISION/MANAGEMENT SPECIAL,ELECTRICITY,1120,30-Oct-19,161356,14.53,BRITISH GAS,BRI040
EFDC,YB110,SUPERVISION/MANAGEMENT SPECIAL,ELECTRICITY,1120,30-Oct-19,161356,51.58,BRITISH GAS,BRI040
EFDC,YB110,SUPERVISION/MANAGEMENT SPECIAL,ELECTRICITY,1120,30-Oct-19,161356,14.66,BRITISH GAS,BRI040
EFDC,YB110,SUPERVISION/MANAGEMENT SPECIAL,ELECTRICITY,1120,30-Oct-19,161356,16.31,BRITISH GAS,BRI040
EFDC,YB110,SUPERVISION/MANAGEMENT SPECIAL,ELECTRICITY,1120,30-Oct-19,161356,18.22,BRITISH GAS,BRI040
EFDC,YB110,SUPERVISION/MANAGEMENT SPECIAL,ELECTRICITY,1120,30-Oct-19,161356,58.01,BRITISH GAS,BRI040
EFDC,YB110,SUPERVISION/MANAGEMENT SPECIAL,ELECTRICITY,1120,30-Oct-19,161356,79.96,BRITISH GAS,BRI040
EFDC,YB110,SUPERVISION/MANAGEMENT SPECIAL,ELECTRICITY,1120,30-Oct-19,161356,19.69,BRITISH GAS,BRI040
EFDC,YB110,SUPERVISION/MANAGEMENT SPECIAL,ELECTRICITY,1120,30-Oct-19,161356,28.03,BRITISH GAS,BRI040
EFDC,YB110,SUPERVISION/MANAGEMENT SPECIAL,ELECTRICITY,1120,30-Oct-19,161356,15.24,BRITISH GAS,BRI040
EFDC,YB110,SUPERVISION/MANAGEMENT SPECIAL,ELECTRICITY,1120,30-Oct-19,161356,23.33,BRITISH GAS,BRI040
EFDC,YB110,SUPERVISION/MANAGEMENT SPECIAL,ELECTRICITY,1120,30-Oct-19,161356,17.59,BRITISH GAS,BRI040
EFDC,YB110,SUPERVISION/MANAGEMENT SPECIAL,ELECTRICITY,1120,30-Oct-19,161356,12.07,BRITISH GAS,BRI040
EFDC,YB110,SUPERVISION/MANAGEMENT SPECIAL,ELECTRICITY,1120,30-Oct-19,161356,24.42,BRITISH GAS,BRI040
EFDC,YB110,SUPERVISION/MANAGEMENT SPECIAL,ELECTRICITY,1120,30-Oct-19,161356,30.82,BRITISH GAS,BRI040
EFDC,YB110,SUPERVISION/MANAGEMENT SPECIAL,ELECTRICITY,1120,30-Oct-19,161356,21.83,BRITISH GAS,BRI040
EFDC,YB110,SUPERVISION/MANAGEMENT SPECIAL,ELECTRICITY,1120,30-Oct-19,161356,22.4,BRITISH GAS,BRI040
EFDC,YB110,SUPERVISION/MANAGEMENT SPECIAL,ELECTRICITY,1120,30-Oct-19,161356,26.04,BRITISH GAS,BRI040
EFDC,YB110,SUPERVISION/MANAGEMENT SPECIAL,ELECTRICITY,1120,30-Oct-19,161356,13.48,BRITISH GAS,BRI040
EFDC,YB110,SUPERVISION/MANAGEMENT SPECIAL,ELECTRICITY,1120,30-Oct-19,161356,12.88,BRITISH GAS,BRI040
EFDC,YB110,SUPERVISION/MANAGEMENT SPECIAL,ELECTRICITY,1120,30-Oct-19,161356,13.6,BRITISH GAS,BRI040
EFDC,YB110,SUPERVISION/MANAGEMENT SPECIAL,ELECTRICITY,1120,30-Oct-19,161356,17.26,BRITISH GAS,BRI040
EFDC,YB110,SUPERVISION/MANAGEMENT SPECIAL,ELECTRICITY,1120,30-Oct-19,161356,316.86,BRITISH GAS,BRI040
EFDC,YB110,SUPERVISION/MANAGEMENT SPECIAL,ELECTRICITY,1120,30-Oct-19,161356,21.04,BRITISH GAS,BRI040
EFDC,YB110,SUPERVISION/MANAGEMENT SPECIAL,ELECTRICITY,1120,30-Oct-19,161356,21.05,BRITISH GAS,BRI040
EFDC,YB110,SUPERVISION/MANAGEMENT SPECIAL,ELECTRICITY,1120,30-Oct-19,161356,87.78,BRITISH GAS,BRI040
EFDC,YB110,SUPERVISION/MANAGEMENT SPECIAL,ELECTRICITY,1120,30-Oct-19,161356,25.18,BRITISH GAS,BRI040
EFDC,YB110,SUPERVISION/MANAGEMENT SPECIAL,ELECTRICITY,1120,30-Oct-19,161356,15.43,BRITISH GAS,BRI040
EFDC,YB110,SUPERVISION/MANAGEMENT SPECIAL,ELECTRICITY,1120,30-Oct-19,161356,18.25,BRITISH GAS,BRI040
EFDC,YB110,SUPERVISION/MANAGEMENT SPECIAL,ELECTRICITY,1120,30-Oct-19,161356,15.38,BRITISH GAS,BRI040
EFDC,YB110,SUPERVISION/MANAGEMENT SPECIAL,ELECTRICITY,1120,30-Oct-19,161356,52.88,BRITISH GAS,BRI040
EFDC,YB110,SUPERVISION/MANAGEMENT SPECIAL,ELECTRICITY,1120,30-Oct-19,161356,17.76,BRITISH GAS,BRI040
EFDC,YB110,SUPERVISION/MANAGEMENT SPECIAL,ELECTRICITY,1120,30-Oct-19,161356,18.88,BRITISH GAS,BRI040
EFDC,YB110,SUPERVISION/MANAGEMENT SPECIAL,ELECTRICITY,1120,30-Oct-19,161356,20.17,BRITISH GAS,BRI040
EFDC,YB110,SUPERVISION/MANAGEMENT SPECIAL,ELECTRICITY,1120,30-Oct-19,161356,20.75,BRITISH GAS,BRI040
EFDC,YB110,SUPERVISION/MANAGEMENT SPECIAL,ELECTRICITY,1120,30-Oct-19,161356,8.24,BRITISH GAS,BRI040
EFDC,YB110,SUPERVISION/MANAGEMENT SPECIAL,ELECTRICITY,1120,30-Oct-19,161356,28.32,BRITISH GAS,BRI040
EFDC,YB110,SUPERVISION/MANAGEMENT SPECIAL,ELECTRICITY,1120,30-Oct-19,161356,8.86,BRITISH GAS,BRI040
EFDC,YB110,SUPERVISION/MANAGEMENT SPECIAL,ELECTRICITY,1120,30-Oct-19,161356,7.62,BRITISH GAS,BRI040
EFDC,YB110,SUPERVISION/MANAGEMENT SPECIAL,ELECTRICITY,1120,30-Oct-19,161356,24.45,BRITISH GAS,BRI040
EFDC,YB110,SUPERVISION/MANAGEMENT SPECIAL,ELECTRICITY,1120,30-Oct-19,161356,15.54,BRITISH GAS,BRI040
EFDC,YB110,SUPERVISION/MANAGEMENT SPECIAL,ELECTRICITY,1120,30-Oct-19,161356,51.91,BRITISH GAS,BRI040
EFDC,YB110,SUPERVISION/MANAGEMENT SPECIAL,ELECTRICITY,1120,30-Oct-19,161356,13.31,BRITISH GAS,BRI040
EFDC,YB110,SUPERVISION/MANAGEMENT SPECIAL,ELECTRICITY,1120,30-Oct-19,161356,19.93,BRITISH GAS,BRI040
EFDC,YB110,SUPERVISION/MANAGEMENT SPECIAL,ELECTRICITY,1120,30-Oct-19,161356,116.1,BRITISH GAS,BRI040
EFDC,YB110,SUPERVISION/MANAGEMENT SPECIAL,ELECTRICITY,1120,30-Oct-19,161356,20.85,BRITISH GAS,BRI040
EFDC,YB110,SUPERVISION/MANAGEMENT SPECIAL,ELECTRICITY,1120,30-Oct-19,161356,13.45,BRITISH GAS,BRI040
EFDC,YB110,SUPERVISION/MANAGEMENT SPECIAL,ELECTRICITY,1120,30-Oct-19,161356,13.85,BRITISH GAS,BRI040
EFDC,YB110,SUPERVISION/MANAGEMENT SPECIAL,ELECTRICITY,1120,30-Oct-19,161356,7.62,BRITISH GAS,BRI040
EFDC,YB110,SUPERVISION/MANAGEMENT SPECIAL,ELECTRICITY,1120,30-Oct-19,161356,16.4,BRITISH GAS,BRI040
EFDC,YB110,SUPERVISION/MANAGEMENT SPECIAL,ELECTRICITY,1120,30-Oct-19,161356,13.94,BRITISH GAS,BRI040
EFDC,YB110,SUPERVISION/MANAGEMENT SPECIAL,ELECTRICITY,1120,30-Oct-19,161356,13.72,BRITISH GAS,BRI040
EFDC,YB110,SUPERVISION/MANAGEMENT SPECIAL,ELECTRICITY,1120,30-Oct-19,161356,13.46,BRITISH GAS,BRI040
EFDC,YB110,SUPERVISION/MANAGEMENT SPECIAL,ELECTRICITY,1120,30-Oct-19,161356,12.25,BRITISH GAS,BRI040
EFDC,YB110,SUPERVISION/MANAGEMENT SPECIAL,ELECTRICITY,1120,30-Oct-19,161356,14.42,BRITISH GAS,BRI040
EFDC,YB110,SUPERVISION/MANAGEMENT SPECIAL,ELECTRICITY,1120,30-Oct-19,161356,19.54,BRITISH GAS,BRI040
EFDC,YB110,SUPERVISION/MANAGEMENT SPECIAL,ELECTRICITY,1120,30-Oct-19,161356,12.58,BRITISH GAS,BRI040
EFDC,YB110,SUPERVISION/MANAGEMENT SPECIAL,ELECTRICITY,1120,30-Oct-19,161356,11.1,BRITISH GAS,BRI040
EFDC,YB110,SUPERVISION/MANAGEMENT SPECIAL,ELECTRICITY,1120,30-Oct-19,161356,26.13,BRITISH GAS,BRI040
EFDC,YB110,SUPERVISION/MANAGEMENT SPECIAL,ELECTRICITY,1120,30-Oct-19,161356,24.73,BRITISH GAS,BRI040
EFDC,YB110,SUPERVISION/MANAGEMENT SPECIAL,ELECTRICITY,1120,30-Oct-19,161356,24.74,BRITISH GAS,BRI040
EFDC,YB110,SUPERVISION/MANAGEMENT SPECIAL,ELECTRICITY,1120,30-Oct-19,161356,85.72,BRITISH GAS,BRI040
EFDC,YB110,SUPERVISION/MANAGEMENT SPECIAL,ELECTRICITY,1120,30-Oct-19,161356,11.69,BRITISH GAS,BRI040
EFDC,YB110,SUPERVISION/MANAGEMENT SPECIAL,ELECTRICITY,1120,30-Oct-19,161356,8.36,BRITISH GAS,BRI040
EFDC,YB110,SUPERVISION/MANAGEMENT SPECIAL,ELECTRICITY,1120,30-Oct-19,161356,13.62,BRITISH GAS,BRI040
EFDC,YB110,SUPERVISION/MANAGEMENT SPECIAL,ELECTRICITY,1120,30-Oct-19,161356,13.12,BRITISH GAS,BRI040
EFDC,YB110,SUPERVISION/MANAGEMENT SPECIAL,ELECTRICITY,1120,30-Oct-19,161356,24.72,BRITISH GAS,BRI040
EFDC,YB110,SUPERVISION/MANAGEMENT SPECIAL,ELECTRICITY,1120,30-Oct-19,161356,15.08,BRITISH GAS,BRI040
EFDC,YB110,SUPERVISION/MANAGEMENT SPECIAL,ELECTRICITY,1120,30-Oct-19,161356,17.26,BRITISH GAS,BRI040
EFDC,YB110,SUPERVISION/MANAGEMENT SPECIAL,ELECTRICITY,1120,30-Oct-19,161356,11.06,BRITISH GAS,BRI040
EFDC,YB110,SUPERVISION/MANAGEMENT SPECIAL,ELECTRICITY,1120,30-Oct-19,161356,9.06,BRITISH GAS,BRI040
EFDC,YB110,SUPERVISION/MANAGEMENT SPECIAL,ELECTRICITY,1120,30-Oct-19,161356,8.93,BRITISH GAS,BRI040
EFDC,YB110,SUPERVISION/MANAGEMENT SPECIAL,ELECTRICITY,1120,30-Oct-19,161356,100.76,BRITISH GAS,BRI040
EFDC,YB110,SUPERVISION/MANAGEMENT SPECIAL,ELECTRICITY,1120,30-Oct-19,161356,109.25,BRITISH GAS,BRI040
EFDC,YB110,SUPERVISION/MANAGEMENT SPECIAL,ELECTRICITY,1120,30-Oct-19,161356,20.75,BRITISH GAS,BRI040
EFDC,YB110,SUPERVISION/MANAGEMENT SPECIAL,ELECTRICITY,1120,30-Oct-19,161356,23.25,BRITISH GAS,BRI040
EFDC,YB110,SUPERVISION/MANAGEMENT SPECIAL,ELECTRICITY,1120,30-Oct-19,161356,103.72,BRITISH GAS,BRI040
EFDC,YB110,SUPERVISION/MANAGEMENT SPECIAL,ELECTRICITY,1120,30-Oct-19,161356,21.74,BRITISH GAS,BRI040
EFDC,YB110,SUPERVISION/MANAGEMENT SPECIAL,ELECTRICITY,1120,30-Oct-19,161356,18.22,BRITISH GAS,BRI040
EFDC,YB110,SUPERVISION/MANAGEMENT SPECIAL,ELECTRICITY,1120,30-Oct-19,161356,13.87,BRITISH GAS,BRI040
EFDC,YB110,SUPERVISION/MANAGEMENT SPECIAL,ELECTRICITY,1120,30-Oct-19,161356,13.3,BRITISH GAS,BRI040
EFDC,YB110,SUPERVISION/MANAGEMENT SPECIAL,ELECTRICITY,1120,30-Oct-19,161356,12.12,BRITISH GAS,BRI040
EFDC,YB110,SUPERVISION/MANAGEMENT SPECIAL,ELECTRICITY,1120,30-Oct-19,161356,12.84,BRITISH GAS,BRI040
EFDC,YB110,SUPERVISION/MANAGEMENT SPECIAL,ELECTRICITY,1120,30-Oct-19,161356,12.69,BRITISH GAS,BRI040
EFDC,YB110,SUPERVISION/MANAGEMENT SPECIAL,ELECTRICITY,1120,30-Oct-19,161356,12.11,BRITISH GAS,BRI040
EFDC,YB110,SUPERVISION/MANAGEMENT SPECIAL,ELECTRICITY,1120,30-Oct-19,161356,13.55,BRITISH GAS,BRI040
EFDC,YB110,SUPERVISION/MANAGEMENT SPECIAL,ELECTRICITY,1120,30-Oct-19,161356,13.46,BRITISH GAS,BRI040
EFDC,YB110,SUPERVISION/MANAGEMENT SPECIAL,ELECTRICITY,1120,30-Oct-19,161356,11.86,BRITISH GAS,BRI040
EFDC,YB110,SUPERVISION/MANAGEMENT SPECIAL,ELECTRICITY,1120,30-Oct-19,161356,12.98,BRITISH GAS,BRI040
EFDC,YB110,SUPERVISION/MANAGEMENT SPECIAL,ELECTRICITY,1120,30-Oct-19,161356,13.23,BRITISH GAS,BRI040
EFDC,YB110,SUPERVISION/MANAGEMENT SPECIAL,ELECTRICITY,1120,30-Oct-19,161356,12.01,BRITISH GAS,BRI040
EFDC,YB110,SUPERVISION/MANAGEMENT SPECIAL,ELECTRICITY,1120,30-Oct-19,161356,21.18,BRITISH GAS,BRI040
EFDC,YB110,SUPERVISION/MANAGEMENT SPECIAL,ELECTRICITY,1120,30-Oct-19,161356,13.34,BRITISH GAS,BRI040
EFDC,YB110,SUPERVISION/MANAGEMENT SPECIAL,ELECTRICITY,1120,30-Oct-19,161356,13.18,BRITISH GAS,BRI040
EFDC,YB110,SUPERVISION/MANAGEMENT SPECIAL,ELECTRICITY,1120,30-Oct-19,161356,17.19,BRITISH GAS,BRI040
EFDC,YB110,SUPERVISION/MANAGEMENT SPECIAL,ELECTRICITY,1120,30-Oct-19,161356,7.71,BRITISH GAS,BRI040
EFDC,YB110,SUPERVISION/MANAGEMENT SPECIAL,ELECTRICITY,1120,30-Oct-19,161356,15.65,BRITISH GAS,BRI040
EFDC,YB110,SUPERVISION/MANAGEMENT SPECIAL,ELECTRICITY,1120,30-Oct-19,161356,19.11,BRITISH GAS,BRI040
EFDC,YB110,SUPERVISION/MANAGEMENT SPECIAL,ELECTRICITY,1120,30-Oct-19,161356,8.01,BRITISH GAS,BRI040
EFDC,YB110,SUPERVISION/MANAGEMENT SPECIAL,ELECTRICITY,1120,30-Oct-19,161356,23.89,BRITISH GAS,BRI040
EFDC,YB110,SUPERVISION/MANAGEMENT SPECIAL,ELECTRICITY,1120,30-Oct-19,161356,32.84,BRITISH GAS,BRI040
EFDC,YB110,SUPERVISION/MANAGEMENT SPECIAL,ELECTRICITY,1120,30-Oct-19,161356,27.52,BRITISH GAS,BRI040
EFDC,YB110,SUPERVISION/MANAGEMENT SPECIAL,ELECTRICITY,1120,30-Oct-19,161356,22.04,BRITISH GAS,BRI040
EFDC,YB110,SUPERVISION/MANAGEMENT SPECIAL,ELECTRICITY,1120,30-Oct-19,161356,26.79,BRITISH GAS,BRI040
EFDC,YB110,SUPERVISION/MANAGEMENT SPECIAL,ELECTRICITY,1120,30-Oct-19,161356,15.26,BRITISH GAS,BRI040
EFDC,YB110,SUPERVISION/MANAGEMENT SPECIAL,ELECTRICITY,1120,30-Oct-19,161356,12.11,BRITISH GAS,BRI040
EFDC,YB110,SUPERVISION/MANAGEMENT SPECIAL,ELECTRICITY,1120,30-Oct-19,161356,8.12,BRITISH GAS,BRI040
EFDC,YB110,SUPERVISION/MANAGEMENT SPECIAL,ELECTRICITY,1120,30-Oct-19,161356,8.96,BRITISH GAS,BRI040
EFDC,YB110,SUPERVISION/MANAGEMENT SPECIAL,ELECTRICITY,1120,30-Oct-19,161356,12.25,BRITISH GAS,BRI040
EFDC,YB110,SUPERVISION/MANAGEMENT SPECIAL,ELECTRICITY,1120,30-Oct-19,161356,18.34,BRITISH GAS,BRI040
EFDC,YB110,SUPERVISION/MANAGEMENT SPECIAL,ELECTRICITY,1120,30-Oct-19,161356,52.46,BRITISH GAS,BRI040
EFDC,YB110,SUPERVISION/MANAGEMENT SPECIAL,ELECTRICITY,1120,30-Oct-19,161356,-17.4,BRITISH GAS,BRI040
EFDC,YB110,SUPERVISION/MANAGEMENT SPECIAL,ELECTRICITY,1120,30-Oct-19,161356,-103.98,BRITISH GAS,BRI040
EFDC,YB110,SUPERVISION/MANAGEMENT SPECIAL,ELECTRICITY,1120,30-Oct-19,161356,-105.7,BRITISH GAS,BRI040
EFDC,YB110,SUPERVISION/MANAGEMENT SPECIAL,ELECTRICITY,1120,30-Oct-19,161356,-102.37,BRITISH GAS,BRI040
EFDC,YB110,SUPERVISION/MANAGEMENT SPECIAL,ELECTRICITY,1120,30-Oct-19,161356,-126.32,BRITISH GAS,BRI040
EFDC,YB110,SUPERVISION/MANAGEMENT SPECIAL,ELECTRICITY,1120,30-Oct-19,161356,-116.37,BRITISH GAS,BRI040
EFDC,YB110,SUPERVISION/MANAGEMENT SPECIAL,ELECTRICITY,1120,30-Oct-19,161356,-22.82,BRITISH GAS,BRI040
EFDC,YB110,SUPERVISION/MANAGEMENT SPECIAL,ELECTRICITY,1120,30-Oct-19,161356,-14.92,BRITISH GAS,BRI040
EFDC,YB110,SUPERVISION/MANAGEMENT SPECIAL,ELECTRICITY,1120,30-Oct-19,161356,18.2,BRITISH GAS,BRI040
EFDC,YB110,SUPERVISION/MANAGEMENT SPECIAL,ELECTRICITY,1120,30-Oct-19,161356,24.77,BRITISH GAS,BRI040
EFDC,YB110,SUPERVISION/MANAGEMENT SPECIAL,ELECTRICITY,1120,30-Oct-19,161356,14.8,BRITISH GAS,BRI040
EFDC,YB110,SUPERVISION/MANAGEMENT SPECIAL,ELECTRICITY,1120,30-Oct-19,161356,20.42,BRITISH GAS,BRI040
EFDC,YB110,SUPERVISION/MANAGEMENT SPECIAL,ELECTRICITY,1120,30-Oct-19,161356,129.52,BRITISH GAS,BRI040
EFDC,YB110,SUPERVISION/MANAGEMENT SPECIAL,ELECTRICITY,1120,30-Oct-19,161356,29.9,BRITISH GAS,BRI040
EFDC,YB110,SUPERVISION/MANAGEMENT SPECIAL,ELECTRICITY,1120,30-Oct-19,161356,10.57,BRITISH GAS,BRI040
EFDC,YB110,SUPERVISION/MANAGEMENT SPECIAL,ELECTRICITY,1120,30-Oct-19,161356,15.92,BRITISH GAS,BRI040
EFDC,YB110,SUPERVISION/MANAGEMENT SPECIAL,ELECTRICITY,1120,30-Oct-19,161356,20.38,BRITISH GAS,BRI040
EFDC,YB110,SUPERVISION/MANAGEMENT SPECIAL,ELECTRICITY,1120,30-Oct-19,161356,206.02,BRITISH GAS,BRI040
EFDC,YB110,SUPERVISION/MANAGEMENT SPECIAL,ELECTRICITY,1120,30-Oct-19,161356,58.03,BRITISH GAS,BRI040
EFDC,YB110,SUPERVISION/MANAGEMENT SPECIAL,ELECTRICITY,1120,30-Oct-19,161356,59.97,BRITISH GAS,BRI040
EFDC,YB110,SUPERVISION/MANAGEMENT SPECIAL,ELECTRICITY,1120,30-Oct-19,161356,13.07,BRITISH GAS,BRI040
EFDC,YB110,SUPERVISION/MANAGEMENT SPECIAL,ELECTRICITY,1120,30-Oct-19,161356,10.14,BRITISH GAS,BRI040
EFDC,YB110,SUPERVISION/MANAGEMENT SPECIAL,ELECTRICITY,1120,30-Oct-19,161356,11.41,BRITISH GAS,BRI040
EFDC,YB110,SUPERVISION/MANAGEMENT SPECIAL,ELECTRICITY,1120,30-Oct-19,161356,16.85,BRITISH GAS,BRI040
EFDC,YB110,SUPERVISION/MANAGEMENT SPECIAL,ELECTRICITY,1120,30-Oct-19,161356,-13.82,BRITISH GAS,BRI040
EFDC,YB500,SUPERVISION/MANAGEMENT SPECIAL,ELECTRICITY,1120,30-Oct-19,161356,545.28,BRITISH GAS,BRI040
EFDC,YB500,SUPERVISION/MANAGEMENT SPECIAL,ELECTRICITY,1120,30-Oct-19,161356,40.63,BRITISH GAS,BRI040
EFDC,YB500,SUPERVISION/MANAGEMENT SPECIAL,ELECTRICITY,1120,30-Oct-19,161356,58.89,BRITISH GAS,BRI040
EFDC,YB500,SUPERVISION/MANAGEMENT SPECIAL,ELECTRICITY,1120,30-Oct-19,161356,252.98,BRITISH GAS,BRI040
EFDC,YB500,SUPERVISION/MANAGEMENT SPECIAL,ELECTRICITY,1120,30-Oct-19,161356,46.74,BRITISH GAS,BRI040
EFDC,YB500,SUPERVISION/MANAGEMENT SPECIAL,ELECTRICITY,1120,30-Oct-19,161356,9.9,BRITISH GAS,BRI040
EFDC,YB500,SUPERVISION/MANAGEMENT SPECIAL,ELECTRICITY,1120,30-Oct-19,161356,12.85,BRITISH GAS,BRI040
EFDC,YB500,SUPERVISION/MANAGEMENT SPECIAL,ELECTRICITY,1120,30-Oct-19,161356,349.93,BRITISH GAS,BRI040
EFDC,YB500,SUPERVISION/MANAGEMENT SPECIAL,ELECTRICITY,1120,30-Oct-19,161356,7.13,BRITISH GAS,BRI040
EFDC,YB500,SUPERVISION/MANAGEMENT SPECIAL,ELECTRICITY,1120,30-Oct-19,161356,619.05,BRITISH GAS,BRI040
EFDC,YB500,SUPERVISION/MANAGEMENT SPECIAL,ELECTRICITY,1120,30-Oct-19,161356,332.4,BRITISH GAS,BRI040
EFDC,YB500,SUPERVISION/MANAGEMENT SPECIAL,ELECTRICITY,1120,30-Oct-19,161356,59.84,BRITISH GAS,BRI040
EFDC,YB500,SUPERVISION/MANAGEMENT SPECIAL,ELECTRICITY,1120,30-Oct-19,161356,209.39,BRITISH GAS,BRI040
EFDC,YB500,SUPERVISION/MANAGEMENT SPECIAL,ELECTRICITY,1120,30-Oct-19,161356,438.73,BRITISH GAS,BRI040
EFDC,YB500,SUPERVISION/MANAGEMENT SPECIAL,ELECTRICITY,1120,30-Oct-19,161356,-13.09,BRITISH GAS,BRI040
EFDC,YB500,SUPERVISION/MANAGEMENT SPECIAL,ELECTRICITY,1120,30-Oct-19,161356,-13.97,BRITISH GAS,BRI040
EFDC,YB500,SUPERVISION/MANAGEMENT SPECIAL,ELECTRICITY,1120,30-Oct-19,161356,8.01,BRITISH GAS,BRI040
EFDC,YB500,SUPERVISION/MANAGEMENT SPECIAL,ELECTRICITY,1120,30-Oct-19,161356,22.11,BRITISH GAS,BRI040
EFDC,YB500,SUPERVISION/MANAGEMENT SPECIAL,ELECTRICITY,1120,30-Oct-19,161356,8.36,BRITISH GAS,BRI040
EFDC,YB500,SUPERVISION/MANAGEMENT SPECIAL,ELECTRICITY,1120,30-Oct-19,161356,13.34,BRITISH GAS,BRI040
EFDC,YB500,SUPERVISION/MANAGEMENT SPECIAL,ELECTRICITY,1120,30-Oct-19,161356,12.16,BRITISH GAS,BRI040
EFDC,YB500,SUPERVISION/MANAGEMENT SPECIAL,ELECTRICITY,1120,30-Oct-19,161356,12.19,BRITISH GAS,BRI040
EFDC,YB520,SUPERVISION/MANAGEMENT SPECIAL,ELECTRICITY,1120,30-Oct-19,161356,171.48,BRITISH GAS,BRI040
EFDC,YB500,SUPERVISION/MANAGEMENT SPECIAL,ELECTRICITY,1120,30-Oct-19,161356,8.94,BRITISH GAS,BRI040
EFDC,YB500,SUPERVISION/MANAGEMENT SPECIAL,ELECTRICITY,1120,30-Oct-19,161356,13.66,BRITISH GAS,BRI040
EFDC,YB500,SUPERVISION/MANAGEMENT SPECIAL,ELECTRICITY,1120,30-Oct-19,161356,14.9,BRITISH GAS,BRI040
EFDC,YB500,SUPERVISION/MANAGEMENT SPECIAL,ELECTRICITY,1120,30-Oct-19,161356,39.77,BRITISH GAS,BRI040
EFDC,YB500,SUPERVISION/MANAGEMENT SPECIAL,ELECTRICITY,1120,30-Oct-19,161356,17.26,BRITISH GAS,BRI040
EFDC,YB500,SUPERVISION/MANAGEMENT SPECIAL,ELECTRICITY,1120,30-Oct-19,161356,18.93,BRITISH GAS,BRI040
EFDC,YB500,SUPERVISION/MANAGEMENT SPECIAL,ELECTRICITY,1120,30-Oct-19,161356,17.13,BRITISH GAS,BRI040
EFDC,YB500,SUPERVISION/MANAGEMENT SPECIAL,ELECTRICITY,1120,30-Oct-19,161356,8.7,BRITISH GAS,BRI040
EFDC,YB500,SUPERVISION/MANAGEMENT SPECIAL,ELECTRICITY,1120,30-Oct-19,161356,7.13,BRITISH GAS,BRI040
EFDC,YB520,SUPERVISION/MANAGEMENT SPECIAL,ELECTRICITY,1120,30-Oct-19,161356,176.11,BRITISH GAS,BRI040
EFDC,EH160,OTHER ACTIVITIES,ELECTRICITY,1120,30-Oct-19,161356,61.6,BRITISH GAS,BRI040
EFDC,EH160,OTHER ACTIVITIES,ELECTRICITY,1120,30-Oct-19,161356,45.31,BRITISH GAS,BRI040
EFDC,FD100,LAND DRAINAGE/SEWERAGE,ELECTRICITY,1120,30-Oct-19,161356,7.06,BRITISH GAS,BRI040
EFDC,RS301,NORTH WEALD CENTRE,ELECTRICITY,1120,30-Oct-19,161356,13.74,BRITISH GAS,BRI040
EFDC,EH160,OTHER ACTIVITIES,ELECTRICITY,1120,30-Oct-19,161356,24.97,BRITISH GAS,BRI040
EFDC,TI190,LAND & PROPERTY,ELECTRICITY,1120,30-Oct-19,161356,-80.96,BRITISH GAS,BRI040
EFDC,TI190,LAND & PROPERTY,ELECTRICITY,1120,30-Oct-19,161356,71.95,BRITISH GAS,BRI040
EFDC,TI190,LAND & PROPERTY,ELECTRICITY,1120,30-Oct-19,161356,9.49,BRITISH GAS,BRI040
EFDC,RS302,NORTH WEALD CENTRE,ELECTRICITY,1120,30-Oct-19,161356,7.62,BRITISH GAS,BRI040
EFDC,35300,CONTRACT & TECH SUPPORT SERVIC,ELECTRICITY,1120,30-Oct-19,161356,105.7,BRITISH GAS,BRI040
EFDC,CH110,"MUSEUM, HERITAGE & CULTURE",ELECTRICITY,1120,30-Oct-19,161356,504.6,BRITISH GAS,BRI040
EFDC,EH160,OTHER ACTIVITIES,ELECTRICITY,1120,30-Oct-19,161356,40.88,BRITISH GAS,BRI040
EFDC,EH160,OTHER ACTIVITIES,ELECTRICITY,1120,30-Oct-19,161356,41.16,BRITISH GAS,BRI040
EFDC,EH112,LAND DRAINAGE/SEWERAGE,ELECTRICITY,1120,30-Oct-19,161356,124.93,BRITISH GAS,BRI040
EFDC,UO130,LAND & PROPERTY,ELECTRICITY,1120,30-Oct-19,161356,3.01,BRITISH GAS,BRI040
EFDC,YB620,SUPERVISION/MANAGEMENT SPECIAL,ELECTRICITY,1120,30-Oct-19,161356,-421.15,BRITISH GAS,BRI040
EFDC,YB620,SUPERVISION/MANAGEMENT SPECIAL,ELECTRICITY,1120,30-Oct-19,161356,-399.25,BRITISH GAS,BRI040
EFDC,YB620,SUPERVISION/MANAGEMENT SPECIAL,ELECTRICITY,1120,30-Oct-19,161356,-447.18,BRITISH GAS,BRI040
EFDC,YB620,SUPERVISION/MANAGEMENT SPECIAL,ELECTRICITY,1120,30-Oct-19,161356,-428.32,BRITISH GAS,BRI040
EFDC,YB620,SUPERVISION/MANAGEMENT SPECIAL,ELECTRICITY,1120,30-Oct-19,161356,2761.94,BRITISH GAS,BRI040
EFDC,YB620,SUPERVISION/MANAGEMENT SPECIAL,ELECTRICITY,1120,30-Oct-19,161356,7566.79,BRITISH GAS,BRI040
EFDC,YB620,SUPERVISION/MANAGEMENT SPECIAL,ELECTRICITY,1120,30-Oct-19,161356,8034.71,BRITISH GAS,BRI040
EFDC,YB620,SUPERVISION/MANAGEMENT SPECIAL,ELECTRICITY,1120,30-Oct-19,161356,4246.46,BRITISH GAS,BRI040
EFDC,YB620,SUPERVISION/MANAGEMENT SPECIAL,ELECTRICITY,1120,30-Oct-19,161356,1284.67,BRITISH GAS,BRI040
EFDC,YB620,SUPERVISION/MANAGEMENT SPECIAL,ELECTRICITY,1120,30-Oct-19,161356,1628.66,BRITISH GAS,BRI040
EFDC,27150,"COMMUNITY, HEALTH & WELLBEING",ELECTRICITY,1120,30-Oct-19,161356,503.95,BRITISH GAS,BRI040
EFDC,UO130,LAND & PROPERTY,ELECTRICITY,1120,30-Oct-19,161356,22.93,BRITISH GAS,BRI040
EFDC,UO130,LAND & PROPERTY,ELECTRICITY,1120,30-Oct-19,161356,23.93,BRITISH GAS,BRI040
EFDC,UO130,LAND & PROPERTY,ELECTRICITY,1120,30-Oct-19,161356,24.76,BRITISH GAS,BRI040
EFDC,UO130,LAND & PROPERTY,ELECTRICITY,1120,30-Oct-19,161356,17.31,BRITISH GAS,BRI040
EFDC,23130,ACCOMMODATION,ELECTRICITY,1120,30-Oct-19,161356,153.01,BRITISH GAS,BRI040
EFDC,23140,ACCOMMODATION,ELECTRICITY,1120,30-Oct-19,161356,230.2,BRITISH GAS,BRI040
EFDC,27050,ACCOMMODATION,ELECTRICITY,1120,30-Oct-19,161356,45.41,BRITISH GAS,BRI040
EFDC,27110,ACCOMMODATION,ELECTRICITY,1120,30-Oct-19,161356,98.88,BRITISH GAS,BRI040
EFDC,27110,ACCOMMODATION,ELECTRICITY,1120,30-Oct-19,161356,71.5,BRITISH GAS,BRI040
EFDC,27110,ACCOMMODATION,ELECTRICITY,1120,30-Oct-19,161356,72.4,BRITISH GAS,BRI040
EFDC,23140,ACCOMMODATION,ELECTRICITY,1120,30-Oct-19,161356,175.66,BRITISH GAS,BRI040
EFDC,CAPGF,GENERAL FUND CAPITAL,EQUIPMENT ACQUISITION,C330,30-Oct-19,159985,2236,CCS MEDIA LTD,CCS002
EFDC,EH160,OTHER ACTIVITIES,CONTRIBUTIONS,3740,30-Oct-19,159365,2500,CITY OF LONDON,COR003
EFDC,YB620,SUPERVISION/MANAGEMENT SPECIAL,GAS,1110,30-Oct-19,161222,981.42,CORONA ENERGY RETAIL 4 LTD,COR015
EFDC,35300,CONTRACT & TECH SUPPORT SERVIC,GAS,1110,30-Oct-19,161215,1383.11,CORONA ENERGY RETAIL 4 LTD,COR015
EFDC,27050,ACCOMMODATION,GAS,1110,30-Oct-19,161235,1408.92,CORONA ENERGY RETAIL 4 LTD,COR015
EFDC,35300,CONTRACT & TECH SUPPORT SERVIC,GAS,1110,30-Oct-19,161214,517.99,CORONA ENERGY RETAIL 4 LTD,COR015
EFDC,YB500,SUPERVISION/MANAGEMENT SPECIAL,GAS,1110,30-Oct-19,161225,1278.25,CORONA ENERGY RETAIL 4 LTD,COR015
EFDC,YB500,SUPERVISION/MANAGEMENT SPECIAL,GAS,1110,30-Oct-19,161230,889.62,CORONA ENERGY RETAIL 4 LTD,COR015
EFDC,YB500,SUPERVISION/MANAGEMENT SPECIAL,GAS,1110,30-Oct-19,161233,993.28,CORONA ENERGY RETAIL 4 LTD,COR015
EFDC,YB500,SUPERVISION/MANAGEMENT SPECIAL,GAS,1110,30-Oct-19,161227,881.94,CORONA ENERGY RETAIL 4 LTD,COR015
EFDC,YB500,SUPERVISION/MANAGEMENT SPECIAL,GAS,1110,30-Oct-19,161226,648.58,CORONA ENERGY RETAIL 4 LTD,COR015
EFDC,YB500,SUPERVISION/MANAGEMENT SPECIAL,GAS,1110,30-Oct-19,161220,695.4,CORONA ENERGY RETAIL 4 LTD,COR015
EFDC,YB500,SUPERVISION/MANAGEMENT SPECIAL,GAS,1110,30-Oct-19,161237,1005.73,CORONA ENERGY RETAIL 4 LTD,COR015
EFDC,YA110,SUPERVISION/MANAGEMENT GENERAL,PROFESSIONAL FEES,3420,30-Oct-19,161386,850,DERRICK WADE WATERS,DER001
EFDC,CAPGF,GENERAL FUND CAPITAL,PLANT ACQUISITION,C310,30-Oct-19,160773,21950,ERNEST DOE & SONS LTD,ERN001
EFDC,35300,CONTRACT & TECH SUPPORT SERVIC,VEHICLE HIRE,2620,30-Oct-19,160775,2880,ERNEST DOE & SONS LTD,ERN001
EFDC,RM100,RESPONSIVE & VOID REPAIRS,BUILDING MAINTENANCE,1010,30-Oct-19,161480,2474.64,EXTERIOR PLAS,EXT001
EFDC,CAPHR,HRA CAPITAL,WORKS,A040,30-Oct-19,161193,48428.08,FLOWLINE (BUILDERS) LTD,FLO003
EFDC,CAPHR,HRA CAPITAL,VOIDS WORKS,A045,30-Oct-19,161193,1321.23,FLOWLINE (BUILDERS) LTD,FLO003
EFDC,CAPHR,HRA CAPITAL,VOIDS WORKS,A045,30-Oct-19,161193,1760,FLOWLINE (BUILDERS) LTD,FLO003
EFDC,CAPHR,HRA CAPITAL,SURVEYS,A120,30-Oct-19,161198,1492,RICHARD F GILL & ASSOCIATES,GIL005
EFDC,CAPHR,HRA CAPITAL,SURVEYS,A120,30-Oct-19,161197,2381.29,RICHARD F GILL & ASSOCIATES,GIL005
EFDC,HI122,HIGHWAYS,TREE  MAINTENANCE,1070,30-Oct-19,160561,3169,GRISTWOOD & TOMS LTD,GRI001
EFDC,OS101,PARKS & GROUNDS,TREE  MAINTENANCE,1070,30-Oct-19,160561,483,GRISTWOOD & TOMS LTD,GRI001
EFDC,YB400,SUPERVISION/MANAGEMENT SPECIAL,TREE  MAINTENANCE,1070,30-Oct-19,160561,11589,GRISTWOOD & TOMS LTD,GRI001
EFDC,35300,CONTRACT & TECH SUPPORT SERVIC,AGENCY STAFF,0120,30-Oct-19,160451,628.76,HAYS SPECIALIST RECRUITMENT LTD,HAY011
EFDC,35300,CONTRACT & TECH SUPPORT SERVIC,AGENCY STAFF,0120,30-Oct-19,160129,561.96,HAYS SPECIALIST RECRUITMENT LTD,HAY011
EFDC,32060,OTHER SUPPORT SERVICES,AGENCY STAFF,0120,30-Oct-19,160433,1628,LAW ABSOLUTE LIMITED,LAW009
EFDC,32060,OTHER SUPPORT SERVICES,AGENCY STAFF,0120,30-Oct-19,161336,1628,LAW ABSOLUTE LIMITED,LAW009
EFDC,37600,PLANNING SUPPORT SERVICES,AGENCY STAFF,0120,30-Oct-19,158826,800.44,ADECCO UK LTD,ADE002
EFDC,37500,PLANNING SUPPORT SERVICES,AGENCY STAFF,0120,30-Oct-19,158823,577.5,ADECCO UK LTD,ADE002
EFDC,37500,PLANNING SUPPORT SERVICES,AGENCY STAFF,0120,30-Oct-19,158825,577.5,ADECCO UK LTD,ADE002
EFDC,37500,PLANNING SUPPORT SERVICES,AGENCY STAFF,0120,30-Oct-19,158828,577.5,ADECCO UK LTD,ADE002
EFDC,37600,PLANNING SUPPORT SERVICES,AGENCY STAFF,0120,30-Oct-19,158822,806.04,ADECCO UK LTD,ADE002
EFDC,YB620,SUPERVISION/MANAGEMENT SPECIAL,WATER CHARGES,1410,30-Oct-19,161471,915.54,AFFINITY FOR BUSINESS LTD,AFF001
EFDC,YB620,SUPERVISION/MANAGEMENT SPECIAL,WATER CHARGES,1410,30-Oct-19,161470,620.76,AFFINITY FOR BUSINESS LTD,AFF001
EFDC,CH113,"MUSEUM, HERITAGE & CULTURE",PUBLICITY,3360,30-Oct-19,160877,32,DANNELLS LIMITED,MAR031
EFDC,CH113,"MUSEUM, HERITAGE & CULTURE",PUBLICITY,3360,30-Oct-19,160877,98,DANNELLS LIMITED,MAR031
EFDC,CH113,"MUSEUM, HERITAGE & CULTURE",PUBLICITY,3360,30-Oct-19,160877,880,DANNELLS LIMITED,MAR031
EFDC,DC120,PLANNING REGULATORY SERVICES,PUBLICITY,3360,30-Oct-19,159711,892.5,NEWSQUEST MEDIA GROUP,NEW002
EFDC,DC120,PLANNING REGULATORY SERVICES,PUBLICITY,3360,30-Oct-19,159146,654.5,NEWSQUEST MEDIA GROUP,NEW002
EFDC,34160,HOUSING PROP SUPPORT SERVICES,PUBLICITY,3360,30-Oct-19,161459,2289,PUBLIC-I GROUP LTD,PUB004
EFDC,33080,OTHER ACTIVITIES,ANNUAL SUPPORT /  LICENSES,3872,30-Oct-19,161431,19615.67,PUBLIC-I GROUP LTD,PUB004
EFDC,YB120,SUPERVISION/MANAGEMENT SPECIAL,AGENCY STAFF,0120,30-Oct-19,161438,619.88,REED SPECIALIST RECRUITMENT LTD,REE002
EFDC,51140,OTHER SUPPORT SERVICES,AGENCY STAFF,0120,30-Oct-19,160906,605.52,REED SPECIALIST RECRUITMENT LTD,REE002
EFDC,51140,OTHER SUPPORT SERVICES,AGENCY STAFF,0120,30-Oct-19,160904,587.44,REED SPECIALIST RECRUITMENT LTD,REE002
EFDC,51140,OTHER SUPPORT SERVICES,AGENCY STAFF,0120,30-Oct-19,160901,605.52,REED SPECIALIST RECRUITMENT LTD,REE002
EFDC,32170,OTHER SUPPORT SERVICES,AGENCY STAFF,0120,30-Oct-19,161434,589.75,REED SPECIALIST RECRUITMENT LTD,REE002
EFDC,51140,OTHER SUPPORT SERVICES,AGENCY STAFF,0120,30-Oct-19,160905,605.52,REED SPECIALIST RECRUITMENT LTD,REE002
EFDC,32170,OTHER SUPPORT SERVICES,AGENCY STAFF,0120,30-Oct-19,161435,598.18,REED SPECIALIST RECRUITMENT LTD,REE002
EFDC,51140,OTHER SUPPORT SERVICES,AGENCY STAFF,0120,30-Oct-19,161437,605.52,REED SPECIALIST RECRUITMENT LTD,REE002
EFDC,51140,OTHER SUPPORT SERVICES,AGENCY STAFF,0120,30-Oct-19,161433,574.56,REED SPECIALIST RECRUITMENT LTD,REE002
EFDC,51140,OTHER SUPPORT SERVICES,AGENCY STAFF,0120,30-Oct-19,161432,605.52,REED SPECIALIST RECRUITMENT LTD,REE002
EFDC,EP100,OTHER ACTIVITIES,TRAINING EXPENSES,0310,30-Oct-19,158861,507.5,SERCO SHARED SERVICES CENTRE,SER011
EFDC,YB120,SUPERVISION/MANAGEMENT SPECIAL,FUEL,2330,30-Oct-19,161338,80.73,SHELL U.K. OIL PRODUCTS LIMITED,SHE007
EFDC,EH155,ENVIRONMENTAL HEALTH,FUEL,2330,30-Oct-19,161338,37.78,SHELL U.K. OIL PRODUCTS LIMITED,SHE007
EFDC,78001,HRA SUPPORT SERVICES,FUEL,2330,30-Oct-19,161338,752.11,SHELL U.K. OIL PRODUCTS LIMITED,SHE007
EFDC,51150,OTHER SUPPORT SERVICES,POSTAGE,3510,30-Oct-19,160743,309.87,ROYAL MAIL GROUP PLC,ROY015
EFDC,51150,OTHER SUPPORT SERVICES,POSTAGE,3510,30-Oct-19,160743,149.45,ROYAL MAIL GROUP PLC,ROY015
EFDC,33075,OTHER ACTIVITIES,POSTAGE,3510,30-Oct-19,160743,1118.38,ROYAL MAIL GROUP PLC,ROY015
EFDC,33055,OTHER ACTIVITIES,POSTAGE,3510,30-Oct-19,160743,225.72,ROYAL MAIL GROUP PLC,ROY015
EFDC,34110,HOUSING PROP SUPPORT SERVICES,POSTAGE,3510,30-Oct-19,160743,4.62,ROYAL MAIL GROUP PLC,ROY015
EFDC,CH110,"MUSEUM, HERITAGE & CULTURE",POSTAGE,3510,30-Oct-19,160743,2.31,ROYAL MAIL GROUP PLC,ROY015
EFDC,RE100,ELECTIONS,POSTAGE,3510,30-Oct-19,160743,395.01,ROYAL MAIL GROUP PLC,ROY015
EFDC,CAPGF,GENERAL FUND CAPITAL,EQUIPMENT ACQUISITION,C330,30-Oct-19,161441,540,RVTV SECURITY LTD,RVT001
EFDC,78001,HRA SUPPORT SERVICES,MATERIALS,3080,30-Oct-19,160428,7053.85,TRAVIS PERKINS TRADING COMPANY LTD,TRA001
EFDC,78001,HRA SUPPORT SERVICES,MATERIALS,3080,30-Oct-19,161448,192.95,TRAVIS PERKINS TRADING COMPANY LTD,TRA001
EFDC,78001,HRA SUPPORT SERVICES,MATERIALS,3080,30-Oct-19,161493,564.6,TRAVIS PERKINS TRADING COMPANY LTD,TRA001
EFDC,78001,HRA SUPPORT SERVICES,MATERIALS,3080,30-Oct-19,161448,262.29,TRAVIS PERKINS TRADING COMPANY LTD,TRA001
EFDC,78001,HRA SUPPORT SERVICES,MATERIALS,3080,30-Oct-19,161448,324.28,TRAVIS PERKINS TRADING COMPANY LTD,TRA001
EFDC,78001,HRA SUPPORT SERVICES,MATERIALS,3080,30-Oct-19,160428,177.33,TRAVIS PERKINS TRADING COMPANY LTD,TRA001
EFDC,32060,OTHER SUPPORT SERVICES,AGENCY STAFF,0120,30-Oct-19,160402,1726.56,VENN GROUP LTD,VEN004
EFDC,YB400,SUPERVISION/MANAGEMENT SPECIAL,CLEANSING CONTRACTORS,4320,30-Oct-19,160567,975,A G VERMIN CONTROL,VER001
EFDC,EH150,REGULATORY SERVICES,EQUIPMENT - NEW,3010,30-Oct-19,160174,1394.9,VIP-SYSTEM LIMITED,VIP001
EFDC,EH150,REGULATORY SERVICES,EQUIPMENT - NEW,3010,30-Oct-19,160932,520,VIP-SYSTEM LIMITED,VIP001
EFDC,EH150,REGULATORY SERVICES,EQUIPMENT - NEW,3010,30-Oct-19,160932,141.78,VIP-SYSTEM LIMITED,VIP001
EFDC,CAPHR,HRA CAPITAL,WORKS,A040,30-Oct-19,161478,9300,VSN ENTERPRISES LTD,VSN001
EFDC,CAPHR,HRA CAPITAL,WORKS,A040,30-Oct-19,161478,9976.65,VSN ENTERPRISES LTD,VSN001
EFDC,26200,OTHER SUPPORT SERVICES,BUILDING MAINTENANCE,1010,30-Oct-19,161389,128.8,EMERY ELECTRICAL LTD,EME001
EFDC,26200,OTHER SUPPORT SERVICES,FIXED PLANT MAINTENANCE,1020,30-Oct-19,161389,1140,EMERY ELECTRICAL LTD,EME001
EFDC,CAPHR,HRA CAPITAL,WORKS,A040,30-Oct-19,161477,31318.17,GRACELANDS COMPLETE MAINTENANCE SERVICES LTD,GRA007
EFDC,RM400,PLANNED & CYCLICAL MAINTENANCE,BUILDING MAINTENANCE,1010,30-Oct-19,161321,2436,GRACELANDS COMPLETE MAINTENANCE SERVICES LTD,GRA007
EFDC,33055,OTHER ACTIVITIES,AGENCY STAFF,0120,30-Oct-19,161407,981.24,MORGAN HUNT UK LTD,MOR001
EFDC,36500,HRA SUPPORT SERVICES,AGENCY STAFF,0120,30-Oct-19,161403,954,MORGAN HUNT UK LTD,MOR001
EFDC,33075,OTHER ACTIVITIES,AGENCY STAFF,0120,30-Oct-19,161406,704.7,MORGAN HUNT UK LTD,MOR001
EFDC,35005,CONTRACT & TECH SUPPORT SERVIC,AGENCY STAFF,0120,30-Oct-19,161404,836.05,MORGAN HUNT UK LTD,MOR001
EFDC,35300,CONTRACT & TECH SUPPORT SERVIC,AGENCY STAFF,0120,30-Oct-19,160172,653.1,BERRY RECRUITMENT LTD,BER001
EFDC,78001,HRA SUPPORT SERVICES,EQUIPMENT - NEW,3010,30-Oct-19,160186,519.9,CRANBROOK ELECTRICS,CRA001
EFDC,RS301,NORTH WEALD CENTRE,OTHER MAINTENANCE,1050,30-Oct-19,159411,1297.76,BINDER LTD,BIN001
EFDC,EH160,OTHER ACTIVITIES,CLEANING,1630,30-Oct-19,161177,1347.62,ALLIES AND MORRISON LLP,ALL001
EFDC,CAPGF,GENERAL FUND CAPITAL,CONSULTANCY FEES,B200,30-Oct-19,161487,1600,DDS (INTERNATIONAL) LTD,DDS001
EFDC,BAL01,EFDC BALANCE SHEET,TUSKER CAR SCHEME,Z631,30-Oct-19,161206,2571.8,TUSKERDIRECT LTD,TUS002
EFDC,BAL01,EFDC BALANCE SHEET,TUSKER CAR SCHEME,Z631,30-Oct-19,161206,3412.74,TUSKERDIRECT LTD,TUS002
EFDC,BAL01,EFDC BALANCE SHEET,TUSKER CAR SCHEME,Z631,30-Oct-19,161206,-1706.3,TUSKERDIRECT LTD,TUS002
EFDC,BAL01,EFDC BALANCE SHEET,TUSKER CAR SCHEME,Z631,30-Oct-19,161206,1853.75,TUSKERDIRECT LTD,TUS002
EFDC,78001,HRA SUPPORT SERVICES,AGENCY STAFF,0120,30-Oct-19,160143,832.68,JAMES ANDREWS RECRUITMENT SOLUTIONS LTD,JAM001
EFDC,SC100,WASTE MANAGEMENT,CLEANSING CONTRACTORS,4320,30-Oct-19,158115,848.4,JUST GRAB SERVICES LTD,JUS002
EFDC,CAPHR,HRA CAPITAL,VOIDS WORKS,A045,30-Oct-19,161497,1035,WOODS BUILDING SERVICES LTD,WOO001
EFDC,CAPHR,HRA CAPITAL,VOIDS WORKS,A045,30-Oct-19,161496,1035,WOODS BUILDING SERVICES LTD,WOO001
EFDC,43310,CONTRACT & TECH SUPPORT SERVIC,AGENCY STAFF,0120,30-Oct-19,161398,2194.5,MACDONALD & COMPANY FREELANCE LTD,MAC003
EFDC,37600,PLANNING SUPPORT SERVICES,AGENCY STAFF,0120,30-Oct-19,161098,4816.5,MACDONALD & COMPANY FREELANCE LTD,MAC003
EFDC,37600,PLANNING SUPPORT SERVICES,AGENCY STAFF,0120,30-Oct-19,161152,2232.5,MACDONALD & COMPANY FREELANCE LTD,MAC003
EFDC,37600,PLANNING SUPPORT SERVICES,AGENCY STAFF,0120,30-Oct-19,161462,2166,MACDONALD & COMPANY FREELANCE LTD,MAC003
EFDC,37600,PLANNING SUPPORT SERVICES,AGENCY STAFF,0120,30-Oct-19,161461,2194.5,MACDONALD & COMPANY FREELANCE LTD,MAC003
EFDC,37600,PLANNING SUPPORT SERVICES,AGENCY STAFF,0120,30-Oct-19,161460,2280,MACDONALD & COMPANY FREELANCE LTD,MAC003
EFDC,43310,CONTRACT & TECH SUPPORT SERVIC,AGENCY STAFF,0120,30-Oct-19,161399,2793,MACDONALD & COMPANY FREELANCE LTD,MAC003
EFDC,51120,OTHER SUPPORT SERVICES,AGENCY STAFF,0120,30-Oct-19,160926,3110.25,T.S.S. (TOTAL SECURITY SERVICES) LTD,TSS001
EFDC,CAPHR,HRA CAPITAL,WORKS,B040,30-Oct-19,160204,57304.05,FAIRCLOTH CONSTRUCTION LTD,FAI002
EFDC,32120,OTHER SUPPORT SERVICES,AGENCY STAFF,0120,30-Oct-19,159739,1083.77,THE OYSTER PARTNERSHIP LTD,OYS001
EFDC,35004,CONTRACT & TECH SUPPORT SERVIC,EQUIPMENT - NEW,3010,30-Oct-19,159793,4082.55,ENVIRONMENTAL SCIENTIFICS GROUP LTD,ENV005
EFDC,CAPHR,HRA CAPITAL,ARCHITECTS FEES,E160,30-Oct-19,161463,874,ECD ARCHITECTS LTD,ECD001
EFDC,35300,CONTRACT & TECH SUPPORT SERVIC,EQUIPMENT - NEW,3010,30-Oct-19,160138,1745,BELL CONTAINER TRADING LTD,BEL007
EFDC,CAPGF,GENERAL FUND CAPITAL,MANAGEMENT CONSULTANT,E130,30-Oct-19,161247,18504,WYG MANAGEMENT SERVICES LTD,WYG002
EFDC,RS400,"COMMUNITY, HEALTH & WELLBEING",RENTS / HIRE OF HALL,1210,30-Oct-19,159733,1400,LOUGHTON BOWLING CLUB LTD,LOU008
EFDC,26200,OTHER SUPPORT SERVICES,BUILDING MAINTENANCE,1010,30-Oct-19,160873,736.17,GRIGGS STREETLIGHTING & MAINTENANCE LTD,GRI003
EFDC,23110,ACCOMMODATION,CLEANING,1630,30-Oct-19,161180,1556.05,ATLAS CONTRACTORS LTD,ATL001
EFDC,23110,ACCOMMODATION,CLEANING,1630,30-Oct-19,161180,70.43,ATLAS CONTRACTORS LTD,ATL001
EFDC,27060,ACCOMMODATION,CLEANING,1630,30-Oct-19,161180,649.63,ATLAS CONTRACTORS LTD,ATL001
EFDC,23140,ACCOMMODATION,CLEANING,1630,30-Oct-19,161180,537.84,ATLAS CONTRACTORS LTD,ATL001
EFDC,27050,ACCOMMODATION,CLEANING,1630,30-Oct-19,161180,9654.35,ATLAS CONTRACTORS LTD,ATL001
EFDC,CH110,"MUSEUM, HERITAGE & CULTURE",CLEANING,1630,30-Oct-19,161180,630.58,ATLAS CONTRACTORS LTD,ATL001
EFDC,23130,ACCOMMODATION,CLEANING,1630,30-Oct-19,161180,181.95,ATLAS CONTRACTORS LTD,ATL001
EFDC,23130,ACCOMMODATION,CLEANING,1630,30-Oct-19,161180,343.34,ATLAS CONTRACTORS LTD,ATL001
EFDC,32220,OTHER SUPPORT SERVICES,PROFESSIONAL FEES,3420,30-Oct-19,161488,600,TROWERS & HAMLINS LLP,TRO002
EFDC,CAPHR,HRA CAPITAL,WORKS,A040,30-Oct-19,160413,1113.66,D J BAGOT FLOORING CONTRACTORS,BAG002
EFDC,CAPGF,GENERAL FUND CAPITAL,WORKS - UTILITIES,L041,30-Oct-19,159799,960,SYSTRA LTD,SYS004
EFDC,RM100,RESPONSIVE & VOID REPAIRS,BUILDING MAINTENANCE,1010,30-Oct-19,161325,1715.09,GC ROOFING UK LIMITED,GCR001
EFDC,RM100,RESPONSIVE & VOID REPAIRS,BUILDING MAINTENANCE,1010,30-Oct-19,161467,662.19,GC ROOFING UK LIMITED,GCR001
EFDC,RM100,RESPONSIVE & VOID REPAIRS,BUILDING MAINTENANCE,1010,30-Oct-19,161319,799.6,GC ROOFING UK LIMITED,GCR001
EFDC,RM100,RESPONSIVE & VOID REPAIRS,BUILDING MAINTENANCE,1010,30-Oct-19,161322,677.02,GC ROOFING UK LIMITED,GCR001
EFDC,RM100,RESPONSIVE & VOID REPAIRS,BUILDING MAINTENANCE,1010,30-Oct-19,161327,1191.5,GC ROOFING UK LIMITED,GCR001
EFDC,RM100,RESPONSIVE & VOID REPAIRS,BUILDING MAINTENANCE,1010,30-Oct-19,161332,1693.2,GC ROOFING UK LIMITED,GCR001
EFDC,CH113,"MUSEUM, HERITAGE & CULTURE",MATERIALS,3080,30-Oct-19,160481,545.85,DAUPHIN ACRYLIC DESIGN LIMITED,DAU001
EFDC,TO100,LAND & PROPERTY,VEHICLE PARTS / REPAIRS,2210,30-Oct-19,161394,1399.32,FORD MOTOR CO. T/A PARTS PLUS,FOR028
EFDC,GT100,LOCAL PLAN IMPLEMENTATION,CONSULTANTS FEES,3490,30-Oct-19,160545,10000,PHIL JONES ASSOCIATES LTD,PHI025
EFDC,GT100,LOCAL PLAN IMPLEMENTATION,CONSULTANTS FEES,3490,30-Oct-19,160188,6527.29,CUSHMAN & WAKEFIELD DEBENHAM TIE LEUNG LTD,CUS022
EFDC,37600,PLANNING SUPPORT SERVICES,AGENCY STAFF,0120,30-Oct-19,160099,1589.85,G2 RECRUITMENT SOLUTIONS,G2R001
EFDC,37600,PLANNING SUPPORT SERVICES,AGENCY STAFF,0120,30-Oct-19,159611,616.05,G2 RECRUITMENT SOLUTIONS,G2R001
EFDC,32220,OTHER SUPPORT SERVICES,PROFESSIONAL FEES,3420,30-Oct-19,161313,1850,BIRKETTS LLP,BIR001
EFDC,32220,OTHER SUPPORT SERVICES,PROFESSIONAL FEES,3420,30-Oct-19,161315,3,BIRKETTS LLP,BIR001
EFDC,32220,OTHER SUPPORT SERVICES,PROFESSIONAL FEES,3420,30-Oct-19,161315,1150,BIRKETTS LLP,BIR001
EFDC,34160,HOUSING PROP SUPPORT SERVICES,CONSULTANTS FEES,3490,30-Oct-19,161371,3375,CL COMMUNICATIONS,CLC001
EFDC,WC200,WASTE MANAGEMENT,CLEANSING CONTRACTORS,4320,30-Oct-19,160000,4618,LOCAL GREEN POINTS LLP,GRE020
EFDC,CH110,"MUSEUM, HERITAGE & CULTURE",EXHIBITIONS,3375,30-Oct-19,161205,1490,TRAVELLING NATURAL HISTORY MUSEUM,TRA063
EFDC,33080,OTHER ACTIVITIES,PROFESSIONAL FEES,3420,30-Oct-19,160874,26125.5,ITICA LIMITED,ITI001
EFDC,DC110,PLANNING REGULATORY SERVICES,PROFESSIONAL FEES,3420,30-Oct-19,160429,4800,PEYTO LAW,PEY001
EFDC,GT100,LOCAL PLAN IMPLEMENTATION,CONSULTANTS FEES,3490,30-Oct-19,160220,4700,PETER WRIGHT ASSOCIATES LTD,PET026
EFDC,26200,OTHER SUPPORT SERVICES,BUILDING MAINTENANCE,1010,30-Oct-19,161391,64,EVAC+CHAIR INTERNATIONAL LIMITED,EVA003
EFDC,26200,OTHER SUPPORT SERVICES,BUILDING MAINTENANCE,1010,30-Oct-19,161391,135,EVAC+CHAIR INTERNATIONAL LIMITED,EVA003
EFDC,26200,OTHER SUPPORT SERVICES,BUILDING MAINTENANCE,1010,30-Oct-19,161391,712.8,EVAC+CHAIR INTERNATIONAL LIMITED,EVA003
EFDC,26200,OTHER SUPPORT SERVICES,BUILDING MAINTENANCE,1010,30-Oct-19,161391,603,EVAC+CHAIR INTERNATIONAL LIMITED,EVA003
EFDC,DC120,PLANNING REGULATORY SERVICES,PROFESSIONAL FEES,3420,30-Oct-19,160528,750,GH SURVEYORS LIMITED,GHS001
EFDC,DC120,PLANNING REGULATORY SERVICES,PROFESSIONAL FEES,3420,30-Oct-19,160528,750,GH SURVEYORS LIMITED,GHS001
EFDC,PH100,PRIVATE SECTOR HOUSING,GRANTS GENERAL,3720,05-Nov-19,34535,5867,STANNAH LIFT SERVICES LTD,STA002
EFDC,GT100,LOCAL PLAN IMPLEMENTATION,CONSULTANTS FEES,3490,05-Nov-19,34523,613.05,CLAIRE HAMILTON,7773P
EFDC,GT100,LOCAL PLAN IMPLEMENTATION,CONSULTANTS FEES,3490,05-Nov-19,34523,10.88,CLAIRE HAMILTON,7773P
EFDC,33080,OTHER ACTIVITIES,FIXED NETWORK LINE COSTS,3520,06-Nov-19,161639,70,BRITISH TELECOMMUNICATIONS PLC,BRI002
EFDC,33080,OTHER ACTIVITIES,FIXED NETWORK LINE COSTS,3520,06-Nov-19,161640,3440,BRITISH TELECOMMUNICATIONS PLC,BRI002
EFDC,33080,OTHER ACTIVITIES,FIXED NETWORK LINE COSTS,3520,06-Nov-19,161639,1411.5,BRITISH TELECOMMUNICATIONS PLC,BRI002
EFDC,33080,OTHER ACTIVITIES,FIXED NETWORK LINE COSTS,3520,06-Nov-19,161640,70,BRITISH TELECOMMUNICATIONS PLC,BRI002
EFDC,33080,OTHER ACTIVITIES,FIXED NETWORK LINE COSTS,3520,06-Nov-19,161924,15200.76,BRITISH TELECOMMUNICATIONS PLC,BRI002
EFDC,32200,OTHER SUPPORT SERVICES,EQUIPMENT - HIRED,3020,06-Nov-19,161159,586.31,CANON (UK) LTD,CAN004
EFDC,32200,OTHER SUPPORT SERVICES,EQUIPMENT - HIRED,3020,06-Nov-19,160102,1002.08,CANON (UK) LTD,CAN004
EFDC,33075,OTHER ACTIVITIES,POSTAGE,3510,06-Nov-19,161260,2600,CAPITA BUSINESS SERVICES LTD,CAP004
EFDC,RM100,RESPONSIVE & VOID REPAIRS,BUILDING MAINTENANCE,1010,06-Nov-19,161888,2495.65,OPENVIEW SECURITY SOLUTIONS LTD,CAR003
EFDC,RM100,RESPONSIVE & VOID REPAIRS,BUILDING MAINTENANCE,1010,06-Nov-19,161889,2495.65,OPENVIEW SECURITY SOLUTIONS LTD,CAR003
EFDC,33075,OTHER ACTIVITIES,AGENCY STAFF,0120,06-Nov-19,160040,577.5,EDEN BROWN LTD,EDE001
EFDC,34110,HOUSING PROP SUPPORT SERVICES,BANKING AND CASH COLLECTION,3440,06-Nov-19,160808,72.59,CONTRACT SECURITY SERVICES LTD,CON033
EFDC,33020,OTHER ACTIVITIES,BANKING AND CASH COLLECTION,3440,06-Nov-19,160808,725.83,CONTRACT SECURITY SERVICES LTD,CON033
EFDC,33020,OTHER ACTIVITIES,BANKING AND CASH COLLECTION,3440,06-Nov-19,160808,362.92,CONTRACT SECURITY SERVICES LTD,CON033
EFDC,YB620,SUPERVISION/MANAGEMENT SPECIAL,BANKING AND CASH COLLECTION,3440,06-Nov-19,160808,72.58,CONTRACT SECURITY SERVICES LTD,CON033
EFDC,TO100,LAND & PROPERTY,BANKING AND CASH COLLECTION,3440,06-Nov-19,160808,72.58,CONTRACT SECURITY SERVICES LTD,CON033
EFDC,CH110,"MUSEUM, HERITAGE & CULTURE",BANKING AND CASH COLLECTION,3440,06-Nov-19,160808,36.29,CONTRACT SECURITY SERVICES LTD,CON033
EFDC,35300,CONTRACT & TECH SUPPORT SERVIC,FUEL,2330,06-Nov-19,161164,1816.02,CPL PETROLEUM,CPL001
EFDC,EH150,REGULATORY SERVICES,CRB POLICE CHECK COSTS,0381,06-Nov-19,160114,1804,DISCLOSURE & BARRING SERVICE,CRB002
EFDC,26200,OTHER SUPPORT SERVICES,FIXED PLANT MAINTENANCE,1020,06-Nov-19,161192,3122.5,CTL AUDIOVISUAL SERVICES LTD,CTL001
EFDC,YB400,SUPERVISION/MANAGEMENT SPECIAL,TREE  MAINTENANCE,1070,06-Nov-19,161165,950,D F CLARK CONTRACTORS LTD,DFC001
EFDC,35300,CONTRACT & TECH SUPPORT SERVIC,VEHICLE HIRE,2620,06-Nov-19,160777,1278.46,ERNEST DOE & SONS LTD,ERN001
EFDC,35300,CONTRACT & TECH SUPPORT SERVIC,VEHICLE HIRE,2620,06-Nov-19,160776,638.97,ERNEST DOE & SONS LTD,ERN001
EFDC,26200,OTHER SUPPORT SERVICES,BUILDING MAINTENANCE,1010,06-Nov-19,161983,85.38,ESSEX LIFT SERVICES LTD,ESS032
EFDC,26200,OTHER SUPPORT SERVICES,BUILDING MAINTENANCE,1010,06-Nov-19,161983,85.38,ESSEX LIFT SERVICES LTD,ESS032
EFDC,26200,OTHER SUPPORT SERVICES,FIXED PLANT MAINTENANCE,1020,06-Nov-19,161983,320.62,ESSEX LIFT SERVICES LTD,ESS032
EFDC,RM400,PLANNED & CYCLICAL MAINTENANCE,BUILDING MAINTENANCE,1010,06-Nov-19,161983,768.45,ESSEX LIFT SERVICES LTD,ESS032
EFDC,26200,OTHER SUPPORT SERVICES,BUILDING MAINTENANCE,1010,06-Nov-19,161983,85.38,ESSEX LIFT SERVICES LTD,ESS032
EFDC,CAPHR,HRA CAPITAL,WORKS,A040,06-Nov-19,161922,117576.56,EXTERIOR PLAS,EXT001
EFDC,CAPHR,HRA CAPITAL,WORKS,A040,06-Nov-19,161922,7811.23,EXTERIOR PLAS,EXT001
EFDC,RM100,RESPONSIVE & VOID REPAIRS,BUILDING MAINTENANCE,1010,06-Nov-19,161892,2591.86,EXTERIOR PLAS,EXT001
EFDC,RS301,NORTH WEALD CENTRE,EQUIPMENT - NEW,3010,06-Nov-19,161984,840,FALCON BUSINESS SUPPLIES LTD,FAL001
EFDC,26200,OTHER SUPPORT SERVICES,BUILDING MAINTENANCE,1010,06-Nov-19,160438,890,B B & C FENCING,FEN003
EFDC,32120,OTHER SUPPORT SERVICES,EMPLOYEES - OTHER PAYMENTS,0191,06-Nov-19,159213,221.15,HARLOW OCCUPATIONAL HEALTH SERVICE LTD,HAR006
EFDC,32120,OTHER SUPPORT SERVICES,EMPLOYEES - OTHER PAYMENTS,0191,06-Nov-19,159213,2183,HARLOW OCCUPATIONAL HEALTH SERVICE LTD,HAR006
EFDC,32220,OTHER SUPPORT SERVICES,AGENCY STAFF,0120,06-Nov-19,160128,1226.61,HAYS SPECIALIST RECRUITMENT LTD,HAY011
EFDC,32220,OTHER SUPPORT SERVICES,AGENCY STAFF,0120,06-Nov-19,159979,1226.61,HAYS SPECIALIST RECRUITMENT LTD,HAY011
EFDC,33060,OTHER ACTIVITIES,AGENCY STAFF,0120,06-Nov-19,160400,1888,HAYS SPECIALIST RECRUITMENT LTD,HAY011
EFDC,78001,HRA SUPPORT SERVICES,REFUSE REMOVAL,1640,06-Nov-19,160811,550,HEATHERLAND LTD T/A LUNNON PLANT & WASTE SERV,HEA001
EFDC,51150,OTHER SUPPORT SERVICES,TRAINING EXPENSES,0310,06-Nov-19,159076,1475,CIWM,IWM001
EFDC,32060,OTHER SUPPORT SERVICES,AGENCY STAFF,0120,06-Nov-19,161353,1628,LAW ABSOLUTE LIMITED,LAW009
EFDC,32060,OTHER SUPPORT SERVICES,AGENCY STAFF,0120,06-Nov-19,161354,1221,LAW ABSOLUTE LIMITED,LAW009
EFDC,32060,OTHER SUPPORT SERVICES,AGENCY STAFF,0120,06-Nov-19,161352,1628,LAW ABSOLUTE LIMITED,LAW009
EFDC,32060,OTHER SUPPORT SERVICES,AGENCY STAFF,0120,06-Nov-19,161351,1628,LAW ABSOLUTE LIMITED,LAW009
EFDC,32060,OTHER SUPPORT SERVICES,AGENCY STAFF,0120,06-Nov-19,161355,1628,LAW ABSOLUTE LIMITED,LAW009
EFDC,37600,PLANNING SUPPORT SERVICES,AGENCY STAFF,0120,06-Nov-19,160139,811.64,ADECCO UK LTD,ADE002
EFDC,37600,PLANNING SUPPORT SERVICES,AGENCY STAFF,0120,06-Nov-19,161097,806.04,ADECCO UK LTD,ADE002
EFDC,37600,PLANNING SUPPORT SERVICES,AGENCY STAFF,0120,06-Nov-19,161092,811.64,ADECCO UK LTD,ADE002
EFDC,37600,PLANNING SUPPORT SERVICES,AGENCY STAFF,0120,06-Nov-19,161291,806.04,ADECCO UK LTD,ADE002
EFDC,43310,CONTRACT & TECH SUPPORT SERVIC,AGENCY STAFF,0120,06-Nov-19,160134,593.85,ADECCO UK LTD,ADE002
EFDC,YB620,SUPERVISION/MANAGEMENT SPECIAL,WATER CHARGES,1410,06-Nov-19,161638,513.3,AFFINITY FOR BUSINESS LTD,AFF001
EFDC,51150,OTHER SUPPORT SERVICES,TRAINING EXPENSES,0310,06-Nov-19,159792,8400,INSTITUTE OF ACOUSTICS,INS013
EFDC,78001,HRA SUPPORT SERVICES,PROFESSIONAL FEES,3420,06-Nov-19,161944,9976.03,MEARS LTD,MEA002
EFDC,32191,OTHER SUPPORT SERVICES,CONSULTANTS FEES,3490,06-Nov-19,161937,3171.99,MEARS LTD,MEA002
EFDC,DC120,PLANNING REGULATORY SERVICES,PUBLICITY,3360,06-Nov-19,160453,654.5,NEWSQUEST MEDIA GROUP,NEW002
EFDC,YB120,SUPERVISION/MANAGEMENT SPECIAL,AGENCY STAFF,0120,06-Nov-19,161439,615.6,REED SPECIALIST RECRUITMENT LTD,REE002
EFDC,35300,CONTRACT & TECH SUPPORT SERVIC,VEHICLE HIRE,2620,06-Nov-19,161163,610,P TUCKWELL LTD,TUC002
EFDC,32060,OTHER SUPPORT SERVICES,AGENCY STAFF,0120,06-Nov-19,160804,1726.56,VENN GROUP LTD,VEN004
EFDC,CM100,CORPORATE ACTIVITIES,CONSULTANTS FEES,3490,06-Nov-19,162028,2370,VINE HR LTD,VIN003
EFDC,CM100,CORPORATE ACTIVITIES,CONSULTANTS FEES,3490,06-Nov-19,162027,1958,VINE HR LTD,VIN003
EFDC,26200,OTHER SUPPORT SERVICES,BUILDING MAINTENANCE,1010,06-Nov-19,160867,605,EMERY ELECTRICAL LTD,EME001
EFDC,26200,OTHER SUPPORT SERVICES,BUILDING MAINTENANCE,1010,06-Nov-19,160867,1481,EMERY ELECTRICAL LTD,EME001
EFDC,RM100,RESPONSIVE & VOID REPAIRS,BUILDING MAINTENANCE,1010,06-Nov-19,161895,1232.95,GRACELANDS COMPLETE MAINTENANCE SERVICES LTD,GRA007
EFDC,RM100,RESPONSIVE & VOID REPAIRS,BUILDING MAINTENANCE,1010,06-Nov-19,161894,886.87,GRACELANDS COMPLETE MAINTENANCE SERVICES LTD,GRA007
EFDC,CAPHR,HRA CAPITAL,WORKS,A040,06-Nov-19,161932,40317.77,GRACELANDS COMPLETE MAINTENANCE SERVICES LTD,GRA007
EFDC,RM300,PLANNED & CYCLICAL MAINTENANCE,BUILDING MAINTENANCE,1010,06-Nov-19,161935,80061.11,GRACELANDS COMPLETE MAINTENANCE SERVICES LTD,GRA007
EFDC,RM100,RESPONSIVE & VOID REPAIRS,BUILDING MAINTENANCE,1010,06-Nov-19,161860,560,GRACELANDS COMPLETE MAINTENANCE SERVICES LTD,GRA007
EFDC,RM100,RESPONSIVE & VOID REPAIRS,BUILDING MAINTENANCE,1010,06-Nov-19,161862,880,GRACELANDS COMPLETE MAINTENANCE SERVICES LTD,GRA007
EFDC,RM400,PLANNED & CYCLICAL MAINTENANCE,BUILDING MAINTENANCE,1010,06-Nov-19,162007,3733.33,PURDY CONTRACTS LTD,PUR002
EFDC,RM400,PLANNED & CYCLICAL MAINTENANCE,BUILDING MAINTENANCE,1010,06-Nov-19,162006,3298.78,PURDY CONTRACTS LTD,PUR002
EFDC,33055,OTHER ACTIVITIES,AGENCY STAFF,0120,06-Nov-19,162000,981.24,MORGAN HUNT UK LTD,MOR001
EFDC,33075,OTHER ACTIVITIES,AGENCY STAFF,0120,06-Nov-19,161999,869.13,MORGAN HUNT UK LTD,MOR001
EFDC,35005,CONTRACT & TECH SUPPORT SERVIC,AGENCY STAFF,0120,06-Nov-19,161998,840.23,MORGAN HUNT UK LTD,MOR001
EFDC,35300,CONTRACT & TECH SUPPORT SERVIC,AGENCY STAFF,0120,06-Nov-19,161246,659.53,BERRY RECRUITMENT LTD,BER001
EFDC,35300,CONTRACT & TECH SUPPORT SERVIC,AGENCY STAFF,0120,06-Nov-19,161244,546.13,BERRY RECRUITMENT LTD,BER001
EFDC,35300,CONTRACT & TECH SUPPORT SERVIC,AGENCY STAFF,0120,06-Nov-19,161243,543.88,BERRY RECRUITMENT LTD,BER001
EFDC,33080,OTHER ACTIVITIES,EQUIPMENT - NEW,3010,06-Nov-19,161954,2204.44,TANGIBLE BENEFIT LTD,TAN001
EFDC,RM300,PLANNED & CYCLICAL MAINTENANCE,BUILDING MAINTENANCE,1010,06-Nov-19,161923,675,DDS (INTERNATIONAL) LTD,DDS001
EFDC,SC100,WASTE MANAGEMENT,CLEANSING CONTRACTORS,4320,06-Nov-19,158726,9013.13,EASTERN WASTE DISPOSAL LTD,EAS002
EFDC,36500,HRA SUPPORT SERVICES,AGENCY STAFF,0120,06-Nov-19,161252,947.38,JAMES ANDREWS RECRUITMENT SOLUTIONS LTD,JAM001
EFDC,DR140,MEMBER ACTIVITIES,HOSPITALITY,3840,06-Nov-19,161276,2315.65,SHARRONS EVENT CATERING COMPANY LTD,SHA002
EFDC,DC120,PLANNING REGULATORY SERVICES,PROFESSIONAL FEES,3420,06-Nov-19,161134,5000,KIFT CONSULTING LTD,KIF001
EFDC,CAPHR,HRA CAPITAL,WORKS,A040,06-Nov-19,161915,3901.1,ARAN SERVICES LTD,ARA001
EFDC,32060,OTHER SUPPORT SERVICES,SUBSCRIPTIONS,3730,06-Nov-19,160472,767.85,CENTRE FOR ASSESSMENT,CEN003
EFDC,27050,ACCOMMODATION,SECURITY,1650,06-Nov-19,162024,5400.91,T.S.S. (TOTAL SECURITY SERVICES) LTD,TSS001
EFDC,PS100,CAR PARKING,OTHER MAINTENANCE,1050,06-Nov-19,161101,1854,METRIC GROUP LTD,MET005
EFDC,PS100,CAR PARKING,OTHER MAINTENANCE,1050,06-Nov-19,161100,1521,METRIC GROUP LTD,MET005
EFDC,YB400,SUPERVISION/MANAGEMENT SPECIAL,CLEANSING CONTRACTORS,4320,06-Nov-19,160490,17505.94,BIFFA MUNICIPAL LTD,BIF001
EFDC,WC200,WASTE MANAGEMENT,CLEANSING CONTRACTORS,4320,06-Nov-19,160490,219527.61,BIFFA MUNICIPAL LTD,BIF001
EFDC,EH142,ENVIRONMENTAL HEALTH,CLEANSING CONTRACTORS,4320,06-Nov-19,160490,1397.07,BIFFA MUNICIPAL LTD,BIF001
EFDC,EH142,ENVIRONMENTAL HEALTH,CLEANSING CONTRACTORS,4320,06-Nov-19,160490,713.44,BIFFA MUNICIPAL LTD,BIF001
EFDC,PS100,CAR PARKING,CLEANSING CONTRACTORS,4320,06-Nov-19,160490,2587.62,BIFFA MUNICIPAL LTD,BIF001
EFDC,WC100,WASTE MANAGEMENT,CLEANSING CONTRACTORS,4320,06-Nov-19,160490,107697.31,BIFFA MUNICIPAL LTD,BIF001
EFDC,SC100,WASTE MANAGEMENT,CLEANSING CONTRACTORS,4320,06-Nov-19,160490,102705.51,BIFFA MUNICIPAL LTD,BIF001
EFDC,32120,OTHER SUPPORT SERVICES,AGENCY STAFF,0120,06-Nov-19,160577,979.56,THE OYSTER PARTNERSHIP LTD,OYS001
EFDC,32120,OTHER SUPPORT SERVICES,AGENCY STAFF,0120,06-Nov-19,160578,1033.98,THE OYSTER PARTNERSHIP LTD,OYS001
EFDC,32120,OTHER SUPPORT SERVICES,AGENCY STAFF,0120,06-Nov-19,160831,1183.64,THE OYSTER PARTNERSHIP LTD,OYS001
EFDC,32120,OTHER SUPPORT SERVICES,AGENCY STAFF,0120,06-Nov-19,160576,979.56,THE OYSTER PARTNERSHIP LTD,OYS001
EFDC,32120,OTHER SUPPORT SERVICES,AGENCY STAFF,0120,06-Nov-19,160575,1088.4,THE OYSTER PARTNERSHIP LTD,OYS001
EFDC,32120,OTHER SUPPORT SERVICES,AGENCY STAFF,0120,06-Nov-19,160830,2163.19,THE OYSTER PARTNERSHIP LTD,OYS001
EFDC,RS301,NORTH WEALD CENTRE,FIXED PLANT MAINTENANCE,1020,06-Nov-19,161188,6743,MAINTECH POWER SERVICES LTD,MAI003
EFDC,35300,CONTRACT & TECH SUPPORT SERVIC,AGENCY STAFF,0120,06-Nov-19,160581,632.1,HL SERVICES (LONDON) LTD,HLS001
EFDC,35300,CONTRACT & TECH SUPPORT SERVIC,AGENCY STAFF,0120,06-Nov-19,161312,632.1,HL SERVICES (LONDON) LTD,HLS001
EFDC,35300,CONTRACT & TECH SUPPORT SERVIC,AGENCY STAFF,0120,06-Nov-19,161326,639.6,HL SERVICES (LONDON) LTD,HLS001
EFDC,35300,CONTRACT & TECH SUPPORT SERVIC,AGENCY STAFF,0120,06-Nov-19,160764,767.52,HL SERVICES (LONDON) LTD,HLS001
EFDC,35300,CONTRACT & TECH SUPPORT SERVIC,AGENCY STAFF,0120,06-Nov-19,160580,767.52,HL SERVICES (LONDON) LTD,HLS001
EFDC,35300,CONTRACT & TECH SUPPORT SERVIC,AGENCY STAFF,0120,06-Nov-19,160142,632.1,HL SERVICES (LONDON) LTD,HLS001
EFDC,35300,CONTRACT & TECH SUPPORT SERVIC,AGENCY STAFF,0120,06-Nov-19,160036,647.12,HL SERVICES (LONDON) LTD,HLS001
EFDC,35300,CONTRACT & TECH SUPPORT SERVIC,AGENCY STAFF,0120,06-Nov-19,160035,639.6,HL SERVICES (LONDON) LTD,HLS001
EFDC,35300,CONTRACT & TECH SUPPORT SERVIC,AGENCY STAFF,0120,06-Nov-19,160034,504.18,HL SERVICES (LONDON) LTD,HLS001
EFDC,35300,CONTRACT & TECH SUPPORT SERVIC,AGENCY STAFF,0120,06-Nov-19,160033,767.52,HL SERVICES (LONDON) LTD,HLS001
EFDC,35300,CONTRACT & TECH SUPPORT SERVIC,AGENCY STAFF,0120,06-Nov-19,160032,632.1,HL SERVICES (LONDON) LTD,HLS001
EFDC,35300,CONTRACT & TECH SUPPORT SERVIC,AGENCY STAFF,0120,06-Nov-19,160765,632.1,HL SERVICES (LONDON) LTD,HLS001
EFDC,35300,CONTRACT & TECH SUPPORT SERVIC,AGENCY STAFF,0120,06-Nov-19,160579,504.18,HL SERVICES (LONDON) LTD,HLS001
EFDC,35300,CONTRACT & TECH SUPPORT SERVIC,AGENCY STAFF,0120,06-Nov-19,161324,632.1,HL SERVICES (LONDON) LTD,HLS001
EFDC,35300,CONTRACT & TECH SUPPORT SERVIC,AGENCY STAFF,0120,06-Nov-19,161323,632.1,HL SERVICES (LONDON) LTD,HLS001
EFDC,35300,CONTRACT & TECH SUPPORT SERVIC,AGENCY STAFF,0120,06-Nov-19,161316,511.7,HL SERVICES (LONDON) LTD,HLS001
EFDC,35300,CONTRACT & TECH SUPPORT SERVIC,AGENCY STAFF,0120,06-Nov-19,160766,767.52,HL SERVICES (LONDON) LTD,HLS001
EFDC,PS100,CAR PARKING,ELECTRICITY,1120,06-Nov-19,160492,99.85,EDF ENERGY,EDF001
EFDC,PS100,CAR PARKING,ELECTRICITY,1120,06-Nov-19,160492,511.88,EDF ENERGY,EDF001
EFDC,PS100,CAR PARKING,ELECTRICITY,1120,06-Nov-19,160492,3.63,EDF ENERGY,EDF001
EFDC,PS100,CAR PARKING,ELECTRICITY,1120,06-Nov-19,160492,9.54,EDF ENERGY,EDF001
EFDC,PS100,CAR PARKING,ELECTRICITY,1120,06-Nov-19,160492,54.14,EDF ENERGY,EDF001
EFDC,YB110,SUPERVISION/MANAGEMENT SPECIAL,ELECTRICITY,1120,06-Nov-19,160492,16.23,EDF ENERGY,EDF001
EFDC,YB110,SUPERVISION/MANAGEMENT SPECIAL,ELECTRICITY,1120,06-Nov-19,160492,258.09,EDF ENERGY,EDF001
EFDC,YB110,SUPERVISION/MANAGEMENT SPECIAL,ELECTRICITY,1120,06-Nov-19,160492,162.41,EDF ENERGY,EDF001
EFDC,CAPHR,HRA CAPITAL,ARCHITECTS FEES,E160,06-Nov-19,161847,13463.35,ECD ARCHITECTS LTD,ECD001
EFDC,CAPHR,HRA CAPITAL,ARCHITECTS FEES,E160,06-Nov-19,161850,19219.23,ECD ARCHITECTS LTD,ECD001
EFDC,CAPHR,HRA CAPITAL,ARCHITECTS FEES,E160,06-Nov-19,161843,8553,ECD ARCHITECTS LTD,ECD001
EFDC,CAPHR,HRA CAPITAL,ARCHITECTS FEES,E160,06-Nov-19,161845,10674.04,ECD ARCHITECTS LTD,ECD001
EFDC,CAPHR,HRA CAPITAL,ARCHITECTS FEES,E160,06-Nov-19,161841,14787.32,ECD ARCHITECTS LTD,ECD001
EFDC,CAPHR,HRA CAPITAL,ARCHITECTS FEES,E160,06-Nov-19,161840,14067.58,ECD ARCHITECTS LTD,ECD001
EFDC,CAPHR,HRA CAPITAL,ARCHITECTS FEES,E160,06-Nov-19,161856,13703.86,ECD ARCHITECTS LTD,ECD001
EFDC,CAPHR,HRA CAPITAL,ARCHITECTS FEES,E160,06-Nov-19,161855,1092.5,ECD ARCHITECTS LTD,ECD001
EFDC,CAPHR,HRA CAPITAL,ARCHITECTS FEES,E160,06-Nov-19,161854,1092.5,ECD ARCHITECTS LTD,ECD001
EFDC,CAPHR,HRA CAPITAL,ARCHITECTS FEES,E160,06-Nov-19,161853,4033.85,ECD ARCHITECTS LTD,ECD001
EFDC,CAPHR,HRA CAPITAL,ARCHITECTS FEES,E160,06-Nov-19,161852,874,ECD ARCHITECTS LTD,ECD001
EFDC,CAPHR,HRA CAPITAL,ARCHITECTS FEES,E160,06-Nov-19,161851,15482.38,ECD ARCHITECTS LTD,ECD001
EFDC,CAPHR,HRA CAPITAL,ARCHITECTS FEES,E160,06-Nov-19,161844,7535.46,ECD ARCHITECTS LTD,ECD001
EFDC,CAPHR,HRA CAPITAL,ARCHITECTS FEES,E160,06-Nov-19,161849,19182.99,ECD ARCHITECTS LTD,ECD001
EFDC,CAPHR,HRA CAPITAL,ARCHITECTS FEES,E160,06-Nov-19,161833,9844.17,ECD ARCHITECTS LTD,ECD001
EFDC,CAPHR,HRA CAPITAL,ARCHITECTS FEES,E160,06-Nov-19,161834,10409.85,ECD ARCHITECTS LTD,ECD001
EFDC,26200,OTHER SUPPORT SERVICES,BUILDING MAINTENANCE,1010,06-Nov-19,161966,860,M J ANDERSON MAINTENANCE CONTRACTORS LTD,AND003
EFDC,26200,OTHER SUPPORT SERVICES,BUILDING MAINTENANCE,1010,06-Nov-19,161966,16.34,M J ANDERSON MAINTENANCE CONTRACTORS LTD,AND003
EFDC,32220,OTHER SUPPORT SERVICES,AGENCY STAFF,0120,06-Nov-19,160461,12691.66,CAPSTONE PROPERTY RECRUITMENT LTD,CAP001
EFDC,32220,OTHER SUPPORT SERVICES,AGENCY STAFF,0120,06-Nov-19,160460,3881.43,CAPSTONE PROPERTY RECRUITMENT LTD,CAP001
EFDC,32220,OTHER SUPPORT SERVICES,AGENCY STAFF,0120,06-Nov-19,161104,3819.82,CAPSTONE PROPERTY RECRUITMENT LTD,CAP001
EFDC,YB620,SUPERVISION/MANAGEMENT SPECIAL,FIXED NETWORK LINE COSTS,3520,06-Nov-19,161838,6396.75,VIRGIN MEDIA BUSINESS,VIR002
EFDC,GT100,LOCAL PLAN IMPLEMENTATION,LEGAL EXPENSES,3680,06-Nov-19,161957,8071.14,TROWERS & HAMLINS LLP,TRO002
EFDC,GT100,LOCAL PLAN IMPLEMENTATION,LEGAL EXPENSES,3680,06-Nov-19,161956,12500,TROWERS & HAMLINS LLP,TRO002
EFDC,GT100,LOCAL PLAN IMPLEMENTATION,LEGAL EXPENSES,3680,06-Nov-19,161958,7516.38,TROWERS & HAMLINS LLP,TRO002
EFDC,CAPHR,HRA CAPITAL,CONSTRUCTION,D030,06-Nov-19,161832,22546.04,W H CONSTRUCTION LTD,CON014
EFDC,CAPHR,HRA CAPITAL,WORKS,A040,06-Nov-19,161929,95454.55,W H CONSTRUCTION LTD,CON014
EFDC,CAPHR,HRA CAPITAL,WORKS,A040,06-Nov-19,161929,34702.2,W H CONSTRUCTION LTD,CON014
EFDC,37600,PLANNING SUPPORT SERVICES,AGENCY STAFF,0120,06-Nov-19,160583,1295,VIVID RESOURCING LTD,VIV002
EFDC,37600,PLANNING SUPPORT SERVICES,AGENCY STAFF,0120,06-Nov-19,160584,2812,VIVID RESOURCING LTD,VIV002
EFDC,37600,PLANNING SUPPORT SERVICES,AGENCY STAFF,0120,06-Nov-19,160443,1406,VIVID RESOURCING LTD,VIV002
EFDC,37600,PLANNING SUPPORT SERVICES,AGENCY STAFF,0120,06-Nov-19,160444,1295,VIVID RESOURCING LTD,VIV002
EFDC,37600,PLANNING SUPPORT SERVICES,AGENCY STAFF,0120,06-Nov-19,159759,1312.5,VIVID RESOURCING LTD,VIV002
EFDC,CAPHR,HRA CAPITAL,WORKS,E040,06-Nov-19,161949,26558.52,STORM BUILDING LTD,STO007
EFDC,26200,OTHER SUPPORT SERVICES,BUILDING MAINTENANCE,1010,06-Nov-19,161962,1237.2,ALERTER GROUP PLC,ALE001
EFDC,PS100,CAR PARKING,PARKING CONTRACTOR,4350,06-Nov-19,161144,17975.91,NSL LIMITED,NSL001
EFDC,RM100,RESPONSIVE & VOID REPAIRS,BUILDING MAINTENANCE,1010,06-Nov-19,161859,1076.38,GC ROOFING UK LIMITED,GCR001
EFDC,RM100,RESPONSIVE & VOID REPAIRS,BUILDING MAINTENANCE,1010,06-Nov-19,161857,850.37,GC ROOFING UK LIMITED,GCR001
EFDC,LA100,LAA POOLED FUNDS,LAA EXPENDITURE,Y100,06-Nov-19,160762,3500,JOANNE MAJAUSKIS,MAJ001
EFDC,37600,PLANNING SUPPORT SERVICES,AGENCY STAFF,0120,06-Nov-19,159761,1269.9,G2 RECRUITMENT SOLUTIONS,G2R001
EFDC,37600,PLANNING SUPPORT SERVICES,AGENCY STAFF,0120,06-Nov-19,159728,1259.9,G2 RECRUITMENT SOLUTIONS,G2R001
EFDC,37600,PLANNING SUPPORT SERVICES,AGENCY STAFF,0120,06-Nov-19,160556,921.25,G2 RECRUITMENT SOLUTIONS,G2R001
EFDC,32220,OTHER SUPPORT SERVICES,PROFESSIONAL FEES,3420,06-Nov-19,161920,2700,BIRKETTS LLP,BIR001
EFDC,32220,OTHER SUPPORT SERVICES,PROFESSIONAL FEES,3420,06-Nov-19,160735,3000,GOOCH CUNLIFFE WHALE LLP,GOO004
EFDC,32220,OTHER SUPPORT SERVICES,PROFESSIONAL FEES,3420,06-Nov-19,160735,116,GOOCH CUNLIFFE WHALE LLP,GOO004
EFDC,32220,OTHER SUPPORT SERVICES,PROFESSIONAL FEES,3420,06-Nov-19,160735,49.5,GOOCH CUNLIFFE WHALE LLP,GOO004
EFDC,33080,OTHER ACTIVITIES,SUBSCRIPTIONS,3730,06-Nov-19,162015,2851.2,SKYGUARD LIMITED,SKY001
EFDC,33080,OTHER ACTIVITIES,SUBSCRIPTIONS,3730,06-Nov-19,162015,1296,SKYGUARD LIMITED,SKY001
EFDC,33080,OTHER ACTIVITIES,SUBSCRIPTIONS,3730,06-Nov-19,162015,259.2,SKYGUARD LIMITED,SKY001
EFDC,26200,OTHER SUPPORT SERVICES,BUILDING MAINTENANCE,1010,06-Nov-19,161978,54.17,DDM FIRE SAFETY,DDM001
EFDC,26200,OTHER SUPPORT SERVICES,BUILDING MAINTENANCE,1010,06-Nov-19,161978,58.33,DDM FIRE SAFETY,DDM001
EFDC,26200,OTHER SUPPORT SERVICES,BUILDING MAINTENANCE,1010,06-Nov-19,161978,54.17,DDM FIRE SAFETY,DDM001
EFDC,26200,OTHER SUPPORT SERVICES,BUILDING MAINTENANCE,1010,06-Nov-19,161980,70,DDM FIRE SAFETY,DDM001
EFDC,RM400,PLANNED & CYCLICAL MAINTENANCE,BUILDING MAINTENANCE,1010,06-Nov-19,161980,470.83,DDM FIRE SAFETY,DDM001
EFDC,RM400,PLANNED & CYCLICAL MAINTENANCE,BUILDING MAINTENANCE,1010,06-Nov-19,161978,341.66,DDM FIRE SAFETY,DDM001
EFDC,26200,OTHER SUPPORT SERVICES,FIXED PLANT MAINTENANCE,1020,06-Nov-19,161979,943.33,DDM FIRE SAFETY,DDM001
EFDC,CAPHR,HRA CAPITAL,CLERK OF WORKS,E180,06-Nov-19,161936,820,KEITH PEATTIE ASSOCIATES,KEI001
EFDC,CAPHR,HRA CAPITAL,CLERK OF WORKS,E180,06-Nov-19,161936,820,KEITH PEATTIE ASSOCIATES,KEI001
EFDC,GT100,LOCAL PLAN IMPLEMENTATION,CONSULTANTS FEES,3490,06-Nov-19,161408,1666,GUY NICHOLSON,NIC023
EFDC,DC120,PLANNING REGULATORY SERVICES,CONSULTANTS FEES,3490,06-Nov-19,160158,510,GREEN EARTH MANAGEMENT COMPANY LTD,GRE026
EFDC,RS150,LEISURE FACILITIES,CONSULTANTS FEES,3490,06-Nov-19,161344,5500,THE SPORTS CONSULTANCY LTD,SPO008
EFDC,CAPGF,GENERAL FUND CAPITAL,WORKS,B040,07-Nov-19,161961,33500,C.Q SURFACING LTD,SUR008
EFDC,CAPGF,GENERAL FUND CAPITAL,WORKS,B040,07-Nov-19,161961,1500,C.Q SURFACING LTD,SUR008
EFDC,GD140,VOLUNTARY SECTOR SUPPORT,GRANTS TO VOLUNTARY ORGS,3710,12-Nov-19,34569,57150,EPPING FOREST CITIZENS ADVICE BUREAU,205P
EFDC,PH100,PRIVATE SECTOR HOUSING,GRANTS GENERAL,3720,12-Nov-19,34588,849,HAINAULT HOME IMPROVEMENTS LTD,HAI002
EFDC,PH100,PRIVATE SECTOR HOUSING,GRANTS GENERAL,3720,12-Nov-19,34597,756,PAPWORTH TRUST,4656P
EFDC,PH100,PRIVATE SECTOR HOUSING,GRANTS GENERAL,3720,12-Nov-19,34590,4205,JEWEL PROPERTY MAINTENANCE LTD,JEW022
EFDC,DC100,PLANNING REGULATORY SERVICES,LEGAL EXPENSES,3680,13-Nov-19,161707,1500,MR R BANWELL,BAN001
EFDC,33080,OTHER ACTIVITIES,FIXED NETWORK LINE COSTS,3520,13-Nov-19,162206,1397.52,BRITISH TELECOMMUNICATIONS PLC,BRI002
EFDC,33080,OTHER ACTIVITIES,FIXED NETWORK LINE COSTS,3520,13-Nov-19,162205,2081.52,BRITISH TELECOMMUNICATIONS PLC,BRI002
EFDC,33080,OTHER ACTIVITIES,FIXED NETWORK LINE COSTS,3520,13-Nov-19,162206,70,BRITISH TELECOMMUNICATIONS PLC,BRI002
EFDC,33080,OTHER ACTIVITIES,FIXED NETWORK LINE COSTS,3520,13-Nov-19,162205,70,BRITISH TELECOMMUNICATIONS PLC,BRI002
EFDC,32200,OTHER SUPPORT SERVICES,EQUIPMENT - HIRED,3020,13-Nov-19,160107,6810.49,CANON (UK) LTD,CAN004
EFDC,28030,OTHER SUPPORT SERVICES,EQUIPMENT - HIRED,3020,13-Nov-19,162207,-51.35,CARE VENDING SERVICES LTD,CAR017
EFDC,28030,OTHER SUPPORT SERVICES,EQUIPMENT - HIRED,3020,13-Nov-19,162207,1699.13,CARE VENDING SERVICES LTD,CAR017
EFDC,33080,OTHER ACTIVITIES,ANNUAL SUPPORT /  LICENSES,3872,13-Nov-19,161711,3000,CIVICA UK LTD,CIV003
EFDC,35300,CONTRACT & TECH SUPPORT SERVIC,FUEL,2330,13-Nov-19,162186,1332.2,CPL PETROLEUM,CPL001
EFDC,32120,OTHER SUPPORT SERVICES,CRB POLICE CHECK COSTS,0381,13-Nov-19,161190,88,DISCLOSURE & BARRING SERVICE,CRB002
EFDC,EH150,REGULATORY SERVICES,CRB POLICE CHECK COSTS,0381,13-Nov-19,161190,1232,DISCLOSURE & BARRING SERVICE,CRB002
EFDC,35300,CONTRACT & TECH SUPPORT SERVIC,VEHICLE HIRE,2620,13-Nov-19,161794,2880,ERNEST DOE & SONS LTD,ERN001
EFDC,35300,CONTRACT & TECH SUPPORT SERVIC,VEHICLE HIRE,2620,13-Nov-19,161792,654.55,ERNEST DOE & SONS LTD,ERN001
EFDC,RS301,NORTH WEALD CENTRE,OTHER MAINTENANCE,1050,13-Nov-19,161107,2135,B B & C FENCING,FEN003
